{"text_format":"1","workbook":"xlsx","n_sheets":114,"sheets":["Navigation","Navigation_RP","Betriebsmatrix","Allg.Daten","Übersicht","BHV","Auslandsrisiko","Umweltrisiken","ProduktHV","Produktrückruf","Kfz-Rückruf","Produktschutz","BHHV","BerufsHV","Vermögensschadenhaftpflicht","VH-IT","DuO","Cyber","RS","VeranstaltungsHV","Veranstaltungsausfall","VerkehrsHV","VSV","Sachsubstanz","BU","Praxisausfall","Elektronik","Maschinen","MaschinenBU","Photovoltaik","Bauleistung","Montage","Transport","Gepäck","Autoinhalt","Ausstellung","Kfz","Dienstreise","Kredit","Bürgschaft","Factoring","Leasing","GUV","KR","Keyman","Zusatzinformationen","Checkliste","Vollmacht","Deckungsklage-RS","Unterschrift","RPÜbersicht","RPAllg.Daten","RPBHV3","RPBHV2","Blanko3","Blanko2","RPVeranstaltungsHV3","RPVeranstaltungsHV2","RPBerufsHV3","RPBerufsHV2","RPDuO3","RPDuO2","RPCyber3","RPCyber2","RPVSV3","RPVSV2","RPGebäude3","RPGebäude2","RPHuG3","RPHuG2","RPBHH3","RPBHH2","RPBauleistung3","RPBauleistung2","RPPhotovoltaik3","RPPhotovoltaik2","RPPhotovoltaikHV3","RPPhotovoltaikHV2","RPInhalt3","RPInhalt2","RPBU3","RPBU2","RPGlas3","RPGlas2","RPElektronik3","RPElektronik2","RPMaschinen-mobil3","RPMaschinen-mobil2","RPMaschinen-stationär3","RPMaschinen-stationär2","RPMontage3","RPMontage2","RPRS3","RPRS2","RPAutoinhalt3","RPAutoinhalt2","RPKFZ-Einzel3","RPKFZ-Einzel2","RPKFZ-Flotte3","RPKFZ-Flotte2","RPGUV3","RPGUV2","RPTransport3","RPTransport2","RPVerkehrsHV3","RPVerkehrsHV2","RPKredit3","RPKredit2","RPBAV3","RPBAV2","RPbGM3","RPbGM2","Finanz-und_Versicherungsstatus","Vertragsübersicht"],"not_rendered":{"charts":0,"images":125,"macros":1,"external_links":0,"defined_names":84,"comments":7,"pivot_tables":0},"unopened":[],"bounds":{"document_bytes":16777216,"sheet_cells":100000,"rows_first":2000,"rows_last":500,"rows_between":2000,"halvings":0,"cell_chars":16384,"cell_head_chars":4096},"cells_cut":0,"cells_raw":0,"read":"whole","date_system":"1900"}

{"sheet":"Navigation","index":0,"n_rows":31,"n_cols":12,"rows_kept":31,"cut":false,"hidden":false,"merged":[[36,0,36,3],[11,4,11,6],[15,8,17,10],[11,8,11,10],[26,8,26,10],[18,4,18,6],[18,11,18,14],[23,11,23,14],[0,2,0,4],[1,0,2,10],[7,0,9,10],[11,0,11,3],[11,11,11,17]]}
["Risikoanalyse von:",null,{"$f":"IF(Allg.Daten!B8=\"\",\"\",Allg.Daten!B8)","v":""}]
["Navigation"]
[]
[]
[null,null,null,null,null,null,null,null,3]
[]
[]
["Spartenauswahl         "]
[]
[]
[]
["      Haftpflicht und Recht",null,null,null,"      Betriebsunterbrechungen",null,null,null,"Kfz-Risiken                       ",null,null,"Branchen"]
[]
[]
[]
[null,null,null,null,null,null,null,null,"Kredit- und                               Bürgschaftsversicherung"]
[]
[]
[null,null,null,null,"      Sachversicherungen      "]
[]
[]
[]
[]
[]
[null,null," "]
[]
[null,null,null,null,null,null,null,null,"Personenversicherungen"]
[]
[]
[]
[null,null,null,null," "]

{"sheet":"Navigation_RP","index":1,"n_rows":24,"n_cols":10,"rows_kept":24,"cut":false,"hidden":true,"merged":[[23,0,23,2],[22,5,22,7],[24,0,24,2],[23,5,23,7],[9,5,9,7],[24,5,24,7],[10,5,10,7],[11,5,11,7],[12,5,12,7],[13,5,13,7],[20,0,20,2],[19,5,19,7],[21,0,21,2],[20,5,20,7],[22,0,22,2],[21,5,21,7],[17,0,17,2],[16,5,16,7],[18,0,18,2],[17,5,17,7],[19,0,19,2],[18,5,18,7],[14,0,14,2],[15,0,15,2],[14,5,14,7],[16,0,16,2],[15,5,15,7],[9,0,9,2],[10,0,10,2],[11,0,11,2],[12,0,12,2],[13,0,13,2],[0,2,0,5],[1,0,2,9],[7,3,7,4],[7,0,8,2],[7,5,8,7],[7,8,7,9],[4,0,4,2],[4,4,4,6]]}
["Risikoanalyse von:"]
["Navigation Risikoplan"]
[]
[]
["Risikoplan Übersicht",null,null,null,"Risikoplan Allgemeine Daten  "]
["Vertragsübersicht mit Optimierungsvorschlägen und Strategie",null,null,null,null,"Finanz- und Versicherungsstatus"]
[]
["Sparte",null,null,"Auswahl",null,"Sparte",null,null,"Auswahl"]
[null,null,null,"Empfehlung I","Empfehlung II",null,null,null,"Empfehlung I","Empfehlung II"]
["Betriebshaftpflicht",null,null,null,null,"Elektronik"]
["Veranstaltungshaftpflicht",null,null,null,null,"Maschinen mobil"]
["Berufshaftpflicht",null,null,null,null,"Maschinen stationär"]
["D&O",null,null,null,null,"Montage"]
["Cyber",null,null,null,null,"Rechtsschutz"]
["Vertrauensschadenversicherung",null,null,null,null,"Autoinhalt"]
["Gebäude",null,null,null,null,"Kfz-Einzel"]
["Haus- und Grundbesitzerhaftpflicht",null,null,null,null,"Kfz-Flotte"]
["Bauherrenhaftpflicht",null,null,null,null,"Gruppenunfall"]
["Bauleistungsversicherung",null,null,null,null,"Transport"]
["Photovoltaikversicherung",null,null,null,null,"Verkehrshaftung"]
["Photovoltaikhaftpflichtversicherung",null,null,null,null,"Kreditversicherung"]
["Inhalt",null,null,null,null,"Betriebliche Altersvorsorge"]
["Betriebsunterbrechung",null,null,null,null,"Betriebliches Gesundheitsmanagem."]
["Glas",null,null,null,null,"Blankoformular für weitere Sparten"]

{"sheet":"Betriebsmatrix","index":2,"n_rows":48,"n_cols":33,"rows_kept":48,"cut":false,"hidden":true,"merged":[[0,1,0,11]]}
["Risikoanalyse von:",{"$f":"IF(Allg.Daten!B8=\"\",\"\",Allg.Daten!B8)","v":""}]
[null,null,"nein, trifft nicht zu","ja, trifft zu, dann prüfen...","Bauleistung","bAV","Berufsunf. / Invalidität / Tod","Betriebsschließung (BSV)","Keyman","Betriebsunterbrechung","Cyber","D&O","Elektronik","Gebäude","Glas","Haftpflicht","Inhalt","Kaution / Bürgschaft","Kidnap & Ransom","Kraftfahrt","Kranken","Kredit / Forderungsausfall","Maschinen","Mietkaution","Mietverlust","Montage","(erw.) Produkthaftpflicht","Rechtsschutz","Spezial Strafrechtsschutz","Transport","Unfall","Verkehrshaftung","Vertrauensschaden"]
["Risiken im Zusammenhang mit Anlage- u. Umlaufvermögen"]
["Besitzen Sie eigene Grundstücke/Gebäude?",null,null,null,null,null,null,null,null,null,null,null,null,"x","x","x","x",null,null,null,null,null,"x",null,"x",null,null,"x"]
["Sind Betriebsgebäude in Planung oder im Bau?",null,null,null,"x",null,null,null,null,null,null,null,null,"x",null,"x",null,null,null,null,null,null,null,null,"x"]
["Befindet sich der Betrieb in gepachteten/gemieteten Räumlichkeiten/Gebäuden?",null,null,null,null,null,null,null,null,null,null,null,null,null,"x","x","x",null,null,null,null,null,null,"x",null,null,null,"x"]
["Wenn ja, tragen Sie das Risiko für die betrieblich genutzten Räumlichkeiten/Gebäude?",null,null,null,null,null,null,null,null,null,null,null,null,"x","x","x",null,null,null,null,null,null,null,null,null,null,null,"x"]
["Ist techn./kfm. Betriebseinrichtung vorhanden?",null,null,null,null,null,null,null,null,"x",null,null,"x",null,"x",null,"x",null,null,null,null,null,"x"]
["Sind Waren/Vorräte vorhanden?",null,null,null,null,null,null,"x",null,"x",null,null,null,null,null,null,"x",null,null,null,null,"x",null,null,null,null,null,null,null,"x",null,null,"x"]
["Haben Sie Fahrzeuge?",null,null,null,null,null,null,null,null,null,null,null,null,null,null,"x",null,null,null,"x",null,null,"x",null,null,null,null,"x",null,"x"]
["Sind eigene oder fremde Montageobjekte in Planung oder in Ausführung?",null,null,null,null,null,null,null,null,null,null,null,null,null,null,"x",null,"x",null,null,null,null,null,null,null,"x",null,null,null,"x"]
["Versenden oder beziehen Sie Waren für die Sie das Transportrisiko als Wareneigentümer tragen?",null,null,null,null,null,null,null,null,null,null,null,null,null,null,null,null,null,null,null,null,null,null,null,null,null,null,null,null,"x"]
[]
["Schlüsselkraft-Ausfall-Risiken"]
["Bestehen Risiken wenn Schlüsselkräfte dauerhaft ausfallen? (Lohnkosten für Interimsmanager, Anwerbung von Nachfolgern etc.)",null,null,null,null,null,null,null,"x","x"]
[]
["Ertragsausfall-Risiken"]
["Ist  mit Projekt- und Auftragsausfällen zu rechnen, wenn Schlüsselkräfte dauerhaft ausfallen?",null,null,null,null,null,null,null,"x","x"]
["Sind finanzielle Schäden, die durch Betriebsunterbrechung ausgelöst werden, denkbar?",null,null,null,null,null,null,null,"x","x"]
["Sind Mietausfälle aus vermieteten Gebäuden/Räumlichkeiten abzusichern?",null,null,null,null,null,null,null,null,null,null,null,null,null,null,null,null,null,null,null,null,null,null,null,"x"]
["Ist eine Betriebsschließung durch die Behörden auf Grund von Seuchengefahr denkbar?",null,null,null,null,null,null,"x"]
[]
["Ausfall-/Erpressungs-/Unterschlagungs-Risiken"]
["Ist eine Schädigung des Unternehmens durch interne oder externe Personen denkbar?",null,null,null,null,null,null,null,null,null,null,null,null,null,null,null,null,null,null,null,null,null,null,null,null,null,null,null,null,null,null,null,"x"]
["Stellen Sie Bürgschaften oder sonst. Sicherheiten?",null,null,null,null,null,null,null,null,null,null,null,null,null,null,null,null,"x"]
["Sind Zahlungsausfälle Ihrer Kunden denkbar?",null,null,null,null,null,null,null,null,null,null,null,null,null,null,null,null,null,null,null,null,"x"]
[]
["Haftungs-Risiken"]
["Sind Sie Schadenersatzrisiken ausgesetzt aus:"]
[" - Betrieb / Mitarbeiter",null,null,null,null,null,null,null,null,null,null,null,null,null,null,"x",null,null,null,null,null,null,null,null,null,null,null,"x"]
[" - Produkte / Dienstleistungen",null,null,null,null,null,null,null,null,null,null,null,null,null,null,"x",null,null,null,null,null,null,null,null,null,null,"x","x"]
[" - Umweltgefährdungen / Biodiversität",null,null,null,null,null,null,null,null,null,null,null,null,null,null,"x",null,null,null,null,null,null,null,null,null,null,null,"x"]
[" - Organhaftung",null,null,null,null,null,null,null,null,null,null,"x",null,null,null,null,null,null,null,null,null,null,null,null,null,null,null,"x","x"]
["- im Zusammenhang mit der Verletzung von Datenschutzgesetzen",null,null,null,null,null,null,null,null,null,"x"]
["- im Zusammenhang mit der Verletzung von Geheimhaltungspflichten",null,null,null,null,null,null,null,null,null,"x",null,null,null,null,null,null,null,null,null,null,null,null,null,null,null,null,null,null,null,null,null,"x"]
["- gewerblichem Güterverkehr",null,null,null,null,null,null,null,null,null,null,null,null,null,null,null,null,null,null,"x",null,null,null,null,null,null,null,"x",null,null,null,"x"]
[]
["Kosten-Risiken"]
["Sind Kostenrisiken aus  rechtlichen Auseinandersetzungen denkbar?",null,null,null,null,null,null,null,null,null,null,null,null,null,null,"x",null,null,null,null,null,null,null,null,null,null,null,"x"]
[]
["Vorsorge-Risiken"]
["Bestehen Pensionsverpflichtungen?",null,null,null,null,"x"]
["Risiken aus betrieblicher Altersversorgung und Personenabsicherung?",null,null,null,null,"x","x",null,null,null,null,null,null,null,null,null,null,null,null,null,"x",null,null,null,null,null,null,null,null,null,"x"]
[]
["Entsendungs- und Dienstreise-Risiken"]
["Sind Entsendungs- und Dienstreiserisiken vorhanden?",null,null,null,null,null,null,null,null,null,null,null,null,null,null,"x",null,null,null,"x","x",null,null,null,null,null,null,null,null,"x","x"]
[]
["Für den Kunden ermittelte Risiken"]

{"sheet":"Allg.Daten","index":3,"n_rows":34,"n_cols":10,"rows_kept":34,"cut":false,"hidden":false,"merged":[[24,10,24,14],[27,2,27,9],[24,0,24,9],[25,6,25,9],[29,8,29,9],[22,5,22,6],[22,7,22,9],[30,8,30,9],[31,3,31,5],[32,3,32,5],[32,6,32,7],[31,6,31,7],[31,8,31,9],[21,10,21,14],[12,2,12,4],[12,6,12,9],[20,1,20,9],[18,1,18,9],[21,1,21,9],[19,1,19,9],[17,2,17,4],[17,6,17,9],[30,1,33,1],[30,2,33,2],[30,3,30,5],[28,2,28,9],[26,2,26,9],[30,6,30,7],[33,6,33,7],[32,8,32,9],[33,8,33,9],[33,3,33,5],[0,1,0,4],[23,1,23,9],[25,2,25,4],[29,3,29,5],[6,0,6,9],[14,1,14,9],[15,1,15,9],[9,1,9,9],[7,1,7,9],[10,1,10,9],[11,1,11,9],[13,1,13,9],[16,1,16,9],[8,1,8,9],[29,0,33,0],[29,6,29,7]]}
["Risikoanalyse von:",{"$f":"IF(Allg.Daten!B8=\"\",\"\",Allg.Daten!B8)","v":""}]
[]
[]
[]
[]
[]
["Risikosituation des Unternehmens"]
["Firmenname inkl. Gesellschaftsform"]
["Gesellschafterstruktur"]
["Gründungsdatum"]
["Geschäftsführer"]
["Ansprechpartner"]
["Anschrift","Straße",null,null,null,"PLZ/Ort"]
["Telefon"]
["Telefax"]
["E-Mail"]
["Webseite"]
["Bankverbindung","IBAN",null,null,null,"BIC"]
["Mit-Versicherungsnehmer, Tochtergesellschaften, \nverbundene Unternehmen"]
["Branche/n"]
["Detailierte Betriebsbeschreibung (auch nicht branchenübliche Tätigkeiten)"]
["Weitere Versicherungsorte/ \nBetriebsstätten inkl. der \nBetriebsart (Lager/ Büro etc.)"]
["ISO-Zertifizierung nach 9000 ff","nein",null,"ja",null,"Zertifikate bitte beifügen"]
["Verbandsmitgliedschaften"]
["Allgemeine Unternehmensinformationen"]
["Bruttojahresumsatz gem. § 277 HGB","Vorjahr",null,null,null,"lfd. Jahr"]
["Waren- und Materialeinsatz","Jahr"]
["Rohertrag (Jahreswert)","Jahr"]
["Lohn- und Gehaltssumme","Jahr"]
["Anzahl tätiger Personen\n(ohne Gesellschaftergeschäftsführer)","Vollzeit","Teilzeit","davon",null,null,"Vollzeit","Teilzeit","Teilzeit","Teilzeit"]
[null,null,null,"kaufmännische Mitarbeiter"]
[null,null,null,"gewerbliche Mitarbeiter"]
[null,null,null,"Auszubildende"]
[null,null,null,"geringfügig Beschäftige"]

{"sheet":"Übersicht","index":4,"n_rows":61,"n_cols":4,"rows_kept":61,"cut":false,"hidden":true,"merged":[[0,1,0,4],[1,0,1,3],[58,0,58,3],[52,0,52,3],[3,0,3,3],[43,0,43,3],[19,0,19,3],[38,0,38,3],[31,0,31,3]]}
["Risikoanalyse von:",{"$f":"IF(Allg.Daten!B8=\"\",\"\",Allg.Daten!B8)","v":""}]
["Übersicht Firmenversicherungen und Risiken"]
["Risikofeld","vorhanden","Angebot\ngewünscht","Bemerkungen"]
["Haftpflicht und Recht"]
["Betriebs-, Produkt- und Umwelthaftpflicht","¨","¨"]
["Rückrufkosten- und Produktschutz","¨","¨"]
["Haus- und Grundbesitzerhaftpflicht","¨","¨"]
["Bauherrenhaftpflicht","¨","¨"]
["Berufs- und Vermögensschadenhaftpflicht","¨","¨"]
["D&O","¨","¨"]
["Deckungsklage-Rechtsschutz / Vermögensschaden-Rechtsschutz","¨","¨"]
["Cyber","¨","¨"]
["Rechtsschutz","¨","¨"]
["Vertragsrechtsschutz","¨","¨"]
["Spezial-Strafrechtsschutz","¨","¨"]
["Veranstaltungshaftpflicht","¨","¨"]
["Veranstaltungsausfall","¨","¨"]
["Frachtführer- und Speditionshaftpflicht","¨","¨"]
["Vertrauensschaden","¨","¨"]
["Sachversicherungen"]
["Inhalt","¨","¨"]
["Betriebsunterbrechung/Mehrkosten","¨","¨"]
["Betriebs- und Praxisausfall","¨","¨"]
["Gebäude","¨","¨"]
["Elementar","¨","¨"]
["Terror (Gebäude über 25 Mio. € Versicherungssumme)","¨","¨"]
["Glas","¨","¨"]
["Elektronik/Elektronik BU","¨","¨"]
["Maschinen/Maschinen BU","¨","¨"]
[]
["Risikofeld","vorhanden","Angebot\ngewünscht","Bemerkungen"]
["Sachversicherungen"]
["Solar und Photovoltaik inkl. Ertragsausfall \nund Betreiberhaftpflicht","¨","¨"]
["Bauleistung","¨","¨"]
["Montage","¨","¨"]
["Transport","¨","¨"]
["Reisegepäck","¨","¨"]
["Messe/Ausstellung","¨","¨"]
["Kfz-Risiken"]
["Kfz/Flotte","¨","¨"]
["Kfz-Rechtsschutz","¨","¨"]
["Autoinhalt","¨","¨"]
["Dienstreise-Kasko","¨","¨"]
["Personenversicherungen"]
["Gruppenunfall","¨","¨"]
["Betriebliche Altersversorgung (bAV)","¨","¨"]
["Betriebliches Gesundheitsmanagement (bGM)","¨","¨"]
["Auslandsreisekranken","¨","¨"]
["Lohnfortzahlung","¨","¨"]
["Kidnap & Ransom/Krisenmanagement","¨","¨"]
["Ausfall von Schlüsselkräften (Keyman)","¨","¨"]
["Risikofeld","vorhanden","Angebot\ngewünscht","Bemerkungen"]
["Kredit- und Bürgschaftsversicherungen"]
["Kredit/Forderungsausfall","¨","¨"]
["Bürgschaft (Mietkaution, Aval, Baubürgschaft etc.)","¨","¨"]
["Factoring","¨","¨"]
["Leasing","¨","¨"]
["Mindeslohngesetz (MiLoG)","¨","¨"]
["Sonstiges"]
["\n","¨","¨"]
["\n","¨","¨"]

{"sheet":"BHV","index":5,"n_rows":42,"n_cols":9,"rows_kept":42,"cut":false,"hidden":true,"merged":[[15,0,16,0],[13,0,14,0],[11,0,12,0],[21,0,24,0],[21,3,21,9],[22,1,22,2],[24,1,24,5],[22,4,22,5],[22,7,22,8],[21,1,21,2],[23,1,23,5],[17,5,17,9],[14,3,14,9],[16,3,16,9],[16,1,16,2],[9,1,9,9],[13,5,13,9],[14,1,14,2],[15,5,15,9],[12,1,12,2],[12,3,12,9],[10,5,10,6],[10,7,10,9],[31,1,31,2],[31,7,31,8],[31,4,31,6],[28,5,28,9],[30,5,30,9],[29,6,29,9],[27,1,27,9],[18,1,18,9],[19,5,19,6],[19,7,19,9],[20,1,20,9],[26,6,26,7],[26,1,26,5],[26,8,26,9],[32,0,37,0],[32,2,32,5],[32,6,32,9],[33,2,33,5],[33,6,33,9],[34,2,34,5],[34,6,34,9],[35,2,35,5],[35,6,35,9],[36,2,36,5],[41,3,41,4],[41,5,41,6],[41,8,41,9],[36,6,36,9],[37,2,37,5],[37,6,37,9],[38,1,38,9],[39,1,39,9],[40,1,40,9],[0,1,0,4],[1,0,1,9],[2,0,2,9],[11,1,11,2],[11,3,11,9],[3,0,6,0],[4,1,4,2],[3,5,3,9],[4,3,4,9],[8,0,9,0],[5,1,5,2],[6,1,6,2],[6,3,6,9],[7,1,7,9],[5,3,5,9],[8,5,8,9]]}
["Risikoanalyse von:",{"$f":"IF(Allg.Daten!B8=\"\",\"\",Allg.Daten!B8)","v":""}]
["Haftpflichtversicherung"]
["Betriebshaftpflicht"]
["Sollen weitere Unternehmen im Vertrag berücksichtig werden? ","nein:",null,"ja: "]
[null,"Name, Rechtsform,\nAnschrift"]
[null,"Betriebsstätten und Art\n(Lager, Niederlassung etc.)"]
[null,"Umsatzanteil vom Gesamtumsatz"]
["Gibt es Unternehmen im Ausland ?","Hierzu bitte Fragebogen Auslandsrisiken ergänzend ausfüllen"]
["Werden Produkte hergestellt, gehandelt oder aus Staaten außerhalb der EU importiert oder untereigenem Namen verkauft?","nein:",null,"ja: "]
[null,"Hierzu bitte Fragebogen erweitere Produkthaftpficht ergänzend ausfüllen"]
["Werden Montagen/Service-/Wartungsleistungen durchgeführt?\n(sofern im Ausland, Auslandsfragebogen)","nein:",null,"ja: ",null,"Umsatzanteil der reinen Montageleistungen: "]
["Erfolgt der Einsatz von Subunternehmern\n(sofern im Ausland, Auslandsfragebogen)","Umsatzanteil: "]
[null,"Genaue Leistungsbeschreibung:"]
["Erfolgt Arbeitnehmerüberlassung nach dem Arbeitnehmerüberlassungsgesetz: ","nein:",null,"ja: "]
[null,"In welcher Umsatzgrößen und Branchen:"]
["Werden von dem Unternehmen Anlagen aus dem Bereich der erneuerbaren Energien betrieben z.B. Photovoltaik, Windenergie etc.","nein:",null,"ja: "]
[null,"Welcher Anlagentyp etc.:\n(ggf. weiterer Fragebogen)"]
["Sind auf dem/den Betriebsgrundstück/en ","nein:",null,"ja: "]
["Heizöl-, Diesel- oder Benzintanks  oder Abscheider, genehmigungspfl. Anlagen vorhanden etc.","Hierzu bitte Fragebogen Umweltrisiken ergänzend ausfüllen"]
["Werden beratende oder planende Tätigkeiten ohne eigen Ausführung (Drittplanungen) durchgeführt?\nTätigkeiten ausgeführt","nein:",null,"ja: ",null,"jährliche Honorarsumme:"]
[null,"ggf. bitte Fragebogen Vermögenschaden ergänzend ausfüllen"]
["Nicht zulassungspflichtige Hub- und \nGabelstabler, Arbeitsmaschinen","Art und Anzahl:"]
[null,"Hiervon bis 6 km/h: ",null,null,"Hiervon bis 20 km/h: ",null,null,"Hiervon über 20 km/h: "]
[null,"Werden die Arbeitsmaschinen außerhalb des/r eigenen Betriebsgrundstücke/s genutzt:",null,null,null,null,"nein:",null,"ja: "]
[null,"Gibt es auf dem/den Betriebsgrundstück/en Bereiche, für die StVO gilt: ",null,null,null,null,"nein:",null,"ja: "]
[]
["Gewünschte Deckungssummen",null,null,null,null,null,"Generelle Selbstbeteiligung"]
["Kundenspezifische Erweiterungen erforderlich"]
["Privathaftpflichtversicherung","nein: ",null,"ja:"]
["Tierhalter-Haftpflicht","nein: ",null,"ja:",null,"Art/Anzahl"]
["Haus- und Grundbesitzerhaftpflicht","nein: ",null,"ja:"]
[null,"vermietet:",null,"Anschrift: ",null,null,null,"Bruttojahresmietwert: "]
["Vorschäden innerhalb der letzten 5 Jahre","Jahr ","Schadenart",null,null,null,"Schadenhöhe"]
[]
[]
[]
[]
[]
["Vorversicherung"]
["Versicherungsscheinnummer"]
["Ablauf des Vertrages"]
["Vertrag wird/wurde gekündigt von","Kunden: ","ja:",null,null,"Versicherer: ",null,"ja: "]

{"sheet":"Auslandsrisiko","index":6,"n_rows":8,"n_cols":8,"rows_kept":8,"cut":false,"hidden":true,"merged":[[5,5,5,9],[12,6,12,9],[9,6,9,9],[12,2,12,5],[7,0,12,0],[7,2,7,5],[7,6,7,9],[8,2,8,5],[8,6,8,9],[9,2,9,5],[6,1,6,9],[10,2,10,5],[10,6,10,9],[11,2,11,5],[11,6,11,9],[0,1,0,4],[1,0,1,9],[2,1,2,2],[2,7,2,8],[2,0,4,0],[3,1,3,2],[3,7,3,8],[4,7,4,8],[4,1,4,2]]}
["Risikoanalyse von:",{"$f":"IF(Allg.Daten!B8=\"\",\"\",Allg.Daten!B8)","v":""}]
["Auslandsrisiko"]
["Auslandsmontagen","Montagen europäisches Ausland",null,"nein:",null,"ja: ",null,"Umsatzanteil in %:"]
[null,"Montagen weltweit excl. USA/Canada",null,"nein:",null,"ja: ",null,"Umsatzanteil in %:"]
[null,"Montagen USA/Canada",null,"nein:",null,"ja: ",null,"Umsatzanteil in %:"]
["Gibt es weitere Betriebsstätten oder \nTochterunternehmen im Ausland: ","nein:",null,"ja: ",null,"Es folgt separater Fragebogen. "]
["Detailierte Tätigkeitsbeschreibung der \nAuslandsniederlassung:"]
["Vorschäden innerhalb der letzten 5 Jahre","Jahr ","Schadenart",null,null,null,"Schadenhöhe"]

{"sheet":"Umweltrisiken","index":7,"n_rows":29,"n_cols":9,"rows_kept":29,"cut":false,"hidden":true,"merged":[[28,3,28,4],[28,5,28,6],[28,8,28,9],[25,1,25,9],[26,1,26,9],[27,1,27,9],[0,1,0,4],[4,1,4,9],[10,3,10,4],[10,5,10,6],[10,7,10,9],[8,8,8,9],[9,8,9,9],[1,0,1,9],[2,6,2,9],[3,5,3,9],[5,5,5,9],[6,0,9,0],[7,2,7,4],[7,5,7,6],[8,2,8,4],[10,1,10,2],[6,2,6,4],[6,5,6,6],[6,8,6,9],[12,2,12,4],[22,6,22,9],[7,8,7,9],[9,2,9,4],[9,5,9,6],[8,5,8,6],[16,1,16,9],[13,6,13,9],[14,6,14,9],[19,5,19,9],[15,5,15,9],[17,5,17,9],[18,5,18,9],[11,0,12,0],[20,0,24,0],[21,2,21,5],[21,6,21,9],[12,5,12,6],[20,2,20,5],[20,6,20,9],[22,2,22,5],[23,2,23,5],[23,6,23,9],[24,2,24,5],[24,6,24,9],[11,6,11,9],[12,7,12,9]]}
["Risikoanalyse von:",{"$f":"IF(Allg.Daten!B8=\"\",\"\",Allg.Daten!B8)","v":""}]
["Umweltrisiken"]
["Besitzverhältnisse der/s Grundstücke/s","Eigentümer",null,"Mieter/ Pächter",null,"Anschrift: "]
["Liegt das Grundstück im Trinkwasser- einzugsgebiet:","nein:",null,"ja: "]
["Seid wann wird die Betriebsart auf dem Grundstück ausgeübt und ggf. vorherige Nutzung:  "]
["Betriebsinhaber seit Beginn: ","nein:",null,"ja: "]
["WHG-Anlagen",null,"Lagerart (z.B. ober-/unterirdische Tankanlage, Heizölverbraucheranlage etc.)",null,null,"Fassungsvermögen in Liter ",null,"Baujahr/Art","letzte Prüfung/ Prüfzeugnis beifügen"]
[null,"Heizöl"]
[null,"Diesel"]
[null,"andere"]
["Kleingebinde","Fassungsvermögen des größten Einzelgebindes in l/kg:",null,null,null,"Gesamtlagerkapazität in l/kg"]
["Koaleszenz-/Öl-/Fettabscheider \nsonstige Abwasseranlage (z.B.Kläranlage)","nein:",null,"ja: ",null,"Anzahl: "]
[null,"Art: ",null,null,null,"Anschaffungs-Einbaujahr:"]
["Anlagen gemäß Anhang 1 und 2 des UmweltHG:","nein:",null,"ja: ",null,"Welche: "]
["Sind deklarierungspflichtige Anlagen  (z.B. BImSchG) vorhanden:","nein:",null,"ja: ",null,"Welche: "]
["Erfolgt die Einleitung von genehmigungspflichtigen Abwässern?","nein:",null,"ja: ",null,"Genehmigungsbescheid und Einleitungmenge pro Tag erforderlich"]
[null,"Bitte vorliegende Bescheide etc. beifügen oder nachreichen"]
["Grunddeckung USV: ","nein:",null,"ja: "]
["Zusatzbaustein 1 inklusive Grundwasser: ","nein:",null,"ja: "]
["Zusatzbaustein 2:","nein:",null,"ja:"]
["Vorschäden innerhalb der letzten 5 Jahre: ","Jahr ","Schadenart",null,null,null,"Schadenhöhe"]
[]
[]
[]
[]
["Vorversicherung: "]
["Versicherungsscheinnummer: "]
["Ablauf des Vertrages: "]
["Vertrag wird/wurde gekündigt von: ","Kunden: ","ja:",null,null,"Versicherer: ",null,"ja: "]

{"sheet":"ProduktHV","index":8,"n_rows":50,"n_cols":9,"rows_kept":50,"cut":false,"hidden":true,"merged":[[49,0,54,0],[49,2,49,5],[52,2,52,5],[49,6,49,9],[50,2,50,5],[50,6,50,9],[51,2,51,5],[51,6,51,9],[52,6,52,9],[53,2,53,5],[54,6,54,9],[54,2,54,5],[53,6,53,9],[48,0,48,9],[42,1,42,4],[42,5,42,9],[27,0,33,0],[34,1,34,5],[35,1,35,5],[34,0,35,0],[30,1,30,5],[47,4,47,9],[45,3,45,4],[45,5,45,9],[43,3,43,4],[43,5,43,9],[44,5,44,9],[45,0,46,0],[46,1,46,2],[46,3,46,9],[39,1,39,5],[40,1,40,5],[41,1,41,5],[39,0,42,0],[0,1,0,4],[1,0,1,9],[36,5,36,9],[38,1,38,9],[37,3,37,5],[37,6,37,9],[23,0,26,0],[25,1,25,4],[2,0,9,0],[23,1,23,2],[23,7,23,8],[24,1,24,2],[24,7,24,8],[2,1,2,9],[6,1,6,9],[8,1,8,9],[26,3,26,9],[33,2,33,9],[29,1,29,9],[26,1,26,2],[27,1,27,5],[28,1,28,5],[31,1,31,5],[32,1,32,5],[3,1,3,6],[3,7,3,8],[7,1,7,6],[7,7,7,8],[16,0,22,0],[21,1,21,9],[16,7,16,9],[17,1,17,2],[18,1,18,2],[9,1,9,9],[17,7,17,8],[18,7,18,8],[19,1,19,2],[19,7,19,8],[22,1,22,9],[20,1,20,9],[4,1,4,9],[5,1,5,9],[10,0,15,0],[10,1,10,2],[10,7,10,9],[11,5,11,9],[12,1,12,2],[12,3,12,9],[13,1,13,5],[14,1,14,2],[14,3,14,9],[15,1,15,2],[15,3,15,9]]}
["Risikoanalyse von:",{"$f":"IF(Allg.Daten!B8=\"\",\"\",Allg.Daten!B8)","v":""}]
["Erweiterte Produkthaftpflicht: "]
["Produktions- und Lieferprogramm","Eigenprodukte (bitte detaillierte Angaben ggf. gesondertes Blatt, Prospekte etc.): "]
[null,null,null,null,null,null,null,"Anteil in % vom Umsatz"]
[]
[]
[null,"Handelsware: "]
[null,null,null,null,null,null,null,"Anteil in % vom Umsatz"]
[]
[]
["Importe","Werden Produkte importiert: ",null,"nein:",null,"ja: "]
[null,"Aus welchen Ländern außerhalb der EU wird importiert: "]
[null,"Anteil am Gesamtumsatz in %: "]
[null,"Werden Produkte unter eigenem Namen (Label) vertrieben: ",null,null,null,null,"nein:",null,"ja: "]
[null,"Welche Produkte: "]
[null,"Anteil am Gesamtumsatz in %: "]
["Export","Werde Produkte exportiert",null,"nein:",null,"ja: "]
[null,"europäisches Ausland",null,"nein:",null,"ja: ",null,"Anteil in % vom Umsatz"]
[null,"weltweit excl. USA/Canada",null,"nein:",null,"ja: ",null,"Anteil in % vom Umsatz"]
[null,"USA/Canada",null,"nein:",null,"ja: ",null,"Anteil in % vom Umsatz*"]
[null,"* genaue Auflistung der Produkte und Einsatzbereiche inkl. evtl. vorhandener Zertifizierung für den US-amerkanischen Markt (z.B. UL-Listing)"]
[]
[]
["Produkte:","Einzelanfertigung :",null,"nein:",null,"ja:",null,"Stückzahl pro Jahr "]
[null,"Serienfertigung",null,"nein:",null,"ja:",null,"Stückzahl pro Jahr "]
[null,"Werden sämtliche Teile selbst hergestellt: ",null,null,null,"nein:",null,"ja:"]
[null,"Welche Teile werden zugeliefert: "]
["Werden die hergestellten/gelieferten \nProdukte ","mit fremden Produkten verbunden, verarbeitet, vermischt: ",null,null,null,null,"nein:",null,"ja:"]
[null,"weiterverarbeitet oder weiterbearbeitet (keine Verbindung/Vermischung)",null,null,null,null,"nein:",null,"ja:"]
[null,"erfolgt ein Einbau der Produkte in: "]
[null,"Maschinen:",null,null,null,null,"nein:",null,"ja:"]
[null,"Luft-, Kraft- und/oder Wasserfahrzeugen: ",null,null,null,null,"nein:",null,"ja:"]
[null,"andere Einsatzbereiche: ",null,null,null,null,"nein:",null,"ja:"]
[null,"Welche: "]
["Verlassen die Produkte den Betrieb als","Fertigfabrikate: ",null,null,null,null,"nein:",null,"ja:"]
[null,"Halbfertigfabrikate: ",null,null,null,null,"nein:",null,"ja:"]
["Gibt es vereinbarte Eigenschaften der Produkte (z.B. geschmacksneutral, wasser-\nundurchlässig):","nein: ",null,"Wenn ja, welche:  "]
["Fertigen oder bearbeiten Sie fremde Erzeugnisse im Lohnauftrag:","nein: ",null,"Wenn ja, welche bzw. in welcher Form und Höhe des Umsatzanteil: "]
["Anteil vom Gesamtumsatz in %: "]
["Erfolgen Kontrollen ","Eingangskontrollen der Vorprodukte ",null,null,null,null,"nein:",null,"ja:"]
[null,"Zwischenkonrtrollen ",null,null,null,null,"nein:",null,"ja:"]
[null,"Ausgangskontrollen",null,null,null,null,"nein:",null,"ja:"]
[null,"Bitte Art der Kontrollen und Dokumentierungen aufgeben"]
["Vergeben Sie Lizenzen:","nein:",null,"Wenn ja, für \nwelche Produkte: "]
["Erfolgt die Lieferung unter Vereinbarung Ihrer Lieferbedingungen:","nein:",null,"ja:",null,"Bitte Kopie beifügten."]
["Werden die gesetzl. Gewährleistungs-\nfristen verlängert:","nein:",null,"Wenn ja, für welche \nProdukte: "]
[null,"Auf welchen Zeitraum\n(Jahre):"]
["Werden abweichende Haftungsvereinbarungen,\n(z.B. § 377 HGB, Freistellungserklärung, Regreßverzicht) getroffen,\nEinschränkung der Haftung mit Zulieferern: ","nein:",null,"ja:"]
["Sofern eine Absicherung  über Rückrufkosten/Produktschutz gewünscht wird, sind separate Fragebögen erforderlich "]
["Vorschäden innerhalb der letzten 5 Jahre","Jahr ","Schadenart",null,null,null,"Schadenhöhe"]

{"sheet":"Produktrückruf","index":9,"n_rows":3,"n_cols":2,"rows_kept":3,"cut":false,"hidden":true,"merged":[[1,0,1,9],[0,1,0,4],[2,0,2,9]]}
["Risikoanalyse von:",{"$f":"IF(Allg.Daten!B8=\"\",\"\",Allg.Daten!B8)","v":""}]
["Produktrückrufkosten"]
["Bitte entnehmen Sie den Fragebogen aus dem BeraterPortal oder sprechen Sie die Fachabteilung an"]

{"sheet":"Kfz-Rückruf","index":10,"n_rows":3,"n_cols":2,"rows_kept":3,"cut":false,"hidden":true,"merged":[[1,0,1,9],[0,1,0,4],[2,0,2,9]]}
["Risikoanalyse von:",{"$f":"IF(Allg.Daten!B8=\"\",\"\",Allg.Daten!B8)","v":""}]
["KFZ-Rückrufkosten"]
["Bitte entnehmen Sie den Fragebogen aus dem BeraterPortal oder sprechen Sie die Fachabteilung an"]

{"sheet":"Produktschutz","index":11,"n_rows":3,"n_cols":2,"rows_kept":3,"cut":false,"hidden":true,"merged":[[1,0,1,9],[0,1,0,4],[2,0,2,9]]}
["Risikoanalyse von:",{"$f":"IF(Allg.Daten!B8=\"\",\"\",Allg.Daten!B8)","v":""}]
["Produktschutz"]
["Bitte entnehmen Sie den Fragebogen aus dem BeraterPortal oder sprechen Sie die Fachabteilung an"]

{"sheet":"BHHV","index":12,"n_rows":9,"n_cols":6,"rows_kept":9,"cut":false,"hidden":true,"merged":[[8,7,8,9],[0,1,0,4],[1,0,1,9],[5,1,5,9],[7,1,7,9],[3,3,3,5],[6,1,6,9],[2,1,2,9],[3,6,3,9],[4,1,4,2],[4,5,4,7],[4,3,4,4],[4,8,4,9]]}
["Risikoanalyse von:",{"$f":"IF(Allg.Daten!B8=\"\",\"\",Allg.Daten!B8)","v":""}]
["Bauherrenhaftpflicht"]
["Deckungssumme"]
["Vertragsdauer","Beginn",null,"Voraussichtliche Fertigstellung"]
["Versicherungsnehmer","Privater Bauherr",null,null,null,"Gewerblicher Bauherr"]
["Risikoanschrift: "]
["Genaue Beschreibung des Bauvorhabens:"]
["Bausumme:"]
["Eigenleistung mitversichern ((eigene Planung/Bauleitung, Leistung etc.)","nein: ",null,"ja",null,"Höhe des Eigenanteils:"]

{"sheet":"BerufsHV","index":13,"n_rows":3,"n_cols":2,"rows_kept":3,"cut":false,"hidden":true,"merged":[[1,0,1,9],[0,1,0,4],[2,0,2,9]]}
["Risikoanalyse von:",{"$f":"IF(Allg.Daten!B8=\"\",\"\",Allg.Daten!B8)","v":""}]
["Berufshaftpflicht"]
["Bitte entnehmen Sie den Fragebogen aus dem BeraterPortal oder sprechen Sie die Fachabteilung an"]

{"sheet":"Vermögensschadenhaftpflicht","index":14,"n_rows":32,"n_cols":9,"rows_kept":32,"cut":false,"hidden":true,"merged":[[5,0,9,0],[5,2,5,5],[5,6,5,9],[6,2,6,5],[10,0,14,0],[9,2,9,5],[9,6,9,9],[6,6,6,9],[7,2,7,5],[7,6,7,9],[8,2,8,5],[8,6,8,9],[13,6,13,9],[14,6,14,9],[10,1,10,5],[11,1,11,5],[2,5,2,6],[2,7,2,9],[1,0,1,9],[3,1,3,9],[4,1,4,9],[2,1,2,4],[30,1,30,9],[31,3,31,4],[31,5,31,6],[31,8,31,9],[23,0,27,0],[23,2,23,5],[23,6,23,9],[24,2,24,5],[24,6,24,9],[25,2,25,5],[25,6,25,9],[26,2,26,5],[26,6,26,9],[27,2,27,5],[27,6,27,9],[10,6,10,9],[11,6,11,9],[12,6,12,9],[28,1,28,9],[29,1,29,9],[17,5,17,7],[18,5,18,7],[16,8,16,9],[12,1,12,5],[13,1,13,5],[14,1,14,5],[17,1,17,2],[18,1,18,2],[16,3,16,4],[17,3,17,4],[18,3,18,4],[19,6,19,9],[15,1,15,2],[15,3,15,4],[15,5,15,7],[15,8,15,9],[16,1,16,2],[16,5,16,7],[0,1,0,4],[17,8,17,9],[18,8,18,9],[19,0,22,0],[19,1,19,2],[20,1,20,2],[21,1,21,2],[22,1,22,2],[19,3,19,5],[20,3,20,5],[21,3,21,5],[22,3,22,5],[20,6,20,9],[21,6,21,9],[22,6,22,9],[15,0,18,0]]}
["Risikoanalyse von:",{"$f":"IF(Allg.Daten!B8=\"\",\"\",Allg.Daten!B8)","v":""}]
["Vermögensschadenhaftpflichtversicherung"]
["Versicherungssumme",null,null,null,null,"Selbstbeteiligung"]
["Branche und Tätigkeitsbeschreibung\n+ Angaben zu Subunternehmern\n+ prozentuale Umsatzaufteilung"]
["Firmengründung"]
["Unternehmenskennzahlen","Umsatz (konsolidiert)","Geschäftsjahr 20__ in €",null,null,null,"Geschäftsjahr 20__ in €"]
[null,"gesamt"]
[null,"EU, EWR, Schweiz"]
[null,"USA/Kanada"]
[null,"Rest der Welt"]
["Tochtergesellschaften","Land",null,null,null,null,"Umsatz "]
[]
[]
[]
[]
["Die 3 größten Verträge/Projekte des VN","Name Kunde",null,"Branche Kunde",null,"Art und Dauer des Vertrags",null,null,"Umsatz"]
[]
[]
[]
["Berufliche Qualifikation der Mitarbeiter\nin Schlüsselfunktionen","Name",null,"Qualifikation",null,null,"Berufserfahrung"]
[]
[]
[]
["Vorschäden innerhalb der letzten 5 Jahre","Jahr ","Schadenart",null,null,null,"Schadenhöhe"]
[]
[]
[]
[]
["Vorversicherung"]
["Versicherungsscheinnummer"]
["Ablauf des Vertrages"]
["Vertrag wird/wurde gekündigt von","Kunden: ","ja:",null,null,"Versicherer: ",null,"ja: "]

{"sheet":"VH-IT","index":15,"n_rows":61,"n_cols":9,"rows_kept":61,"cut":false,"hidden":true,"merged":[[37,1,37,2],[39,1,39,2],[39,3,39,4],[39,5,39,7],[39,8,39,9],[37,3,37,4],[37,5,37,7],[35,1,35,9],[31,0,35,0],[32,1,32,3],[32,5,32,8],[33,1,33,3],[33,5,33,8],[34,1,34,3],[34,5,34,8],[31,1,31,3],[31,5,31,8],[28,1,28,3],[19,6,19,9],[20,0,30,0],[20,1,20,4],[20,5,20,9],[24,1,24,4],[24,5,24,9],[17,6,17,9],[18,1,18,5],[25,1,25,3],[15,0,19,0],[15,1,15,5],[15,6,15,9],[16,1,16,5],[16,6,16,9],[17,1,17,5],[26,1,26,3],[27,1,27,3],[59,1,59,9],[60,3,60,4],[60,5,60,6],[60,8,60,9],[52,0,56,0],[52,2,52,5],[52,6,52,9],[53,2,53,5],[53,6,53,9],[54,2,54,5],[58,1,58,9],[56,6,56,9],[57,1,57,9],[54,6,54,9],[55,2,55,5],[55,6,55,9],[56,2,56,5],[51,3,51,5],[51,6,51,9],[40,0,44,0],[38,8,38,9],[49,6,49,9],[50,1,50,2],[50,3,50,5],[50,6,50,9],[48,0,51,0],[48,1,48,2],[48,3,48,5],[48,6,48,9],[49,1,49,2],[49,3,49,5],[38,1,38,2],[45,0,47,0],[36,0,39,0],[36,1,36,2],[36,3,36,4],[36,5,36,7],[36,8,36,9],[45,1,45,4],[45,5,45,9],[46,1,46,4],[6,2,6,5],[6,6,6,9],[7,2,7,5],[7,6,7,9],[14,1,14,5],[14,6,14,9],[11,1,11,5],[51,1,51,2],[18,6,18,9],[19,1,19,5],[29,5,29,8],[30,1,30,9],[21,1,21,3],[21,5,21,8],[22,1,22,3],[23,1,23,3],[29,1,29,3],[22,5,22,8],[23,5,23,8],[25,5,25,8],[26,5,26,8],[27,5,27,8],[37,8,37,9],[28,5,28,8],[11,6,11,9],[12,1,12,5],[12,6,12,9],[13,1,13,5],[13,6,13,9],[38,3,38,4],[38,5,38,7],[0,1,0,4],[1,0,1,9],[2,1,2,4],[2,5,2,6],[2,7,2,9],[3,1,3,9],[8,2,8,5],[8,6,8,9],[10,6,10,9],[9,2,9,5],[9,6,9,9],[10,0,14,0],[10,1,10,5],[4,1,4,9],[5,0,9,0],[5,2,5,5],[5,6,5,9],[46,5,46,9],[47,1,47,4],[47,5,47,9],[40,1,40,4],[40,5,40,9],[41,1,41,4],[41,5,41,9],[42,1,42,4],[42,5,42,9],[43,1,43,4],[43,5,43,9],[44,1,44,4],[44,5,44,9]]}
["Risikoanalyse von:",{"$f":"IF(Allg.Daten!B8=\"\",\"\",Allg.Daten!B8)","v":""}]
["Vermögensschadenhaftpflichtversicherung für IT-Unternehmen"]
["Versicherungssumme\nggf. Aufteilung nach Personen- und Sachschäden und Vermögensschäden",null,null,null,null,"Selbstbeteiligung"]
["Branche und Tätigkeitsbeschreibung"]
["Firmengründung"]
["Unternehmenskennzahlen","Umsatz (konsolidiert)","Geschäftsjahr 20__ in €",null,null,null,"Geschäftsjahr 20__ in €"]
[null,"gesamt"]
[null,"EU, EWR, Schweiz"]
[null,"USA/Kanada"]
[null,"Rest der Welt"]
["Tochtergesellschaften","Land",null,null,null,null,"Umsatz "]
[]
[]
[]
[]
["sonstige verbundene Unternehmen","Name, Firmierung, Anschrift, Art der Verbindung",null,null,null,null,"Umsatz "]
[]
[]
[]
[]
["Tätigkeitsbereich\n(Bitte geben Sie den Anteil des jeweiligen\nTätigkeitsbereiches in % vom Gesamt-\numsatz an)","Hardware",null,null,null,"Software"]
[null,"Herstellung",null,null,null,"Herstellung"]
[null,"Vertrieb, Handel",null,null,null,"Vertrieb, Handel"]
[null,"Installation, Wartung, Integration, Modifizierung",null,null,null,"Installation, Wartung, Integration, Modifizierung"]
[null,"Services",null,null,null,"Web"]
[null,"Cloud Computing Solutions",null,null,null,"Betreiben von Social Networking Sites"]
[null,"Betreiben von Telekommunikations- oder Rechenzentren",null,null,null,"Betreiben von Suchmaschinen"]
[null,"Leistungen im Bereich Atom-, Wehr- oder Militärtechnik",null,null,null,"Betreiben von Auktionsseiten"]
[null,"Leistungen im Bereich Luft-, Raumfahrttechnik",null,null,null,"Web-Design"]
[null,"Direktmarketing",null,null,null,"Betreiben einer Handelsplattform (E-Commerce)"]
[null,"Andere Tätigkeitsbereiche:"]
["Einsatzbereiche\n","Expertensysteme Banken und Versicherungen",null,null,null,"Kfz-Konstruktion/-Produktion"]
[null,"Produktionssteuerung, Prozesskontrolle, Embedded Systems",null,null,null,"Medizin- und Labortechnik"]
[null,"Gepäckbeförderungssysteme für Flughäfen",null,null,null,"Verkehrsleittechnik"]
[null,"Sicherheitssysteme in Form von z. B. Zutrittskontrollen",null,null,null,"Entertainment-Software (Spiele, Klingeltöne, Apps etc.)"]
[null,"Andere Einsatzbereiche:"]
["Die 3 größten Verträge/Projekte des VN","Name Kunde",null,"Branche Kunde",null,"Art und Dauer des Vertrags",null,null,"Umsatz "]
[]
[]
[]
["Subunternehmer","Wie viel % des Umsatzes wird an Subunternehmer vergeben?\n"]
[null,"Für welche Arbeiten werden Subunternehmer eingesetzt?:\n"]
[null,"Nach welchen Kriterien werden Subunternehmer ausgesucht?\n"]
[null,"Wie kontrollieren Sie Subunternehmer?\n"]
[null,"Stellen Sie sicher, dass die Subunternehmer eine eigene Vermögensschadenhaftpflichtversicherung haben?\n"]
["Auftragsabwicklung","Bestehen Kapitalverflechtungen mit Abnehmern Ihrer Leistungen? Falls ja, bitte erläutern."]
[null,"Verwenden Sie immer AGB (ggf. beilegen)?"]
[null,"Überprüft ein externer Rechtsanwalt alle Verträge, Vereinbarungen, Produkt- und Leistungsbroschüren sowie Werbematerialien vor Herausgabe?\nFalls nein, bitte begründen."]
["Berufliche Qualifikation der Mitarbeiter\nin Schlüsselfunktionen","Name",null,"Qualifikation",null,null,"Berufserfahrung"]
[]
[]
[]
["Vorschäden innerhalb der letzten 5 Jahre","Jahr ","Schadenart",null,null,null,"Schadenhöhe"]
[]
[]
[]
[]
["Vorversicherung"]
["Versicherungsscheinnummer"]
["Ablauf des Vertrages"]
["Vertrag wird/wurde gekündigt von","Kunden: ","ja:",null,null,"Versicherer: ",null,"ja: "]

{"sheet":"DuO","index":16,"n_rows":36,"n_cols":8,"rows_kept":36,"cut":false,"hidden":true,"merged":[[26,1,26,9],[1,0,1,9],[3,1,3,9],[5,1,5,9],[24,1,24,9],[25,1,25,9],[2,1,2,4],[2,5,2,6],[2,7,2,9],[6,0,13,0],[14,0,18,0],[14,1,14,5],[14,6,14,9],[15,1,15,5],[15,6,15,9],[16,1,16,5],[27,0,31,0],[27,2,27,5],[28,2,28,5],[29,2,29,5],[32,1,32,9],[29,6,29,9],[30,2,30,5],[30,6,30,9],[31,2,31,5],[31,6,31,9],[28,6,28,9],[27,6,27,9],[33,1,33,9],[34,1,34,9],[35,3,35,4],[35,5,35,6],[35,8,35,9],[16,6,16,9],[17,1,17,5],[17,6,17,9],[18,1,18,5],[18,6,18,9],[6,1,6,3],[7,1,7,3],[8,1,8,3],[12,1,12,3],[13,1,13,3],[9,1,9,3],[10,1,10,3],[11,1,11,3],[6,4,6,6],[7,4,7,6],[8,4,8,6],[12,4,12,6],[13,4,13,6],[9,4,9,6],[10,4,10,6],[11,4,11,6],[12,7,12,9],[13,7,13,9],[9,7,9,9],[10,7,10,9],[11,7,11,9],[0,1,0,4],[4,1,4,9],[19,0,23,0],[19,1,19,5],[19,6,19,9],[20,1,20,5],[20,6,20,9],[21,1,21,5],[21,6,21,9],[22,1,22,5],[22,6,22,9],[23,1,23,5],[23,6,23,9],[6,7,6,9],[7,7,7,9],[8,7,8,9]]}
["Risikoanalyse von:",{"$f":"IF(Allg.Daten!B8=\"\",\"\",Allg.Daten!B8)","v":""}]
["D&O-Versicherung"]
["Versicherungssumme",null,null,null,null,"Selbstbeteiligung"]
["Branche/Tätigkeit/Vereins-/\nStiftungszweck"]
["Anzahl und Namen der\nVorstände einer AG"]
["Firmengründung"]
["Unternehmenskennzahlen","konsolidierte Kennzahlen",null,null,"Geschäftsjahr 20__ in €",null,null,"Geschäftsjahr 20__ in €"]
[null,"Bilanzsumme"]
[null,"kurzfristige Forderungen + Kasse"]
[null,"Eigenkapital"]
[null,"kurzfristige Verbindlichkeiten"]
[null,"Umsatz"]
[null,"Ergebnis gewöhnliche Geschäftstätigkeit"]
[null,"Jahresergebnis"]
["Tochtergesellschaften","Land",null,null,null,null,"Umsatz "]
[]
[]
[]
[]
["Beteiligungsverhältnisse","Anteilseigner/Gesellschafter",null,null,null,null,"Beteiligungsquote in %"]
[]
[]
[]
[]
["Falls Unternehmensanteile an einer\nBörse gehandelt werden oder dies geplant ist, bitte Detailangaben machen."]
["Falls Veränderungen des Unternehmenszwecks oder der Gesellschaftsstruktur geplant sind, \nbitte Detailangaben machen."]
["Falls in den letzten 5 Jahren Dienstverhältnisse mit versicherten Personen beendet worden, bitte Detailangaben machen."]
["Vorschäden innerhalb der letzten 5 Jahre","Jahr ","Schadenart",null,null,null,"Schadenhöhe"]
[]
[]
[]
[]
["Vorversicherung"]
["Versicherungsscheinnummer"]
["Ablauf des Vertrages"]
["Vertrag wird/wurde gekündigt von","Kunden: ","ja:",null,null,"Versicherer: ",null,"ja: "]

{"sheet":"Cyber","index":17,"n_rows":32,"n_cols":8,"rows_kept":32,"cut":false,"hidden":true,"merged":[[10,6,10,9],[11,1,11,9],[26,1,26,9],[27,1,27,9],[15,1,15,9],[16,1,16,9],[19,1,19,9],[17,1,17,9],[18,1,18,9],[21,2,21,5],[21,6,21,9],[22,2,22,5],[22,6,22,9],[24,2,24,5],[24,6,24,9],[25,1,25,9],[6,0,10,0],[20,2,20,5],[20,6,20,9],[20,0,24,0],[2,1,2,4],[2,5,2,6],[2,7,2,9],[5,1,5,9],[6,1,6,5],[6,6,6,9],[8,1,8,5],[8,6,8,9],[9,1,9,5],[9,6,9,9],[14,1,14,9],[10,1,10,5],[0,1,0,4],[30,1,30,9],[31,3,31,4],[31,5,31,6],[31,8,31,9],[23,2,23,5],[23,6,23,9],[28,1,28,9],[29,1,29,9],[1,0,1,9],[3,1,3,9],[4,1,4,9],[12,1,12,9],[13,1,13,9],[7,1,7,5],[7,6,7,9]]}
["Risikoanalyse von:",{"$f":"IF(Allg.Daten!B8=\"\",\"\",Allg.Daten!B8)","v":""}]
["Cyberversicherung"]
["Versicherungssumme",null,null,null,null,"Selbstbeteiligung"]
["Branche/Tätigkeit: "]
["Firmengründung"]
["Umsatz in €"]
["Tochtergesellschaften","Land",null,null,null,null,"Umsatz "]
[]
[]
[]
[]
["Falls die Tätigkeiten von Tochtergesell-schaften vom Kerngeschäft der Mutter-gesellschaft abweichen, bitten wir um nähere Erläuterungen."]
["Outsourcing:\nFalls Prozesse an externe Dienstleister\nausgelagert werden, bitten wir um nähere Erläuterungen (z. B. Cloud, Zahlungsabwicklungsdienste etc.)"]
["Kreditkarten, Zahlungsdaten:\nFalls bargeldlose Zahlungen (insb. Kreditkartenzahlungen) akzeptiert/\nverarbeitet - wenn auch nur kurzfristig - werden, bitten wir um nähere Erläuterungen.\n\nFinden die Payment Card Industry Data Security Standards (PCI DSS) Anwendung?"]
["Nutzen Sie eine Anti-Virus-Software\nmit regelmäßigem Update?"]
["Nutzen Sie eine Firewall\nmit regelmäßigem Update?"]
["Sind auf dem Netzwerk gespeicherte Daten verschlüsselt?"]
["Werden Daten bei der elektronischen Kommunikation verschlüsselt?"]
["Werden Daten auf mobilen Geräten\n(z. B. Laptops) oder auf mobilen\nDatenträgern (z. B. USB-Sticks)\nverschlüsselt?"]
["Existiert eine schriftliche Datenschutzrichtlinie?"]
["Vorschäden innerhalb der letzten 5 Jahre","Jahr ","Schadenart",null,null,null,"Schadenhöhe"]
[]
[]
[]
[]
["Gab es jemals Ereignisse, die zu einem Cyberschaden führten oder hätten führen können (z. B. Datenrechtsver-letzung / Datenverlust, Hackerangriff, Angriffe durch eigene Mitarbeiter, etc.)?\nFalls ja, bitte erläutern."]
["Sind Ihnen Umstände bekannt, die zu einem Cyberschaden führen könnten (z. B. Datenrechtsverletzung / Datenverlust, Hackerangriff, Angriffe durch eigene Mitarbeiter, etc.)?\nFalls ja, bitte erläutern."]
["Hatten Sie jemals Berührungspunkte mit Behörden im Zusammenhang mit Datensicherheit?\nFalls ja, bitte erläutern."]
["Vorversicherung"]
["Versicherungsscheinnummer"]
["Ablauf des Vertrages"]
["Vertrag wird/wurde gekündigt von","Kunden: ","ja:",null,null,"Versicherer: ",null,"ja: "]

{"sheet":"RS","index":18,"n_rows":19,"n_cols":8,"rows_kept":19,"cut":false,"hidden":true,"merged":[[10,6,10,9],[10,0,14,0],[1,0,1,9],[2,5,2,9],[3,5,3,9],[6,5,6,9],[7,5,7,9],[5,5,5,9],[4,5,4,9],[8,1,8,9],[0,1,0,4],[18,3,18,4],[18,5,18,6],[18,8,18,9],[11,2,11,5],[11,6,11,9],[12,2,12,5],[12,6,12,9],[13,2,13,5],[13,6,13,9],[14,2,14,5],[14,6,14,9],[15,1,15,9],[16,1,16,9],[17,1,17,9],[10,2,10,5]]}
["Risikoanalyse von:",{"$f":"IF(Allg.Daten!B8=\"\",\"\",Allg.Daten!B8)","v":""}]
["Rechtsschutz"]
["Gewünscht: ","nein: ",null,"ja:"]
["Firmen-Rechtsschutz (inkl. Arbeits-RS): ","nein: ",null,"ja:"]
["Immobilien-Rechtsschutz: \n(nicht Vermietung)","nein: ",null,"ja:"]
["Verkehrs-Rechtsschutz:","nein: ",null,"ja:"]
["Spezial-Straf-Rechtsschutz:","nein: ",null,"ja:"]
["Firmen-Vertrags-Rechtsschutz.","nein: ",null,"ja:"]
["Umsatz:",{"$f":"IF(Allg.Daten!G26=\"\",\"\",Allg.Daten!G26)","v":""}]
["Mitarbeiter:","Vollzeit:",{"$f":"IF(Allg.Daten!B31=\"\",\"\",Allg.Daten!B31)","v":""},"Teilzeit:",{"$f":"IF(Allg.Daten!C31=\"\",\"\",Allg.Daten!C31)","v":""}]
["Vorschäden innerhalb der letzten 5 Jahre: ","Jahr ","Schadenart",null,null,null,"Schadenhöhe"]
[]
[]
[]
[]
["Vorversicherung: "]
["Versicherungsscheinnummer: "]
["Ablauf des Vertrages: "]
["Vertrag wird/wurde gekündigt von: ","Kunden: ","ja:",null,null,"Versicherer: ",null,"ja: "]

{"sheet":"VeranstaltungsHV","index":19,"n_rows":11,"n_cols":9,"rows_kept":11,"cut":false,"hidden":true,"merged":[[6,1,6,9],[7,1,7,2],[7,5,7,9],[0,1,0,4],[8,1,8,2],[8,5,8,9],[1,0,1,9],[7,0,10,0],[10,2,10,3],[9,1,9,2],[9,5,9,9],[2,1,2,4],[2,5,2,6],[2,7,2,9],[3,1,3,9],[4,1,4,9],[5,1,5,9]]}
["Risikoanalyse von:",{"$f":"IF(Allg.Daten!B8=\"\",\"\",Allg.Daten!B8)","v":""}]
["Veranstaltungshaftpflicht"]
["Versicherungssumme",null,null,null,null,"Selbstbeteiligung"]
["Art der Veranstaltung:"]
["Ort der Veranstaltung:"]
["Dauer (inkl. Auf- und Abbautage):"]
["Anzahl der Teilnehmer\n(Besucher und Mitwirkende):"]
["Zusatzrisiken:","Tribünen mit eigenem Auf-/Abbau:",null,"Anzahl: "]
[null,"Hüpfburgen:",null,"Anzahl: "]
[null,"Feuerwerke:",null,"Anzahl: "]
[null,"Garderobe:  ","Höchstentschädigung je\nGarderobenschein/ -marke: ",null,1000,null,1500,null,2500]

{"sheet":"Veranstaltungsausfall","index":20,"n_rows":36,"n_cols":9,"rows_kept":36,"cut":false,"hidden":true,"merged":[[2,1,2,4],[2,5,2,6],[2,7,2,9],[4,5,4,9],[7,5,7,9],[29,6,29,9],[28,6,28,9],[27,6,27,9],[20,0,21,0],[21,1,21,2],[21,3,21,9],[22,0,23,0],[23,1,23,2],[23,3,23,9],[20,5,20,9],[22,5,22,9],[25,0,26,0],[25,5,25,9],[26,1,26,2],[26,3,26,9],[24,5,24,9],[8,0,9,0],[16,6,16,9],[16,4,16,5],[16,1,16,3],[15,1,15,3],[15,4,15,5],[15,6,15,9],[10,6,10,9],[11,5,11,9],[9,1,9,5],[13,8,13,9],[8,5,8,9],[14,5,14,9],[15,0,19,0],[35,3,35,4],[35,5,35,6],[35,8,35,9],[1,0,1,9],[3,1,3,9],[5,1,5,9],[6,1,6,9],[27,0,31,0],[27,2,27,5],[28,2,28,5],[29,2,29,5],[30,2,30,5],[31,2,31,5],[10,0,11,0],[12,5,12,9],[13,1,13,2],[0,1,0,4],[32,1,32,9],[33,1,33,9],[34,1,34,9],[13,4,13,5],[19,1,19,3],[19,4,19,5],[19,6,19,9],[17,1,17,3],[17,4,17,5],[17,6,17,9],[18,1,18,3],[18,4,18,5],[18,6,18,9],[31,6,31,9],[30,6,30,9]]}
["Risikoanalyse von:",{"$f":"IF(Allg.Daten!B8=\"\",\"\",Allg.Daten!B8)","v":""}]
["Veranstaltungsausfallversicherung"]
["Versicherungssumme",null,null,null,null,"Selbstbeteiligung"]
["Art und Bezeichnung der Veranstaltung:"]
["Ist die Veranstaltung Teil einer \nVeranstaltungsserie oder Tour?","nein: ",null,"ja",null,"Welche: "]
["Ort der Veranstaltung:"]
["Termin und Dauer:"]
["Grunddeckung (Abbruch- oder \nAusfall z.B. durch Stromausfall):","nein: ",null,"ja"]
["Handelt es sich um eine \nOpen-Air-Veranstaltung","nein: ",null,"ja"]
[null,"Wenn ja, ist die Bühne oder Bereich für den Künstler überdacht",null,null,null,null,"nein:",null,"ja: "]
["Sind Sie länger als 3 Jahre als \nVeranstalter tätig?","nein: ",null,"ja"]
[null,"Wenn nein, welche Erfahrung haben Sie bisher: "]
["Haben Sie die notwendigen Lizenen,\nVisa und sonstige Genehmigungen erhalten? ","nein: ",null,"ja"]
["Welche Kosten sollen versichert werden","Örtliche Kosten",null,null,"Gage der Künstler",null,null,"Gewinn"]
["Personenausfalldeckung (Ausfall aufgrund von Krankheit, Unfall oder Tod der Risikoperson):","nein: ",null,"ja"]
["Welche Personen sollen versichert werden","Name",null,null,"Geburtstag",null,"Funktion"]
[]
[]
[]
[]
["Hat eine der zu versichernden Personen\nfrüher zu einem Ausfallschaden beigetragen","nein: ",null,"ja"]
[null,"Wenn ja, bitte erläutern: "]
["Leiden die zu versichernden Personen unter körperlichen, psychischen oder sonstigen gesundheitl. Problemen ","nein: ",null,"ja"]
[null,"Wenn ja, bitte erläutern: "]
["Befinden sich die zu versichernden Personen derzeit in irgendeiner Art von ärztlicher oder sonstiger Behandlung","nein: ",null,"ja"]
["Besteht ein chronisches Leiden ","nein: ",null,"ja"]
[null,"Wenn ja, bitte erläutern: "]
["Vorschäden innerhalb der letzten 5 Jahre: ","Jahr ","Schadenart/-hergang",null,null,null,"Schadenhöhe"]
[]
[]
[]
[]
["Vorversicherung: "]
["Versicherungsscheinnummer: "]
["Ablauf des Vertrages: "]
["Vertrag wird/wurde gekündigt von: ","Kunden: ","ja:",null,null,"Versicherer: ",null,"ja: "]

{"sheet":"VerkehrsHV","index":21,"n_rows":248,"n_cols":10,"rows_kept":248,"cut":false,"hidden":true,"merged":[[100,1,100,2],[100,3,100,9],[101,0,107,0],[101,1,101,2],[102,1,102,2],[103,1,103,2],[104,1,104,2],[105,1,105,2],[101,3,101,9],[106,1,106,9],[74,0,90,0],[93,0,100,0],[93,4,93,6],[94,4,94,6],[95,4,95,6],[96,4,96,6],[93,7,93,8],[94,7,94,8],[95,7,95,8],[96,7,96,8],[97,1,97,9],[98,1,98,9],[87,1,87,4],[87,5,87,8],[88,1,88,4],[88,5,88,8],[89,1,89,4],[89,5,89,8],[85,5,85,8],[86,5,86,8],[78,2,78,4],[79,2,79,4],[99,1,99,6],[99,7,99,8],[82,2,82,4],[83,2,83,4],[84,2,84,4],[85,2,85,4],[86,2,86,4],[82,5,82,8],[83,5,83,8],[84,5,84,8],[90,1,90,4],[90,5,90,8],[74,5,74,8],[75,1,75,4],[75,5,75,8],[76,5,76,8],[77,5,77,8],[78,5,78,8],[79,5,79,8],[80,5,80,8],[81,5,81,8],[74,1,74,3],[80,2,80,4],[81,2,81,4],[73,5,73,8],[62,1,62,4],[63,1,63,4],[64,1,64,4],[65,1,65,4],[66,1,66,4],[67,1,67,4],[68,1,68,4],[69,1,69,4],[70,1,70,4],[71,1,71,4],[72,1,72,4],[73,1,73,4],[71,5,71,8],[72,5,72,8],[68,5,68,8],[69,5,69,8],[70,5,70,8],[65,5,65,8],[66,5,66,8],[67,5,67,8],[62,5,62,8],[63,5,63,8],[64,5,64,8],[42,0,59,0],[60,0,60,9],[61,1,61,3],[61,5,61,8],[61,0,73,0],[54,1,54,3],[54,5,54,8],[55,1,55,3],[55,5,55,8],[51,1,51,3],[51,5,51,8],[52,1,52,3],[52,5,52,8],[53,1,53,3],[53,5,53,8],[48,1,48,3],[48,5,48,8],[49,1,49,3],[49,5,49,8],[50,1,50,3],[50,5,50,8],[44,1,44,3],[45,1,45,3],[46,1,46,3],[47,1,47,3],[42,5,42,8],[43,5,43,8],[44,5,44,8],[45,5,45,8],[46,5,46,8],[47,5,47,8],[2,0,2,9],[0,1,0,4],[4,1,4,2],[42,1,42,3],[43,1,43,3],[5,1,5,3],[5,4,5,7],[5,8,5,9],[5,0,9,0],[6,1,6,3],[7,1,7,3],[8,1,8,3],[9,1,9,3],[6,4,6,7],[7,4,7,7],[8,4,8,7],[9,4,9,7],[6,8,6,9],[7,8,7,9],[8,8,8,9],[9,8,9,9],[10,2,10,3],[10,5,10,9],[11,0,15,0],[11,1,11,2],[12,1,12,2],[13,1,13,2],[14,1,14,2],[15,1,15,2],[11,3,11,4],[12,3,12,4],[13,3,13,4],[14,3,14,4],[11,5,11,7],[12,5,12,7],[13,5,13,7],[14,5,14,7],[11,8,11,9],[12,8,12,9],[13,8,13,9],[14,8,14,9],[15,3,15,4],[15,5,15,7],[15,8,15,9],[16,1,16,9],[17,0,18,0],[17,1,18,1],[17,2,18,2],[17,5,17,6],[18,5,18,6],[17,7,17,8],[18,7,18,8],[17,3,18,4],[32,1,32,3],[33,1,33,3],[34,1,34,3],[27,1,27,3],[28,1,28,3],[29,1,29,3],[30,1,30,3],[31,1,31,3],[19,0,20,0],[19,1,19,9],[20,2,20,4],[20,7,20,9],[21,0,21,9],[22,1,22,3],[23,1,23,3],[24,1,24,3],[25,1,25,3],[35,1,35,9],[22,0,35,0],[3,5,3,7],[3,8,3,9],[4,7,4,9],[20,5,20,6],[29,6,29,7],[29,8,29,9],[30,4,30,5],[31,4,31,5],[32,4,32,5],[25,4,25,5],[26,4,26,5],[27,4,27,5],[28,4,28,5],[29,4,29,5],[22,4,22,5],[22,6,22,7],[22,8,22,9],[23,4,23,5],[24,4,24,5],[33,4,33,5],[34,4,34,5],[26,1,26,3],[108,0,112,0],[109,1,109,9],[110,1,110,9],[111,1,111,9],[112,4,112,5],[113,0,119,0],[114,2,114,3],[114,4,114,5],[114,7,114,9],[115,2,115,3],[115,4,115,5],[115,7,115,8],[116,2,116,3],[116,4,116,5],[116,7,116,8],[117,2,117,3],[117,4,117,5],[117,7,117,8],[118,2,118,3],[118,4,118,5],[118,7,118,8],[119,2,119,3],[119,4,119,5],[119,7,119,8],[120,0,122,0],[121,3,121,9],[122,1,122,9],[123,0,126,0],[124,2,124,3],[124,4,124,5],[124,7,124,8],[125,4,125,5],[125,7,125,8],[126,4,126,5],[126,6,126,9],[127,0,136,0],[127,3,127,4],[127,7,127,8],[129,3,129,4],[129,7,129,8],[130,3,130,4],[130,7,130,8],[132,3,132,4],[132,7,132,8],[133,3,133,4],[133,7,133,8],[135,1,135,2],[135,3,135,4],[135,7,135,8],[136,1,136,2],[136,3,136,4],[136,7,136,8],[137,0,141,0],[137,1,137,9],[138,1,138,9],[139,1,139,9],[140,1,140,9],[141,1,141,9],[145,0,145,9],[147,0,161,0],[147,1,147,3],[147,5,147,8],[148,1,148,4],[148,5,148,8],[149,5,149,8],[150,5,150,8],[151,2,151,4],[151,5,151,8],[152,2,152,4],[152,5,152,8],[153,2,153,4],[153,5,153,8],[154,2,154,4],[154,5,154,8],[155,2,155,4],[155,5,155,8],[156,2,156,4],[156,5,156,8],[157,2,157,4],[157,5,157,8],[158,2,158,4],[158,5,158,8],[159,2,159,4],[159,5,159,8],[160,1,160,4],[160,5,160,8],[161,1,161,4],[161,5,161,8],[162,0,163,0],[163,3,163,5],[163,8,163,9],[164,0,167,0],[166,1,166,9],[167,1,167,9],[168,0,173,0],[168,3,168,4],[168,6,168,7],[168,8,168,9],[169,3,169,4],[169,6,169,7],[169,8,169,9],[170,3,170,4],[170,6,170,7],[170,8,170,9],[171,3,171,4],[171,6,171,7],[171,8,171,9],[172,3,172,4],[172,6,172,7],[172,8,172,9],[173,3,173,4],[173,6,173,7],[173,8,173,9],[174,0,179,0],[175,7,175,9],[176,7,176,9],[178,7,178,9],[179,7,179,9],[180,0,184,0],[180,1,180,9],[181,1,181,9],[182,1,182,9],[183,1,183,9],[184,1,184,9],[185,6,185,8],[186,0,192,0],[187,2,187,3],[187,4,187,5],[187,7,187,9],[188,2,188,3],[188,4,188,5],[188,7,188,8],[189,2,189,3],[189,4,189,5],[189,7,189,8],[190,2,190,3],[190,4,190,5],[190,7,190,8],[191,2,191,3],[191,4,191,5],[191,7,191,8],[192,2,192,3],[192,4,192,5],[192,7,192,8],[194,0,197,0],[194,3,194,9],[195,3,195,9],[196,3,196,9],[197,3,197,9],[198,0,201,0],[202,0,205,0],[206,0,209,0],[208,7,208,8],[209,7,209,8],[211,0,211,9],[213,0,220,0],[213,5,213,7],[214,5,214,7],[215,5,215,7],[216,5,216,7],[217,5,217,7],[218,5,218,7],[219,3,219,4],[219,5,219,7],[220,5,220,7],[221,0,225,0],[221,1,221,2],[221,4,221,6],[221,7,221,9],[222,1,222,2],[222,4,222,5],[222,7,222,9],[223,1,223,2],[223,4,223,5],[223,7,223,9],[224,1,224,2],[224,4,224,5],[224,7,224,9],[225,1,225,2],[225,4,225,5],[225,7,225,9],[227,0,231,0],[228,1,228,9],[229,1,229,9],[230,1,231,2],[230,3,231,3],[230,5,231,6],[230,7,231,8],[230,9,231,9],[232,0,246,0],[232,1,232,3],[232,4,232,5],[232,6,232,7],[232,8,232,9],[233,1,233,3],[233,4,233,5],[233,6,233,7],[233,8,233,9],[234,1,234,3],[234,4,234,5],[234,6,234,7],[234,8,234,9],[235,1,235,3],[235,4,235,5],[235,6,235,7],[235,8,235,9],[236,1,236,3],[236,4,236,5],[236,6,236,7],[236,8,236,9],[237,1,237,3],[237,4,237,5],[237,6,237,7],[237,8,237,9],[238,1,238,3],[238,4,238,5],[238,6,238,7],[238,8,238,9],[239,1,239,3],[239,4,239,5],[239,6,239,7],[239,8,239,9],[240,1,240,3],[240,4,240,5],[240,6,240,7],[240,8,240,9],[241,1,241,3],[241,4,241,5],[241,6,241,7],[241,8,241,9],[242,1,242,3],[242,4,242,5],[242,6,242,7],[242,8,242,9],[243,1,243,3],[243,4,243,5],[243,6,243,7],[243,8,243,9],[247,1,247,9],[244,1,244,3],[244,4,244,5],[244,6,244,7],[244,8,244,9],[245,1,245,3],[245,4,245,5],[245,6,245,7],[245,8,245,9],[246,1,246,3],[246,4,246,5],[246,6,246,7],[246,8,246,9]]}
["Risikoanalyse von:",{"$f":"IF(Allg.Daten!B8=\"\",\"\",Allg.Daten!B8)","v":""}]
[]
["Frachtführer- und Speditionshaftpflicht"]
["Welche Geschäftsbedingungen werden vereinbart?","        ADSp","(            )Fassung","keine",null,null,null,null,"(bitte beifügen)"]
["Geschäftsdokumente","Speditionsauftrag",null,"Rechnung",null,"Frachtbrief",null,"Briefbogen \n(sind als Anlage beizufügen)"]
["Angaben zu den Bruttoumsätzen\n(Schätzung)","Gesamtjahresumsatz:",null,null,null,null,null,null,"EUR"]
[null,"davon Speditionstätigkeit",null,null,null,null,null,null,"EUR "]
[null,"davon Frachtführertätigkeit",null,null,null,null,null,null,"EUR"]
[null,"davon Lagerhaltertätigkeit",null,null,null,null,null,null,"EUR oder"]
[null,null,null,null,null,null,null,null,"to"]
["Anzahl der beschäftigten\nPersonen",null,"kaufmännische Angestellte",null,null,"gewerbliche Angestellte"]
["Angaben zum Schadenvorverlauf\n(die letzten 3 abgeschlossenen Jahre plus das laufende Jahr)","Jahr",null,"Anzahl der Schäden",null,"Zahlungen",null,null,"Reserven"]
[]
[]
[]
[]
["Erläuterungen zu Besonderheiten einzelner Schäden, größer als EUR\n25.000,00 (ggf. Beiblatt beifügen)"]
["War bisher eine Selbstbeteiligung vereinbart?","nein","ja","Wenn ja:",null,"Integralfranchise:",null,null,null,"EUR"]
[null,null,null,null,null,"Abzugsfranchise:",null,null,null,"EUR"]
["Vorversicherer","Bei welcher Gesellschaft besteht/bestand die Versicherung bisher?"]
[null,"Name:",null,null,null,"Vertrags-Nr.:"]
["Schwerpunkte bei speziellen Warenarten sowohl als Spediteur wie auch als Frachtfüherer"]
["Angaben zu diebstahlgefährdeten /\nsensiblen Gütern","(Wert je Transportmittel bzw. Lagerort)",null,null,"Wert bis 50.000 €",null,"Wert über 50.000 €",null,"Anteil zum Jahresumsatz"]
[null,"        Tabakwaren",null,null,null,null,null,"EUR",null,"%"]
[null,"        Spirituosen",null,null,null,null,null,"EUR",null,"%"]
[null,"        Optische Geräte aller Art",null,null,null,null,null,"EUR",null,"%"]
[null,"        Unterhaltungselektronik und Zubehör",null,null,null,null,null,"EUR",null,"%"]
[null,"        Telekommunikation und Zubehör",null,null,null,null,null,"EUR",null,"%"]
[null,"        EDV, Computer und Zubehör",null,null,null,null,null,"EUR",null,"%"]
[null,"(Wert je Transportmittel bzw. Lagerort)",null,null,"Wert bis 5.000 €",null,"Wert über 5.000 €",null,"Anteil zum Jahresumsatz"]
[null,"        Edelsteine, Juwelen, Edelmetalle,\n        Schmuck",null,null,null,null,null,"EUR",null,"%"]
[null,"        Gesetzliche Zahlungsmittel, geltwerte \n        Papiere",null,null,null,null,null,"EUR",null,"%"]
[null,"        Dokumente, Urkunden",null,null,null,null,null,"EUR",null,"%"]
[null,"        Kunstsachen, Gemälde, Skulpturen",null,null,null,null,null,"EUR",null,"%"]
[null,"        Telefon- und Chipkarten und Zubehör",null,null,null,null,null,"EUR",null,"%"]
[null,"Bei einem Gesamtwert je Transportmittel bzw. Lagerort, der über die Vorgegebenen Beträge von 50.000,00 EUR bzw. 5.000,00 EUR hinausgeht, bitten wir um nähere Angaben zur Transportabwicklung im „Zusatzbogen für diebstahlgefährdete/sensible Güter“."]
[]
[]
[]
[]
[]
[]
["Angaben zu sonstigen Gütern",null,null,null,null,"Anteil vom Jahresumsatz"]
[null,"        Tiere, Pflanzen",null,null,null,null,null,null,null,"%"]
[null,"        Umzugsgut",null,null,null,null,null,null,null,"%"]
[null,"        Schwergut, Hakenlast",null,null,null,null,null,null,null,"%"]
[null,"        Kraftfahrzeuge",null,null,null,null,null,null,null,"%"]
[null,"        Temperaturgeführte Güter",null,null,null,null,null,null,null,"%"]
[null,"        Weiße Ware, Haushaltsgeräte",null,null,null,null,null,null,null,"%"]
[null,"        Daten-, Ton- und Musikträger",null,null,null,null,null,null,null,"%"]
[null,"        Marktordnungswaren (Fleich,\n        Getreide, Micherzeugnisse)",null,null,null,null,null,null,null,"%"]
[null,"        Teppiche, Pelze",null,null,null,null,null,null,null,"%"]
[null,"        Bruchempfindliche Güter",null,null,null,null,null,null,null,"%"]
[null,"        Handelsmöbel",null,null,null,null,null,null,null,"%"]
[null,"        Geringwertige Güter (Kies, Baustoffe)",null,null,null,null,null,null,null,"%"]
[null,"       Sonstiges:",null,null,null,null,null,null,null,"%"]
[]
[]
[]
[]
["Tätigkeitsbeschreibung Spedition"]
["Welche Tätigkeiten als Spediteur üben Sie aus?",null,null,null,null,"Anteil vom Speditionsumsatz"]
[null,"        Fixkostenspedition",null,null,null,null,null,null,null,"%"]
[null,"        Geschäftsbesorgung/Frachtenvermittlung",null,null,null,null,null,null,null,"%"]
[null,"Davon:"]
[null,"        Sammelladung",null,null,null,null,null,null,null,"%"]
[null,"        Ladungsverkehre",null,null,null,null,null,null,null,"%"]
[null,"        Luftfrachtspedition",null,null,null,null,null,null,null,"%"]
[null,"        Seefrachtspedition",null,null,null,null,null,null,null,"%"]
[null,"        Bahnspedition",null,null,null,null,null,null,null,"%"]
[null,"        Schwergutspedition",null,null,null,null,null,null,null,"%"]
[null,"        Möbel-/Umzugsspedition",null,null,null,null,null,null,null,"%"]
[null,"        Kühlgutspedition",null,null,null,null,null,null,null,"%"]
[null,"       Sonstige:",null,null,null,null,null,null,null,"%"]
["Welcher räumliche Tätigkeitsbereich gilt?\n\nHinweis:\n\nEWR-Staaten:\nBelgien, Dänemark, Deutschland, Estland,\nFinnland, Frankreich, Griechenland, Großbritannien, Irland, Italien, Lettland,\nLitauen, Luxemburg, Malta, Niederlande, Österreich, Polen, Portugal, Schweden,\nSlowakei, Slowenien, Spanien, Tschechien, Ungarn, Zypern\n+ Island, Lichtenstein, Norwegen",null,null,null,null,"Anteil vom Speditionsumsatz"]
[null,"        EWR inkl. Türkei/Schweiz",null,null,null,null,null,null,null,"%"]
[]
[null,null,"Davon:"]
[null,null,"        Deutschland",null,null,null,null,null,null,"%"]
[null,null,"        Italien",null,null,null,null,null,null,"%"]
[null,null,"        Großbritanien",null,null,null,null,null,null,"%"]
[null,null,"        Polen",null,null,null,null,null,null,"%"]
[null,null,"        Ungarn",null,null,null,null,null,null,"%"]
[null,null,"        Tschechien",null,null,null,null,null,null,"%"]
[null,null,"        Slowakei",null,null,null,null,null,null,"%"]
[null,null,"        Baltikum",null,null,null,null,null,null,"%"]
[null,null,"       Sonstige:",null,null,null,null,null,null,"%"]
[null,"        GUS",null,null,null,null,null,null,null,"%"]
[null,"        USA",null,null,null,null,null,null,null,"%"]
[null,"        Asien",null,null,null,null,null,null,null,"%"]
[null,"        Sonstige:                                                     ",null,null,null,null,null,null,null,"%"]
[]
[]
["Werden Zolltätigkeiten übernommen?","        Nein",null,"        Ja","        Ausstellung T1-Dokumente ",null,null,null,null,"Anzahl p.a."]
[null,null,null,null,"        Ausstellung T2-Dokumente ",null,null,null,null,"Anzahl p.a."]
[null,null,null,null,"        Ausstellung T5-Dokumente ",null,null,null,null,"Anzahl p.a."]
[null,null,null,null,"        Verzollungen",null,null,null,null,"Anzahl p.a."]
[null,"        Wir führen ein Zolllager"]
[null,"        Wir beauftragen Dritte / führen selbst ein OZL (Zolllager gem. Art. 525 ZK-DVO Lagertyp A)"]
[null,"        - Summe der durchschnit. monatl. Abgabenwerte aus Lagerzugängen:",null,null,null,null,null,null,null,"EUR"]
[null,"        Sonstige Tätigkeiten:"]
["Welche Frachtführer werden eingesetzt?\n\n(Nationalität bei LKW-Frachtführern)","        LKW-Frachtführer:   "]
[null,"        Luftfrachtführer"]
[null,"        Seefrachtführer"]
[null,"        Bahnfrachtführer"]
[null,"        Sonstige:"]
[null,"Überprüfen Sie den ausreichenden Versicherungsschutz der LKW-Frachtführer?"]
[null,"        Ja",null,"        Nein"]
["Bestehen Sonderverträge,\nSondervereinbarungen, \nProjektverträge oder\nsonstige Individualvereinbarungen?","        Nein",null,"        Ja, und zwar folgende",null,null,"(Bitte vollständige Kopien beifügen)"]
[]
[]
[]
[null,"Welchen Umsatz erzielen Sie daraus?",null,null,null,null,"EUR"]
["Werden\nVereinbarungen über\ndie Erhöhung der\nFrachtführer-\nRegelhaftung von 8,33\nSZR getroffen?\n(Bitte Kopie beifügen)","        Nein"]
[null,"        Ja","Auftraggeber",null,"Haftungsbetrag",null,null,"Anteil Frachtumsatz"]
[null,null,null,null,null,null,"SZR",null,null,"%"]
[null,null,null,null,null,null,"SZR",null,null,"%"]
[null,null,null,null,null,null,"SZR",null,null,"%"]
[null,null,null,null,null,null,"SZR",null,null,"%"]
[null,null,null,null,null,null,"SZR",null,null,"%"]
["Sonstige Tätigkeiten\nund/oder Nebenleistungen","        Nein"]
[null,"        Ja, und zwar folgende:"]
[]
["Besteht die\nMitgliedschaft in einem\nKooperationsverbund?","        Nein"]
[null,"        Ja","In welcher Kooperation?",null,"        ONLINE",null,null,"        CTL"]
[null,null,null,null,"        Cargo-Line",null,null,"        24-plus"]
[null,null,null,null,"        andere"]
["Welche Dokumente\nwerden ausgestellt?","        FIATA-BL",null,null,null,"Anzahl p.a.",null,null,null,"Umsatz"]
[null,"Luftfracht"]
[null,"        Airline-AWB",null,null,null,"Anzahl p.a.",null,null,null,"Umsatz"]
[null,"        House-AWB",null,null,null,"Anzahl p.a.",null,null,null,"Umsatz"]
[null,"Seefracht:"]
[null,"        Carrier B/L",null,null,null,"Anzahl p.a.",null,null,null,"Umsatz"]
[null,"        House-B/L",null,null,null,"Anzahl p.a.",null,null,null,"Umsatz"]
[null,"Andere Frachtbriefe"]
[null,"        ",null,null,null,"Anzahl p.a.",null,null,null,"Umsatz"]
[null,"        ",null,null,null,"Anzahl p.a.",null,null,null,"Umsatz"]
["Weitere wichtige Angaben zu sonst.\nLeistungen aus Ihrem Speditionsgeschäft:"]
[]
[]
[]
[]
[]
[]
[]
["Tätigkeitsbeschreibung Frachtführer"]
["Frachtführertätigkeiten","        Ja",null,"        Nein","(die weiteren Fragen zum Frachtführerbereich müssen nicht beantwortet werden)"]
["Welcher räumliche Tätigkeitsbereich gilt?\n\nHinweis:\n\nEWR-Staaten:\nBelgien, Dänemark, Deutschland, Estland,\nFinnland, Frankreich, Griechenland, Großbritannien, Irland, Italien, Lettland,\nLitauen, Luxemburg, Malta, Niederlande, Österreich, Polen, Portugal, Schweden,\nSlowakei, Slowenien, Spanien, Tschechien, Ungarn, Zypern\n+ Island, Lichtenstein, Norwegen",null,null,null,null,"Anteil vom Speditionsumsatz"]
[null,"        EWR inkl. Türkei/Schweiz",null,null,null,null,null,null,null,"%"]
[]
[null,null,"Davon:"]
[null,null,"        Deutschland",null,null,null,null,null,null,"%"]
[null,null,"        Italien",null,null,null,null,null,null,"%"]
[null,null,"        Großbritanien",null,null,null,null,null,null,"%"]
[null,null,"        Polen",null,null,null,null,null,null,"%"]
[null,null,"        Ungarn",null,null,null,null,null,null,"%"]
[null,null,"        Tschechien",null,null,null,null,null,null,"%"]
[null,null,"        Slowakei",null,null,null,null,null,null,"%"]
[null,null,"        Baltikum",null,null,null,null,null,null,"%"]
[null,null,"       Sonstige:",null,null,null,null,null,null,"%"]
[null,"        GUS",null,null,null,null,null,null,null,"%"]
[null,"        Sonstige:                                                     ",null,null,null,null,null,null,null,"%"]
["Kabotageverkehre","        Nein"]
[null,"        Ja, in folgenden Ländern:",null,null,null,null,null,null,"% vom Frachtumsatz"]
["Werden Vorkehrungen bei besonders\ndiebstahlgefährdeten Gütern getroffen?","        Nein"]
[null,"        Ja, und zwar folgende:"]
[]
[]
["Angaben zu den eingesetzten\nFahrzeugen:\nz. B. Kühl-, Silo-, oder sonstige spezielle Fahrzeuge","Art","Anzahl","Nutzlast",null,null,"National",null,"International"]
[null,null,null,null,null,"to"]
[null,null,null,null,null,"to"]
[null,null,null,null,null,"to"]
[null,null,null,null,null,"to"]
[null,null,null,null,null,"to"]
["Werden\nSubunternehmer\neingesetzt?","        Nein",null,"        Ja","        gelegentlicher Einsatz"]
[null,null,null,null,"        Einsatzbereiche:"]
[null,null,null,null,"        Name/Nationalität:"]
[null,null,null,null,"        ständiger Einsatz"]
[null,null,null,null,"        Einsatzbereiche:"]
[null,null,null,null,"        Name/Nationalität:"]
["In welcher Form wird der \nVersicherungschutz der eingesetzten\nSubunternehmer geprüft?"]
[]
[]
[]
[]
["Fertigen Sie Zollpapiere (T1, T2, und T5) für Ihre Auftrageber an?","        Nein",null,"        Ja, Anzahl der Abfertigungen:",null,null,null,null,null,"p.a."]
["Werden\nVereinbarungen über\ndie Erhöhung der\nFrachtführer-\nRegelhaftung von 8,33\nSZR getroffen?\n(Bitte Kopie beifügen)","        Nein"]
[null,"        Ja","Auftraggeber",null,"Haftungsbetrag",null,null,"Anteil Frachtumsatz"]
[null,null,null,null,null,null,"SZR",null,null,"%"]
[null,null,null,null,null,null,"SZR",null,null,"%"]
[null,null,null,null,null,null,"SZR",null,null,"%"]
[null,null,null,null,null,null,"SZR",null,null,"%"]
[null,null,null,null,null,null,"SZR",null,null,"%"]
[]
["Haben Sie individuelle Haftungs-vereinbarungen gem. § 449/431\nHBG mit einem Verlader/Spediteur\ngeschlossen?","        Nein",null,"(legen Sie bitte eine Kopie bei)"]
[null,"        Ja","Name:"]
[null,null,"Name:"]
[null,null,"Name:"]
["Haben Sie die individuellen Haftungsanpassungen gem. \n§ 449/431 HGB auch mit Ihren\nSubunternehmern vereinbart?","        Nein"]
[]
[null,"        Ja"]
[]
["Tragen Sie das LKW-Beladerisiko\ninkl. Ladungssicherung gem. \n§ 412 HGB?","        Nein"]
[]
[null,"        Ja"]
[]
["Bestehen Deckungserweiterungen\noder was soll künftig mitversichert\nwerden?","        Nein"]
[null,"        Ja",null,"        Detention-/Demurage-Charges"]
[null,null,null,"        Fremde Container und Chassis",null,null,null,"Anzahl der Kfz"]
[null,null,null,"        Fremde Auflieger und Wechselbrücken",null,null,null,"Anzahl der Kfz"]
[]
["Tätigkeitsbeschreibung Lagerhalter"]
["Lagerhaltertätigkeiten","        Ja",null,"        Nein","(die weiteren Fragen zum Lagerhalterbereich müssen nicht beantwortet werden)"]
["Welche Lagerarten werden betrieben?","        Konsignationslager",null,null,null,null,null,null,"% vom Lagerumsatz"]
[null,"        Lagerung von Umzugsgut / Handelsmöbel",null,null,null,null,null,null,"% vom Lagerumsatz"]
[null,"        Kühlhauslager",null,null,null,null,null,null,"% vom Lagerumsatz"]
[null,"        BLE-Lager",null,null,null,null,null,null,"% vom Lagerumsatz"]
[null,"        Gefahrgutlager",null,null,null,null,null,null,"% vom Lagerumsatz"]
[null,"        Tanklager",null,null,null,null,null,null,"% vom Lagerumsatz"]
[null,"        sonstige Lagerungen:",null,null,null,null,null,null,"% vom Lagerumsatz"]
[null,"        Umschlagslager",null,null,null,null,null,null,"% vom Lagerumsatz"]
["Bei Konsignationslager\n\n(Für diese Lagerungen füllen Sie bitte \ndie Liste mit den nebenstehenden\nAngaben aus)","Warenarten",null,null,"Warenwerte",null,null,"Auftraggeber"]
[null,null,null,null,null,null,"EUR"]
[null,null,null,null,null,null,"EUR"]
[null,null,null,null,null,null,"EUR"]
[null,null,null,null,null,null,"EUR"]
[]
["Bestehen vertragliche Vereinbarungen, \ndie von den ADSp abweichen?\n\nWelche Umsätze werden aus diesen\nVerträgen erzielt?","        Nein",null,"        Ja, und zwar folgende (Bitte vollständige Kopien beifügen)"]
[]
[]
[null,null,null,"EUR",null,"Umschlag",null,null,null,"to"]
[]
["Beschreibung der Lagerstätten\n(ggf. Beiblatt beifügen)",null,null,null,"Lager 1",null,"Lager 2",null,"Lager 3"]
[null,"Lagerort"]
[null,"Lagerart"]
[null,"Fläche",null,null,"m²",null,"m²",null,"m²"]
[null,"Warenart"]
[null,"Max. eigelagerte Werte"]
[null,"Bewachung"]
[null,"Einbruchmeldeanlage"]
[null,"Brandschutzeinrichtungen"]
[null,"Umzäunung"]
[null,"Separates Wertelager"]
[null,"Sonstige Sicherungen"]
[null,"Hochwassergefahr"]
[null,"Baujahr"]
[null,"Bauart"]
[null,"Der Versicherer behält sich eine Besichtigung der Lagerräume vor!"]

{"sheet":"VSV","index":22,"n_rows":50,"n_cols":10,"rows_kept":50,"cut":false,"hidden":true,"merged":[[40,0,40,9],[18,1,18,9],[25,1,25,7],[26,1,26,7],[27,1,27,7],[28,1,28,7],[29,1,29,7],[30,1,30,7],[31,1,31,7],[32,1,32,7],[33,1,33,7],[34,1,34,7],[35,1,35,7],[21,1,21,7],[22,1,22,7],[23,1,23,7],[15,1,15,7],[39,3,39,4],[39,5,39,6],[39,7,39,8],[16,1,16,7],[17,1,17,7],[19,1,19,7],[20,1,20,7],[24,1,24,7],[37,3,37,4],[37,5,37,6],[36,1,36,9],[38,1,38,9],[8,3,8,5],[11,1,11,7],[12,1,12,7],[13,1,13,7],[14,1,14,7],[44,2,44,5],[44,6,44,9],[45,2,45,5],[45,6,45,9],[5,0,8,0],[5,1,5,2],[6,1,6,2],[7,1,7,2],[5,6,5,8],[6,6,6,8],[7,6,7,8],[8,6,8,8],[8,1,8,2],[5,3,5,5],[6,3,6,5],[7,3,7,5],[41,2,41,5],[41,6,41,9],[42,2,42,5],[42,6,42,9],[43,2,43,5],[43,6,43,9],[0,1,0,4],[46,1,46,9],[47,1,47,9],[48,1,48,9],[49,3,49,4],[49,5,49,6],[49,8,49,9],[10,1,10,9],[4,1,4,9],[2,1,2,4],[2,5,2,6],[9,1,9,9],[2,7,2,9],[1,0,1,9],[3,1,3,9],[41,0,45,0]]}
["Risikoanalyse von:",{"$f":"IF(Allg.Daten!B8=\"\",\"\",Allg.Daten!B8)","v":""}]
["Vertrauensschadenversicherung"]
["Versicherungssumme",null,null,null,null,"Selbstbeteiligung"]
["Branche/Tätigkeit: "]
["Seit wann ist die Gesellschaft ohne\nUnterbrechung tätig?"]
["Unternehmensdaten","wenn möglich konsolidiert",null,"Letztes Jahr (                 )",null,null,"vorletztes Jahr (                 )"]
[null,"Bilanzsumme"]
[null,"Umsatz"]
[null,"Anzahl der Betriebsstätten"]
["Mitarbeiteranzahl (In-/Ausland) und Aufteilung in:\n- kfm. Angestellte\n- techn. Angestellte\n- Fremdpersonal/Zeitarbeitskräfte\n- Organe mit ggf. Beteiligungsquote"]
["Auflistung Niederlassungen/\nBetriebsstätten im In-/Ausland"]
["Sicherheitsvorkehrungen","Ist ein Vieraugenprinzip vorgesehen und wird dieses eingehalten?",null,null,null,null,null,null,"ja","nein"]
[null,"Werden Mitarbeiter, die mit Zahlungsströmen zu tun haben, vor der Einstellung\nauf deren Zuverlässigkeit überprüft (z.B. Zeugnisse, Referenzen, u.ä.)?",null,null,null,null,null,null,"ja","nein"]
[null,"Können Mitarbeiter mit alleiniger Unterschrift/elektronischer Signatur Geld- und\nVermögensverfügungen treffen?",null,null,null,null,null,null,"ja","nein"]
[null,"Gibt es eine jährliche externe Revision?",null,null,null,null,null,null,"ja","nein"]
[null,"Stehen die Kontrollsysteme im Einklang mit allen Empfehlungen der externen Revision?",null,null,null,null,null,null,"ja","nein"]
[null,"Besteht eine eigene Revisionsabteilung?",null,null,null,null,null,null,"ja","nein"]
[null,"Haben alle Lieferanten/Dienstleister schriftliche Verträge?",null,null,null,null,null,null,"ja","nein"]
[null,"Kann eine einzelne Person nachfolgende Tätigkeiten von Anfang bis Ende alleine durchführen?"]
[null,"– Zeichnungen von Schecks über EUR 10.000?",null,null,null,null,null,null,"ja","nein"]
[null,"– eine Herausgabe von Überweisungen/Anweisungen?",null,null,null,null,null,null,"ja","nein"]
[null,"– die Eröffnung neuer Bankkonten?",null,null,null,null,null,null,"ja","nein"]
[null,"– die Rückzahlung von Geld bzw. Rückgabe von Waren?",null,null,null,null,null,null,"ja","nein"]
[null,"– das Versenden und die Entgegennahme von Kontoauszügen?",null,null,null,null,null,null,"ja","nein"]
[null,"– die Teilnahme an Zahlungsstrombündelungen (z.B. Multi-Cash)?",null,null,null,null,null,null,"ja","nein"]
[null,"Werden verschiedene Passwörter eingesetzt für verschiedene Stufen von Befugnisebenen?",null,null,null,null,null,null,"ja","nein"]
[null,"Werden Passwörter in regelmäßigen Abständen geändert?",null,null,null,null,null,null,"ja","nein"]
[null,"Sind Programme geschützt gegen unberechtigte Änderungen?",null,null,null,null,null,null,"ja","nein"]
[null,"Hat das System einen Schutz/Firewall vor unberechtigtem Eindringen?",null,null,null,null,null,null,"ja","nein"]
[null,"Wird der Schutz/Firewall laufend aktualisiert?",null,null,null,null,null,null,"ja","nein"]
[null,"Hat das System eine Software zum Schutz vor Virusschäden?",null,null,null,null,null,null,"ja","nein"]
[null,"Wird die Software zum Schutz von Virusschäden laufend aktualisiert?",null,null,null,null,null,null,"ja","nein"]
[null,"Werden Angriffe auf das System vom System erkannt und protokolliert?",null,null,null,null,null,null,"ja","nein"]
[null,"Werden Daten täglich und der jeweils letzte Releasestand der Programme gesichert/dupliziert?",null,null,null,null,null,null,"ja","nein"]
[null,"Wird dabei eine Kopie so aufbewahrt, dass sie von einem Schadenfall der Originale\nvoraussichtlich nicht gleichzeitig betroffen werden kann?",null,null,null,null,null,null,"ja","nein"]
["Sicherheitsvorkehrungen","Werden externe EDV-Dienstleister beauftragt/beschäftigt?",null,null,null,null,null,null,"ja","nein"]
[null,"In welchen Zeitabständen sind kassierte Gelder abzuliefern?"]
[null,"sofort      ","wöchentlich    ","monatlich                ",null,"kein Inkasso           "]
[null,"Werden unterjährige Inventuren eventuell vorhandener Warenlager vorgenommen?"]
[null,"laufend","monatlich","1/4 jährlich",null,"1/2 jährlich",null,"kein Lager"]
["Erklärung zu bekannten und nicht bekannten Schäden:     \n\nDer Antragsteller/Versicherungsnehmer bestätigt, dass er keine Kenntnis von Vorkommnissen hat, die sich nach Klärung der Tatbestände als Versicherungsfälle im Sinne des zu gewährenden Versicherungsschutzes erweisen könnten. Dies gilt auch für Vorkommnisse bei Tochterunternehmen und Vorkommnissen, zu welchen keine Entschädigungsansprüche geltend gemacht werden können oder sollen.\n\nDer Unterfertigende ist sich der Bedeutung der vorstehenden Fragen für die Erlangung und den Erhalt von Versicherungsschutz bewusst und bestätigt, auch im Namen der Versicherungsnehmerin und der übrigen versicherten Personen, diese nach sorgfältiger Prüfung und nach bestem Wissen und Gewissen vollständig und wahrheitsgemäß beantwortet zu haben. Ebenso sind ihm/ihr keine Umstände bekannt, die zu einer Inanspruchnahme führen könnten."]
["Vorschäden innerhalb der letzten 5 Jahre: ","Jahr ","Schadenart",null,null,null,"Schadenhöhe"]
[]
[]
[]
[]
["Vorversicherung: "]
["Versicherungsscheinnummer: "]
["Ablauf des Vertrages: "]
["Vertrag wird/wurde gekündigt von:","Kunden: ","ja:",null,null,"Versicherer: ",null,"ja: "]

{"sheet":"Sachsubstanz","index":23,"n_rows":108,"n_cols":10,"rows_kept":108,"cut":false,"hidden":true,"merged":[[60,0,62,0],[62,5,62,7],[31,0,41,0],[58,0,59,0],[58,1,58,2],[58,7,58,9],[59,1,59,2],[59,3,59,9],[49,2,49,5],[43,1,43,2],[44,1,44,2],[45,1,45,2],[46,2,46,4],[46,6,46,9],[37,1,37,2],[31,1,31,2],[42,1,42,2],[49,7,49,9],[48,5,48,7],[48,8,48,9],[54,5,54,6],[54,7,54,9],[52,0,53,0],[53,1,53,9],[42,0,45,0],[47,3,47,5],[47,6,47,9],[99,3,99,4],[99,5,99,6],[99,8,99,9],[91,0,95,0],[91,2,91,5],[91,6,91,9],[92,2,92,5],[92,6,92,9],[93,2,93,5],[93,6,93,9],[97,1,97,9],[98,1,98,9],[94,2,94,5],[94,6,94,9],[95,2,95,5],[95,6,95,9],[96,1,96,9],[67,1,67,2],[67,8,67,9],[69,5,69,9],[66,3,66,4],[23,0,30,0],[23,2,23,3],[71,3,71,9],[32,1,32,2],[34,1,34,2],[35,1,35,2],[84,1,84,9],[80,1,80,9],[33,1,33,2],[70,7,70,9],[61,1,61,2],[71,1,71,2],[50,2,50,3],[50,4,50,5],[38,1,38,2],[39,1,39,2],[41,1,41,2],[38,3,38,9],[39,3,39,9],[66,7,66,9],[57,0,57,9],[55,4,55,9],[72,6,72,9],[23,8,23,9],[2,5,2,7],[3,5,3,7],[2,1,2,2],[2,0,12,0],[2,8,2,9],[3,1,3,2],[3,8,3,9],[5,8,5,9],[14,0,22,0],[14,2,14,9],[15,2,15,9],[16,2,16,9],[17,2,17,9],[18,2,18,9],[19,2,19,9],[20,2,20,9],[21,2,21,9],[12,6,12,9],[13,1,13,2],[13,8,13,9],[11,1,12,2],[11,8,11,9],[0,1,0,4],[6,1,6,2],[6,8,6,9],[11,5,11,7],[13,5,13,7],[10,1,10,2],[4,1,4,2],[4,5,4,7],[5,5,5,7],[6,5,6,7],[7,5,7,7],[10,5,10,7],[5,1,5,2],[9,8,9,9],[9,1,9,2],[9,5,9,7],[10,8,10,9],[1,0,1,9],[8,1,8,2],[8,8,8,9],[8,5,8,7],[4,8,4,9],[7,1,7,2],[7,8,7,9],[88,7,88,9],[22,2,22,9],[12,3,12,5],[36,1,36,2],[36,3,36,9],[23,4,23,5],[23,6,23,7],[61,3,61,9],[52,5,52,9],[86,1,86,2],[86,7,86,9],[78,1,78,2],[78,7,78,9],[79,1,79,2],[79,3,79,9],[40,1,40,2],[40,3,40,9],[41,7,41,9],[76,0,77,0],[77,4,77,5],[77,6,77,9],[107,3,107,4],[107,5,107,6],[107,8,107,9],[100,1,100,9],[101,1,101,9],[102,1,102,9],[103,3,103,4],[103,5,103,6],[103,8,103,9],[104,1,104,9],[105,1,105,9],[106,1,106,9],[89,7,89,9],[90,1,90,2],[90,3,90,9],[89,5,89,6],[78,0,79,0],[85,2,85,9],[87,1,87,2],[87,7,87,9],[88,1,88,2]]}
["Risikoanalyse von:",{"$f":"IF(Allg.Daten!B8=\"\",\"\",Allg.Daten!B8)","v":""}]
["Sachsubstanzversicherung"]
["Deckungsumfang Sachsubstanz:","Versicherte Gefahren:",null,"nein:","ja:","Versicherungssumme/\nHöchstentschädigung",null,null,"Selbstbeteiligung"]
[null,"Feuer:"]
[null,"Leitungswasser:"]
[null,"Sturm/Hagel:"]
[null,"ED/ Raub/ Vandalismus:"]
[null,"Elementar:"]
[null,"politische Gefahren:"]
[null,"unbenannte Gefahren:"]
[]
[null,"Glasbruch \nAngabe der Gesamtglasfläche : "]
[null,null,null,"Anzahl Einzelscheiben über 10 qm:"]
["Bei Gebäuden mit einem Wert über \n25 Mio. €: ","separate Terrordeckung:"]
["Risikoorte:",null,"Vollständige Anschrift "]
[null,"Risikoorte:"]
[null,"a)"]
[null,"b)"]
[null,"c)"]
[null,"c)"]
[null,"e)"]
[null,"f)"]
[null,"g)"]
["Art der Gebäude:","Risikoorte:","Büro/ Verwaltung",null,"Produktion:",null,"Lager: ",null,"Sonstiges (Art)"]
[null,"a)","qm: ",null,"qm: ",null,"qm: ",null,"qm: "]
[null,"b)","qm: ",null,"qm: ",null,"qm: ",null,"qm: "]
[null,"c)","qm: ",null,"qm: ",null,"qm: ",null,"qm: "]
[null,"c)","qm: ",null,"qm: ",null,"qm: ",null,"qm: "]
[null,"e)","qm: ",null,"qm: ",null,"qm: ",null,"qm: "]
[null,"f)","qm: ",null,"qm: ",null,"qm: ",null,"qm: "]
[null,"g)","qm: ",null,"qm: ",null,"qm: ",null,"qm: "]
["Gebäudebeschreibung: ","Gebäude:",null,"a) ","b)","c)","d)","e)","f)","g)"]
[null,"Alter: "]
[null,"Letzte Sanierung (Elektrik, Dach\nLeitungswassersystem):"]
[null,"Anzahl der Geschosse: "]
[null,"Denkmalschutz:"]
[null,"Beschreibung Denkmalschutz:"]
[null,"BAK I harte Bedachung, massive Außenwände (sofern nicht BAK I, bitte nachfolgende Konstruktionsmerkale aufführen):"]
[null,"Außenwände/Stützen/Fassade:"]
[null,"Dachkonstruktion/Bedachung:"]
[null,"verwendete Isoliermaterialien:"]
[null,"Gibt es eine Gebäudewertermittlung?\n(vom Versicherer oder SkenData)",null,"nein: ",null,"ja:",null,"Bitte Kopie beilegen"]
["Versicherungssummen zum Neuwert: ","Versicherungsort:",null,"a) ","b)","c)","d)","e)","f)","g)"]
[null,"Gebäude:"]
[null,"kfm. + techn. Betriebseinrichtung:"]
[null,"Waren/ Vorräte: "]
["Schwankungen in den Beständen: ","Min. €:",null,null,null,"Max.  €:"]
["Bargeldbestände am Versicherungsort: ","Höhe: ",null,"Art der Aufbewahrung: "]
["Automaten mit Geldeinwurf","nein: ",null,"ja:",null,"Max. Summe €"]
["Gibt es fremdes Eigentum, für das VN die Gefahr trägt: ","Art:",null,null,null,null,"Wert: "]
["Photovoltaik-Anlagen vorhanden: ","Leistung in kWp: ",null,null,"Separate Absicherung über Elektronik inkl. BU? ",null,"nein: ",null,"ja:"]
["Solarthermie:","nein: ",null,"ja:",null,"Wert in der Gebäude-vers.berücksichtigt?","nein: ",null,"ja:"]
["Sprinkleranlage (ggf. andere Löschanlagen):","nein: ",null,"ja:"]
[null,"Bitte letztes Sprinklerattest vom VdS beifügen!"]
["Objektschutz-Löschanlagen (CO2) o.ä.","nein: ",null,"ja:",null,"genaue Beschreibung:"]
["Wartungsvertrag","ja: ","       nein:","Wartungs-intervall:"]
["automatische Brandmeldeanlage:","nein: ",null,"ja:",null,"Wartungs-vertrag","ja: ","nein:","Wartungs-intervall:"]
["Bei dem Vorhandensein einer Brandmeldeanlage, bitte unbedingt die Feuerwehrlaufkarten als PDF-Dateien anfordern\nBeispiel einer Feuerwehrlaufkarte: https://de.wikipedia.org/wiki/Feuerwehrlaufkarte\n"]
["Bitte VdS-Attest oder Errichternachweis \nbeifügen:","Mit Aufschaltung:",null,"nein: ",null,"ja:"]
[null,"Wohin erfolgt Aufschaltung: "]
[" Rauch- u Wärmeabzugsanlage:","nein: ",null,"ja:",null,"Wartungs-vertrag","ja: ","nein:","Wartungs-intervall:"]
[null,"Welche Bereiche sind geschützt: "]
[null,"Automatisch:",null,"Manuell:",null,"Automatisch + Manuell:"]
["Blitzschutzanlage vorhanden:","nein: ",null,"ja:",null,"Wartungs-vertrag","ja: ","nein:","Wartungs-intervall:"]
["Handfeuerlöscher","nein: ",null,"ja:",null,"Wartungs-vertrag","ja: ","nein:","Letzte Über-prüfung (Plakette):"]
["Wandhydranten (Schlauchkästen) vorhanden","nein: ",null,"ja:",null,"formstab.\nSchlauch?","ja: ","nein:"]
["Feuerwehr","Berufs-FW",null,"freiwillige FW",null,null,"Entfernung/Anrückzeit"]
["Löschwasserversorgung:","öffentliche/eigene:",null,"nein: ",null,"ja:",null,"Beschrei-bung:"]
["Brandschutzbeauftragter","nein: ",null,"ja:"]
["Umfahrbarkeit des Betriebsgeländes gegeben?","nein: ",null,"ja:"]
["Werden die elektrischen Licht- und Kraftanlagen regelmäßig überprüft:","nein: ",null,"ja: "]
["Wann erfolgte die letzte Prüfung: ",null,null,"Bitte die letzten Atteste/Mängelbeseitigungen der jeweiligen Standorte beifügen. "]
["Werden die ortsveränderlichen Geräte nach DGUV Vorschrift 3 geprüft?","nein: ",null,"ja: ",null,"Letzte Prüfung:"]
["Schichtbetrieb:","nein: ",null,"ja: ",null,"Anzahl der Schichten?",null,"Geister-schichten?","ja: ","nein:"]
["Rauchverbot im Betrieb mit Raucherlaubniszonen?","nein: ",null,"ja: "]
["Mindestsicherungen vorhanden?","nein: ",null,"ja: "]
["Einbruchmeldeanlage: ","nein: ",null,"ja:",null,"VdS-anerkannt?","ja: ","nein:"]
[null,"Wartungs-vertrag","ja: ","nein:","Letzte Überprüfung (Plakette):"]
["Bitte VdS-Attest oder Errichternachweis \nbeifügen:","Mit Aufschaltung:",null,"nein: ",null,"ja:"]
[null,"Wohin erfolgt Aufschaltung: "]
["Welche Bereiche werden überwacht\n(ggfls. Einbauattest beifügen)"]
["Sicherung des Geländes durch Wachdienst?","nein: ",null,"ja:",null,"Kontroll-gänge ","nein: ",null,"ja:"]
["Videoüberwachungsanlage vorhanden?","nein: ",null,"ja:"]
["Umzäunung des Betriebsgeländes (mind. 2 m Höhe)","nein: ",null,"ja:",null,"Übersteig-sicherung","nein: ",null,"ja:"]
["Besichtigungsberichte","Gibt es Besichtigungsbericht/e von/m Vorversicherer/n. Bitte beifügen. "]
["Gefahrenerhöhung: ","Art: "]
["Lage des Betriebes:","Gefahrerhöhende Nachbarschaft: ",null,"nein:",null,"ja: ",null,"Art: "]
[null,"Gewässer oder Trockenbett im Umkreis von 1 km:",null,"nein:",null,"ja: "]
[null,"Überschwemmungsgebiet: ",null,"nein:",null,"ja: "]
["Teilweise oder vollständiger Leerstand: ","nein: ",null,"ja",null,"Anteil in %:"]
[null,"Bis voraussichtlich wann: "]
["Vorschäden innerhalb der letzten 5 Jahre: ","Jahr ","Schadenart",null,null,null,"Schadenhöhe"]
[]
[]
[]
[]
["Vorversicherung Gebäude: "]
["Versicherungsscheinnummer: "]
["Ablauf des Vertrages: "]
["Vertrag wird/wurde gekündigt von:","Kunden: ","ja:",null,null,"Versicherer: ",null,"ja: "]
["Vorversicherung Glas: "]
["Versicherungsscheinnummer: "]
["Ablauf des Vertrages: "]
["Vertrag wird/wurde gekündigt von:","Kunden: ","ja:",null,null,"Versicherer: ",null,"ja: "]
["Vorversicherung Inhalt: "]
["Versicherungsscheinnummer: "]
["Ablauf des Vertrages: "]
["Vertrag wird/wurde gekündigt von:","Kunden: ","ja:",null,null,"Versicherer: ",null,"ja: "]

{"sheet":"BU","index":24,"n_rows":32,"n_cols":8,"rows_kept":32,"cut":false,"hidden":true,"merged":[[2,5,2,9],[3,5,3,9],[13,2,13,9],[4,1,4,2],[5,1,5,2],[7,1,7,2],[6,1,6,2],[7,5,7,9],[6,5,6,9],[8,5,8,9],[9,5,9,9],[10,5,10,9],[20,0,22,0],[20,1,20,4],[20,5,20,9],[21,1,21,4],[21,5,21,9],[22,1,22,4],[22,5,22,9],[16,7,16,9],[19,5,19,9],[16,5,16,6],[30,1,30,9],[31,3,31,4],[31,5,31,6],[31,8,31,9],[26,2,26,5],[26,6,26,9],[27,2,27,5],[27,6,27,9],[28,1,28,9],[29,1,29,9],[23,0,27,0],[23,2,23,5],[23,6,23,9],[24,2,24,5],[24,6,24,9],[25,2,25,5],[25,6,25,9],[17,0,19,0],[18,1,18,4],[18,5,18,9],[17,1,17,4],[17,5,17,9],[19,1,19,4],[15,7,15,9],[1,0,1,9],[4,5,4,9],[5,5,5,9],[0,1,0,4],[10,1,10,2],[9,1,9,2],[8,1,8,2],[12,2,12,9],[14,5,14,6],[14,7,14,9],[15,5,15,6],[11,7,11,9],[2,0,10,0],[2,1,2,2],[3,1,3,2]]}
["Risikoanalyse von:",{"$f":"IF(Allg.Daten!B8=\"\",\"\",Allg.Daten!B8)","v":""}]
["Betriebsunterbrechung/Mehrkosten "]
["Deckungsumfang Sachsubstanz:","Versicherte Gefahren:",null,"nein:","ja:","Versicherungssumme/\nHöchstentschädigung/Erstrisikosumme bei Mehrkosten"]
[null,"Feuer:"]
[null,"Leitungswasser:"]
[null,"Sturm/Hagel:"]
[null,"ED/ Raub/ Vandalismus:"]
[null,"Elementar:"]
[null,"politische Gefahren:"]
[null,"unbenannte Gefahren:"]
[]
["Haftzeit Feuer:","12 Monate",null,"18 Monate",null,"24 Monate",null,"Alternative  Haftzeit:"]
["abweichende Haftzeit weitere Gefahren:","Haftzeiten:"]
["Haftzeit für Mehrkosten","Haftzeit:"]
["Besondere Engpassstellen des Betriebes:","nein: ",null,"ja:",null,"genaue Beschreibung:"]
["Zulieferabhängigkeiten (Rückwirkungsschäden):","nein: ",null,"ja:",null,"genaue Beschreibung:"]
["behördliche Wiederaufbaubeschränkungen zu erwarten?","nein: ",null,"ja:",null,"Erläuterung:"]
["Betriebsschließung\n(auf behördliche Anordnung) kleiner Risken wie Lebensmitteleinzelhandel, Gastronomie","maximaler Warenbestand an einem Tag:"]
[null,"davon weniger gefährdete Ware\n(z.B. Gewürze, Tabakwaren, Verpackungsmaterial)"]
[null,"Öffnungstage/Woche (5, 6 oder 7 Tage)"]
["Betriebsschließung\n(auf behördliche Anordnung) großgewerbliche/industrielle Unternehmen","Rohertrag:",null,null,null,{"$f":"IF(Allg.Daten!C28=\"\",\"\",Allg.Daten!C28)","v":""}]
[null,"Anzahl der Arbeitstage pro Woche * 52 abzgl. Betriebsferien"]
[null,"Haftzeit in Tagen "]
["Vorschäden innerhalb der letzten 5 Jahre: ","Jahr ","Schadenart",null,null,null,"Schadenhöhe"]
[]
[]
[]
[]
["Vorversicherung: "]
["Versicherungsscheinnummer: "]
["Ablauf des Vertrages: "]
["Vertrag wird/wurde gekündigt von: ","Kunden: ","ja:",null,null,"Versicherer: ",null,"ja: "]

{"sheet":"Praxisausfall","index":25,"n_rows":16,"n_cols":8,"rows_kept":16,"cut":false,"hidden":true,"merged":[[2,3,2,6],[3,1,3,2],[2,7,2,9],[3,3,3,6],[3,7,3,9],[5,0,6,0],[7,0,11,0],[7,2,7,5],[7,6,7,9],[8,2,8,5],[8,6,8,9],[9,2,9,5],[9,6,9,9],[10,2,10,5],[10,6,10,9],[6,1,6,2],[6,5,6,6],[6,3,6,4],[5,7,5,9],[6,7,6,9],[5,1,5,2],[4,5,4,6],[4,7,4,9],[0,1,0,4],[14,1,14,9],[15,3,15,4],[15,5,15,6],[15,8,15,9],[11,2,11,5],[11,6,11,9],[12,1,12,9],[13,1,13,9],[4,1,4,2],[4,3,4,4],[5,3,5,4],[1,0,1,9],[2,1,2,2]]}
["Risikoanalyse von:",{"$f":"IF(Allg.Daten!B8=\"\",\"\",Allg.Daten!B8)","v":""}]
["Betriebs- und Praxisausfall"]
["Jahresversicherungssumme",null,null,"max. Ersatzleistung je Tag:"]
["Leistungsdauer/Haftzeit",null,null,"Karrenzzeit bei Krankheit/Unfall"]
["Besitzverhältnis der Räumlichkeiten","Eigentümer:",null,null,null,"Mieter: "]
["Art der Praxis","Gemeinschaftspraxis:",null,null,null,"Praxisgemeinschaft: "]
[null,"Medizinisches Versorgungszentrum:",null,null,null,"Sonstiges: "]
["Vorschäden innerhalb der letzten 5 Jahre: ","Jahr ","Schadenart",null,null,null,"Schadenhöhe"]
[]
[]
[]
[]
["Vorversicherung: "]
["Versicherungsscheinnummer: "]
["Ablauf des Vertrages: "]
["Vertrag wird/wurde gekündigt von: ","Kunden: ","ja:",null,null,"Versicherer: ",null,"ja: "]

{"sheet":"Elektronik","index":26,"n_rows":21,"n_cols":10,"rows_kept":21,"cut":false,"hidden":true,"merged":[[1,0,1,9],[3,0,3,9],[4,0,4,1],[4,2,4,5],[4,7,4,8],[2,1,2,4],[2,5,2,6],[2,7,2,9],[10,7,10,8],[5,0,5,1],[5,2,5,5],[5,7,5,8],[8,0,8,1],[8,2,8,5],[8,7,8,8],[6,0,6,1],[6,2,6,5],[6,7,6,8],[7,0,7,1],[7,2,7,5],[7,7,7,8],[12,0,16,0],[12,2,12,5],[12,6,12,9],[13,2,13,5],[13,6,13,9],[14,2,14,5],[14,6,14,9],[15,2,15,5],[15,6,15,9],[16,2,16,5],[16,6,16,9],[0,1,0,4],[17,1,17,9],[18,1,18,9],[19,1,19,9],[20,3,20,4],[20,5,20,6],[20,8,20,9],[11,1,11,2],[11,4,11,5],[11,6,11,7],[11,8,11,9],[9,0,9,1],[9,2,9,5],[9,7,9,8],[10,0,10,1],[10,2,10,5]]}
["Risikoanalyse von:",{"$f":"IF(Allg.Daten!B8=\"\",\"\",Allg.Daten!B8)","v":""}]
["Elektronik/Elektronik-BU"]
["Versicherungssumme",null,null,null,null,"Selbstbeteiligung"]
["Aufstellung Geräte:                                                            "]
["Hersteller",null,"Typ/Art",null,null,null,"Baujahr","Wert",null,"m/s"]
[]
[]
[]
[]
[]
[]
["Versicherungssumme für Elektronik-BU",null,null,"Haftzeit:",null,null,"Selbstbeteiligung (Arbeitstage):"]
["Vorschäden innerhalb der letzten 5 Jahre: ","Jahr ","Schadenart",null,null,null,"Schadenhöhe"]
[]
[]
[]
[]
["Vorversicherung: "]
["Versicherungsscheinnummer: "]
["Ablauf des Vertrages: "]
["Vertrag wird/wurde gekündigt von: ","Kunden: ","ja:",null,null,"Versicherer: ",null,"ja: "]

{"sheet":"Maschinen","index":27,"n_rows":26,"n_cols":10,"rows_kept":26,"cut":false,"hidden":true,"merged":[[22,1,22,9],[23,1,23,9],[24,1,24,9],[25,3,25,4],[25,5,25,6],[25,8,25,9],[5,0,5,1],[5,2,5,5],[5,7,5,8],[1,0,1,9],[3,0,3,9],[4,0,4,1],[4,2,4,5],[4,7,4,8],[2,5,2,6],[2,1,2,4],[2,7,2,9],[6,0,6,1],[6,2,6,5],[6,7,6,8],[7,0,7,1],[7,2,7,5],[7,7,7,8],[8,0,8,1],[8,2,8,5],[8,7,8,8],[9,0,9,1],[9,2,9,5],[9,7,9,8],[10,0,10,1],[10,2,10,5],[10,7,10,8],[11,0,11,1],[11,2,11,5],[11,7,11,8],[13,6,13,9],[14,2,14,5],[14,6,14,9],[15,2,15,5],[15,6,15,9],[0,1,0,4],[20,1,20,9],[21,3,21,4],[21,5,21,6],[21,8,21,9],[16,2,16,5],[16,6,16,9],[17,2,17,5],[17,6,17,9],[18,1,18,9],[19,1,19,9],[12,0,12,1],[12,2,12,5],[12,7,12,8],[13,0,17,0],[13,2,13,5]]}
["Risikoanalyse von:",{"$f":"IF(Allg.Daten!B8=\"\",\"\",Allg.Daten!B8)","v":""}]
["Maschinen"]
["Versicherungssumme",null,null,null,null,"Selbstbeteiligung"]
["Maschinverzeichnis: m= mobil, s=stationär"]
["Hersteller",null,"Typ/Art/Seriennummer",null,null,null,"Baujahr","Wert",null,"m/s"]
[]
[]
[]
[]
[]
[]
[]
[]
["Vorschäden innerhalb der letzten 5 Jahre: ","Jahr ","Schadenart",null,null,null,"Schadenhöhe"]
[]
[]
[]
[]
["Vorversicherung Stationär: "]
["Versicherungsscheinnummer: "]
["Ablauf des Vertrages: "]
["Vertrag wird/wurde gekündigt von: ","Kunden: ","ja:",null,null,"Versicherer: ",null,"ja: "]
["Vorversicherung Mobil: "]
["Versicherungsscheinnummer: "]
["Ablauf des Vertrages: "]
["Vertrag wird/wurde gekündigt von: ","Kunden: ","ja:",null,null,"Versicherer: ",null,"ja: "]

{"sheet":"MaschinenBU","index":28,"n_rows":55,"n_cols":8,"rows_kept":55,"cut":false,"hidden":true,"merged":[[3,1,3,2],[3,3,3,4],[3,7,3,8],[5,5,5,6],[1,0,1,9],[0,1,0,4],[5,1,5,4],[2,0,2,9],[5,0,11,0],[11,1,11,4],[6,1,6,4],[7,1,7,4],[8,1,8,4],[9,1,9,4],[10,1,10,4],[3,5,3,6],[5,7,5,9],[6,7,6,9],[7,7,7,9],[10,5,10,6],[11,5,11,6],[10,7,10,9],[11,7,11,9],[8,5,8,6],[9,5,9,6],[8,7,8,9],[9,7,9,9],[6,5,6,6],[7,5,7,6],[12,0,16,0],[14,1,14,2],[14,3,14,4],[14,5,14,6],[15,1,15,2],[15,3,15,4],[15,5,15,6],[12,1,12,2],[12,3,12,4],[12,5,12,6],[13,1,13,2],[13,3,13,4],[13,5,13,6],[17,8,17,9],[18,7,18,9],[18,5,18,6],[18,2,18,4],[13,8,13,9],[14,8,14,9],[15,8,15,9],[16,5,16,7],[16,8,16,9],[19,2,19,4],[19,5,19,6],[19,7,19,9],[18,0,21,0],[20,2,20,4],[21,2,21,4],[20,5,20,6],[21,5,21,6],[20,7,20,9],[21,7,21,9],[22,0,22,9],[23,0,23,9],[24,0,25,0],[24,1,24,3],[25,1,25,3],[24,5,24,7],[25,5,25,7],[24,8,24,9],[25,8,25,9],[41,4,41,5],[42,3,42,9],[43,1,43,9],[44,2,44,3],[44,4,44,5],[44,6,44,9],[26,0,26,9],[40,0,41,0],[27,2,27,3],[27,4,27,9],[28,2,28,3],[31,1,31,9],[32,3,32,9],[34,1,34,2],[34,3,34,5],[35,3,35,9],[36,1,36,9],[37,1,37,9],[38,3,38,9],[39,3,39,9],[40,4,40,5],[51,1,51,9],[52,1,52,9],[53,1,53,9],[54,3,54,4],[54,5,54,6],[54,8,54,9],[45,0,50,0],[45,2,45,5],[45,6,45,9],[46,2,46,5],[46,6,46,9],[47,2,47,5],[47,6,47,9],[48,2,48,5],[48,6,48,9],[49,2,49,5],[49,6,49,9],[50,2,50,5],[50,6,50,9]]}
["Risikoanalyse von:",{"$f":"IF(Allg.Daten!B8=\"\",\"\",Allg.Daten!B8)","v":""}]
["Maschinen-Betriebsunterbrechung"]
["Betriebsunterbrechungsversicherung"]
["Zu versichernder Zeitraum","Beginn",null,null,null,"Ablauf"]
["Versicherungssumme"]
["Entgangener Gewinn und fortlaufende Kosten","Geschäftsgewinn aus dem Absatz der im versicherten Betrieb hergestellten oder gehandelten Waren und Gewinn aus Dienstleistungen",null,null,null,"VSU"]
[null,"zeitunabhängige Geschäftskosten",null,null,null,"VSU"]
[null,"Gehälter, inkl. Gratifikationen, Urlaubsgelder und Sachleistungen",null,null,null,"VSU"]
[null,"Löhne inkl. Akkord-, Überstunden-, Leistungszulagen",null,null,null,"VSU"]
[null,"Provisionen und sonstige Bezüge",null,null,null,"VSU"]
[null,"Vorsorgebetrag",null,null,null,"VSU"]
[null,"Gesamt-Versicherungssumme ",null,null,null,"VSU"]
["Festbeträge je Produktionseinheit ","Erzeugnis",null,"Festbetrag / Tagesentschädigung",null,"Produktionseinheit pro Jahr /Haftung pro Monat"]
[null,null,null,null,null,null,null,"VSU"]
[null,null,null,null,null,null,null,"VSU"]
[null,null,null,null,null,null,null,"VSU"]
[null,null,null,null,null,"Gesamt-Versicherungssumme"]
["Verderbversicherung, Warenverzeichnis bitte beifügen",null,null,null,null,null,null,"VSU"]
["versicherte Sachen (ggf. Beiblatt hinzufügen)","Pos.","Leistung, Druck, Drehzahl, Drehmoment, Temperatur, Durchflussgeschwindigkeit (s. auch Punkt 3.)",null,null,"Ausfallziffer (%)",null,"alternativ: Versicherung nach Festbeträgen Klausel TK 4712 AMBUB Stundensatz EUR/Std."]
[]
[]
[]
["Sollten in der versicherten Sache mehrere technische Einheiten wie Motor, Pumpe, Verdichter, Ofen etc. vorhanden sein, so sind die jeweiligen technischen Abhängigkeiten (Ausfallziffern) unter den Baugruppen und deren spez. Leistungsmerkmale auf einem gesonderten Blatt zu skizzieren."]
["Mehrkostenversicherung"]
["Versicherungssumme zeitabhängige Mehrkosten (MK) und zeitunabhängige MK (falls gewünscht)","zeitabhängig, inkl. Arbeitspreis",null,null,"VSU"]
[null,"zeitunabhängig, inkl. Leistungsgebühren",null,null,"VSU"]
["Risikobeschreibung"]
["Haftzeit","Monate:"]
["Selbstbehalt \n(Mindestselbstbehalt 2 Arbeitstage)","Tage:"]
["Selbstbehalt für zeitunabhängige Mehrkosten",0.1,0.2,null,"%"]
["Selbstbehalt für Verderb",0.1,0.2,null,"%"]
["Für welche Maschinen / Anlagen besteht noch Garantie des Lieferers (Position Geräteverzeichnis) ?"]
["Sind die zu versichernden Sachen Erst- oder Einzelausführungen?","nein","ja, folgende"]
["Werden die Maschinen / Anlagen gem. Herstellerempfehlung gewartet ?","nein","ja"]
["Welche Maschinen stehen im Produktionsablauf in Abhängigkeit zueinander ? Bitte reichen Sie uns hierzu einen Produktionsablaufplan ein, aus dem der Einsatz der im Verzeichnis genannten Maschinen / Anlagen hervorgeht.","Plan liegt bei",null,"Plan wird nachgereicht"]
["Kann die Produktion dieser Maschine auf andere Maschinen verlagert werden?","nein","ja"]
["Mit welcher Ausfalldauer wird im Extremfall gerechnet?"]
["In welchem Zeitraum können Anlagen-  und Anlagenteile wiederbeschafft werden?"]
["Kann durch Mehraufwendungen / Mehrkosten ein Unterbrechungsschaden vermieden werden ? ( Wie hoch sind die Kosten für Mehraufwendungen, z.B. duch Anmietung von Ersatzmaschinen, höheren personellen, technischen und Energieeinsatz, Anmietung von Kapazitäten bei Fremdfirmen?)","nein","ja, nämlich"]
["Kann ein Unterbrechungsschaden noch andere als die im Verzeichnis genannte(n) Maschine(n) betreffen? Bei Schwerpunktmaschinen bitten wir um Mitteilung der Maschine und des hierauf entfallenden Stundensatzes, der Jahresarbeitszeit (Ermittelt aus Jahresarbeitstagen und Tagesarbeitszeit), des Schichtbetriebes der Maschine.","nein","ja"]
["Die normale Arbeitszeit beträgt:",null,"Stunden täglich",null,"Stunden wöchentlich"]
[null,null,"Schichten pro Tag",null,"Tage pro Jahr"]
["Handelt es sich um einen Saisonbetrieb, der in einigen Monaten des Jahres eingeschränkt bzw. verstäkrt, oder auch mit Unterbrechungen arbeitet?","nein","ja, nämlich"]
["Seit wann wir der Betrieb in dieser Art betrieben?"]
["Durch welchen vereidigten Buchprüfer und in welchen regelmäßigen Abständen werden die Geschäftsbücher überprüft?","Name",null,null,"Anschrift"]
["Vorschäden innerhalb der letzten 5 Jahre","Jahr ","Schadenart",null,null,null,"Schadenhöhe"]
[]
[]
[]
[]
[]
["Vorversicherung"]
["Versicherungsscheinnummer"]
["Ablauf des Vertrages"]
["Vertrag wird/wurde gekündigt von","Kunden: ","ja:",null,null,"Versicherer: ",null,"ja: "]

{"sheet":"Photovoltaik","index":29,"n_rows":3,"n_cols":2,"rows_kept":3,"cut":false,"hidden":true,"merged":[[1,0,1,9],[0,1,0,4],[2,0,2,9]]}
["Risikoanalyse von:",{"$f":"IF(Allg.Daten!B8=\"\",\"\",Allg.Daten!B8)","v":""}]
["Solar-/ Photovoltaikanlage inkl. Ertragsausfallversicherung und Betreiberhaftpflicht "]
["Bitte entnehmen Sie den Fragebogen aus dem BeraterPortal oder sprechen Sie die Fachabteilung an"]

{"sheet":"Bauleistung","index":30,"n_rows":20,"n_cols":9,"rows_kept":20,"cut":false,"hidden":true,"merged":[[19,1,19,9],[3,2,3,3],[4,1,4,9],[5,7,5,8],[7,1,7,3],[7,5,7,6],[6,1,6,5],[12,5,12,9],[11,5,11,9],[9,2,9,3],[9,5,9,6],[9,8,9,9],[3,5,3,7],[3,8,3,9],[2,5,2,6],[2,7,2,9],[6,0,7,0],[8,1,8,9],[18,1,18,9],[7,8,7,9],[0,1,0,4],[13,0,17,0],[13,2,13,5],[13,6,13,9],[14,2,14,5],[14,6,14,9],[15,2,15,5],[15,6,15,9],[16,2,16,5],[16,6,16,9],[17,2,17,5],[17,6,17,9],[1,0,1,9],[10,5,10,9],[6,6,6,9],[2,1,2,4]]}
["Risikoanalyse von:",{"$f":"IF(Allg.Daten!B8=\"\",\"\",Allg.Daten!B8)","v":""}]
["Bauleistungsversicherung "]
["Versicherungssumme",null,null,null,null,"Selbstbeteiligung"]
["Vertragsdauer","Beginn",null,null,"Ablauf "]
["Risikoort: "]
["Art des Bauvorhabens","Neubau",null,"Aus-/Umbau",null,"Aufstockung",null,"Altbausanierung "]
["Welche Bauweise","Mauerwerks-, Stahlbeton, Stahlskelett und Stahlbetonmassivbau"]
[null,"Fertigbauteil, Bauten in Spannbeton ",null,null,null,"Sonstige, bitte erläutern "]
["Bausumme"]
["Gegen welche Gefahren",null,"unvorhergesehen eintretende Bauschädigungen oder Zerstörungen von versicherten Sachen",null,null,"Schäden durch Brand, Blitzschlag oder Explosion, Luftfahrzeugabsturz",null,null,"Schäden durch Gewässer infolge von ungewöhnlichem und/oder außergewöhnlichem Hochwasser"]
["bei Umbauten: \nohne Eingriff in die tragende \nKonstruktion: ","nein: ",null,"ja:"]
["Mitversicherung von Altbauten\n(Beweissicherung erforderlich): ","nein: ",null,"ja:"]
["Gabe es bereits einen gleichartigen Vertrag","nein: ",null,"ja"]
["Vorschäden innerhalb der letzten 5 Jahre: ","Jahr ","Schadenart",null,null,null,"Schadenhöhe"]
[]
[]
[]
[]
["Vorversicherung: "]
["Versicherungsscheinnummer: "]

{"sheet":"Montage","index":31,"n_rows":48,"n_cols":8,"rows_kept":48,"cut":false,"hidden":true,"merged":[[44,1,44,9],[45,1,45,9],[46,1,46,9],[47,3,47,4],[47,5,47,6],[47,8,47,9],[41,2,41,5],[41,6,41,9],[42,2,42,5],[42,6,42,9],[43,2,43,5],[43,6,43,9],[32,0,33,0],[34,0,36,0],[34,4,34,5],[34,6,34,9],[35,4,35,5],[35,6,35,9],[36,4,36,5],[36,6,36,9],[35,1,35,2],[36,1,36,2],[31,2,31,3],[31,4,31,6],[31,7,31,9],[32,4,32,5],[28,5,28,6],[29,5,29,6],[29,8,29,9],[28,7,28,9],[33,4,33,5],[32,6,32,9],[33,6,33,9],[17,1,17,2],[17,4,17,9],[15,1,15,2],[15,3,15,4],[15,5,15,6],[15,7,15,9],[16,1,16,2],[16,4,16,9],[30,4,30,9],[21,1,21,9],[18,0,23,0],[18,1,18,4],[19,1,19,4],[20,1,20,4],[18,7,18,9],[19,7,19,9],[20,7,20,9],[22,1,22,9],[23,1,23,9],[13,1,13,2],[13,3,13,9],[14,1,14,2],[14,3,14,4],[14,5,14,6],[14,7,14,9],[10,5,10,9],[11,3,11,4],[11,6,11,7],[12,1,12,2],[12,3,12,9],[38,0,43,0],[38,2,38,5],[38,6,38,9],[39,2,39,5],[39,6,39,9],[40,2,40,5],[40,6,40,9],[24,2,24,3],[25,2,25,3],[26,2,26,3],[27,2,27,3],[28,1,28,3],[32,1,32,2],[33,1,33,2],[34,1,34,2],[29,1,29,3],[30,2,30,3],[37,1,37,2],[37,3,37,9],[28,0,29,0],[24,4,24,9],[25,4,25,9],[26,4,26,9],[27,4,27,9],[1,0,1,9],[0,1,0,4],[2,8,2,9],[7,1,7,4],[8,1,8,4],[9,1,9,4],[10,1,10,4],[7,5,7,9],[8,5,8,9],[9,5,9,9],[6,3,6,4],[6,5,6,6],[6,7,6,9],[2,2,2,3],[2,5,2,7],[3,2,3,3],[3,5,3,9],[4,4,4,5],[4,7,4,9],[3,0,4,0],[5,2,5,3],[5,5,5,9],[7,0,10,0]]}
["Risikoanalyse von:",{"$f":"IF(Allg.Daten!B8=\"\",\"\",Allg.Daten!B8)","v":""}]
["Montage"]
["Zu versichernder Zeitraum","Beginn",null,null,"Ablauf"]
["Besteller (falls nicht mit Antragsteller identisch)","Name:",null,null,"Anschrift"]
[null,"Telefon:",null,"Fax:",null,null,"E-Mail"]
["Sind Subunternehmer beteiligt?","nein","ja, prozentualer Anteil:"]
["Antragsteller ist","Besteller","Hersteller","Montagefirma",null,"Generalunternehmer"]
["Art der Montage","Neumontage, Umsatz oder prozentualer Anteil"]
[null,"De- und Remontage, Umsatz oder prozentualer Anteil"]
[null,"Raparaturen / Umbau, Umsatz oder prozentualer Anteil"]
[null,"Wartung, Umsatz oder prozentualer Anteil"]
["Erstausführung?","nein",null,"Erstausführung",null,null,"teilweise"]
["Anzahl der Montagen pro Jahr (durchschnittlich)?"]
["Anzahl gleichzeitiger Montagen pro Jahr (durchschnittlich)?"]
["Montagedauer (durchschnittlich)?","Tage",null,"Wochen",null,"Monate"]
["Erprobungsdauer (durchschnittlich)?","Tage",null,"Wochen",null,"Monate"]
["Montagewert (durchschnittlich)?",null,null,"EUR"]
["Höchster Montagewert?",null,null,"EUR"]
["Montageplatz","BRD, prozentualer Anteil",null,null,null,null,"%"]
[null,"westliches Europa, prozentualer Anteil",null,null,null,null,"%"]
[null,"geographisches Europa, prozentualer Anteil",null,null,null,null,"%"]
[null,"Hinweis: Angaben von Leistung, Tragkraft, Gewicht, Druck in bar, Drehzahl. Bei Stahlkonstruktionen: Werkstoff, ob geschweißt oder genietet. Fabrik- und Kommissionsnummer, Abbildung oder Zeichnung erwünscht."]
[]
[]
["Montageausrüstung ohne Autokrane und sonstige Fahrzeuge (Neuwert)","VSU (EUR)  "]
["Fremde Sachen auf \"Erstes Risiko\"","VSU (EUR)  "]
["Mehrkosten für Erd- oder Bauarbeiten auf \"Erstes Risiko\"","VSU (EUR)  "]
["Zusätzliche Aufräumungs- und Bergungskosten","VSU (EUR)  "]
["Mitversicherung von Mehrkosten für","Arbeits- und Eilfrachzuschläge",null,null,"nein","ja"]
[null,"Luftfrachtkosten auf \"Erstes Risiko\"",null,null,"nein","ja",null,"VSU (EUR)  "]
["Mitversicherung von De- und Remontagekosten bei Schäden infolge eines Mangels","nein","ja"]
["Erweiterung der versicherten Interessen","nein","ja, und zwar        ",null,"Bestellerinteresse an Unternehmerleistungen",null,null,"Bestellerinteresse an \nseinen Leistungen"]
["Mitversicherung von Schäden durch","Innere Unruhen",null,"nein","ja"]
[null,"Streik, Aussperrung",null,"nein","ja"]
["Ausschluss von Schäden durch","Brand, Explosion, Blitzschlag",null,"nein","ja"]
[null,"Herstellerrisiko",null,"nein","ja"]
[null,"Höhere Gewalt",null,"nein","ja"]
["Selbstbehalt je Schaden "]
["Vorschäden innerhalb der letzten 5 Jahre","Jahr ","Schadenart",null,null,null,"Schadenhöhe"]
[]
[]
[]
[]
[]
["Vorversicherung"]
["Versicherungsscheinnummer"]
["Ablauf des Vertrages"]
["Vertrag wird/wurde gekündigt von","Kunden: ","ja:",null,null,"Versicherer: ",null,"ja: "]

{"sheet":"Transport","index":32,"n_rows":113,"n_cols":10,"rows_kept":113,"cut":false,"hidden":true,"merged":[[109,1,109,9],[110,1,110,9],[111,1,111,9],[112,3,112,4],[112,5,112,6],[112,8,112,9],[100,0,102,0],[100,1,100,9],[101,1,101,9],[102,1,102,9],[103,0,108,0],[103,2,103,5],[103,6,103,9],[104,2,104,5],[104,6,104,9],[105,2,105,5],[105,6,105,9],[106,2,106,5],[106,6,106,9],[107,2,107,5],[107,6,107,9],[108,2,108,5],[108,6,108,9],[94,0,99,0],[94,1,94,2],[94,5,94,7],[95,1,95,2],[96,1,96,2],[97,1,97,2],[98,1,98,2],[99,1,99,2],[99,3,99,5],[4,5,4,9],[1,0,1,9],[0,1,0,4],[5,0,6,0],[5,1,5,3],[6,1,6,3],[5,4,5,9],[6,4,6,9],[7,0,7,9],[2,0,2,9],[3,1,3,9],[9,3,9,4],[9,5,9,7],[9,8,9,9],[8,0,9,0],[10,0,17,0],[10,3,10,4],[10,5,10,7],[10,8,10,9],[10,1,10,2],[8,1,8,2],[8,3,8,4],[8,5,8,7],[8,8,8,9],[9,1,9,2],[13,1,13,2],[13,3,13,9],[14,1,14,2],[14,3,14,4],[14,5,14,7],[14,8,14,9],[11,1,11,2],[11,3,11,9],[12,1,12,2],[12,3,12,4],[33,5,33,9],[34,5,34,9],[36,5,36,9],[37,5,37,9],[28,5,28,9],[29,5,29,9],[31,5,31,9],[32,5,32,9],[23,5,23,9],[24,5,24,9],[25,5,25,9],[26,5,26,9],[27,5,27,9],[44,5,44,9],[52,5,52,9],[53,5,53,9],[54,5,54,9],[45,5,45,9],[46,5,46,9],[47,5,47,9],[48,5,48,9],[38,5,38,9],[40,5,40,9],[41,5,41,9],[42,5,42,9],[12,5,12,7],[12,8,12,9],[17,1,17,2],[17,3,17,9],[18,0,21,0],[19,1,19,4],[20,1,20,4],[21,1,21,4],[15,1,15,2],[15,3,15,9],[16,1,16,2],[16,3,16,4],[16,5,16,7],[16,8,16,9],[19,5,19,9],[20,5,20,9],[21,5,21,9],[30,0,34,0],[31,1,31,4],[32,1,32,4],[33,1,33,4],[34,1,34,2],[34,3,34,4],[22,0,29,0],[23,1,23,4],[24,1,24,4],[25,1,25,4],[26,1,26,4],[27,1,27,4],[28,1,28,4],[29,1,29,2],[29,3,29,4],[43,0,48,0],[44,1,44,4],[45,1,45,4],[46,1,46,4],[47,1,47,4],[48,1,48,2],[48,3,48,4],[35,0,38,0],[36,1,36,4],[37,1,37,4],[38,1,38,4],[39,0,42,0],[40,1,40,4],[41,1,41,4],[42,1,42,4],[67,1,67,3],[68,1,68,3],[69,1,69,3],[67,4,67,5],[68,4,68,5],[49,0,50,0],[50,1,50,2],[50,3,50,9],[51,0,56,0],[52,1,52,4],[53,1,53,4],[54,1,54,4],[55,1,55,4],[56,1,56,2],[56,3,56,4],[60,5,60,9],[61,5,61,9],[62,5,62,9],[63,5,63,9],[64,5,64,9],[55,5,55,9],[56,5,56,9],[57,5,57,9],[58,5,58,9],[66,4,66,5],[57,1,57,2],[57,3,57,4],[57,0,60,0],[58,1,58,2],[59,1,59,2],[60,1,60,2],[58,3,58,4],[59,3,59,4],[60,3,60,4],[65,5,65,9],[66,6,66,9],[59,5,59,9],[69,4,69,5],[67,6,67,9],[68,6,68,9],[69,6,69,9],[70,0,72,0],[70,1,70,2],[70,3,70,4],[70,5,70,6],[70,7,70,9],[71,1,71,2],[71,3,71,4],[71,5,71,6],[71,7,71,9],[72,1,72,2],[72,3,72,4],[72,5,72,6],[72,7,72,9],[61,0,69,0],[61,1,61,4],[62,1,62,4],[63,1,63,4],[64,1,64,4],[65,1,65,4],[66,1,66,3],[73,5,73,9],[74,5,74,9],[75,5,75,9],[76,5,76,9],[77,5,77,9],[73,0,81,0],[73,1,73,4],[74,1,74,4],[75,1,75,4],[76,1,76,4],[77,1,77,4],[78,1,78,4],[79,1,79,4],[80,1,80,4],[81,1,81,4],[78,5,78,9],[79,5,79,9],[80,5,80,9],[81,5,81,9],[82,1,82,4],[83,1,83,4],[84,1,84,4],[85,1,85,4],[86,1,86,4],[82,5,82,9],[83,5,83,9],[84,5,84,9],[89,0,93,0],[89,2,89,9],[90,2,90,9],[91,2,91,9],[92,2,92,9],[93,2,93,9],[85,5,85,9],[86,5,86,9],[87,5,87,9],[88,5,88,9],[82,0,88,0],[87,1,87,4],[88,1,88,4]]}
["Risikoanalyse von:",{"$f":"IF(Allg.Daten!B8=\"\",\"\",Allg.Daten!B8)","v":""}]
["Transport"]
["Güter"]
["Genaue Bezeichnung der Güter\n(keine Sammelausdrücke)"]
["Zustand der Güter",null,"neu",null,"gebraucht"]
["Art der Transportverpackung","Innenverpackung: (z. B. Plastikbeutel, Styroporeinlage, Luftpolsterfolie, etc.)"]
[null,"Außenverpackung: (z. B. Kartons, Kisten, Paletten, etc.)"]
["Transportrisiken"]
["Deutschland","Versandumsatz",null,null,null,"davon auf Gefahr VN"]
[null,"Bezugswert",null,null,null,"davon auf Gefahr VN"]
["Ausland","Versandumsatz nach Europa ohne GUS",null,null,null,"davon auf Gefahr VN"]
[null,"Länderschwerpunkte"]
[null,"Übrige Länder der Erde",null,null,null,"davon auf Gefahr VN"]
[null,"Länderschwerpunkte"]
[null,"Bezugswerte aus Europa ohne GUS",null,null,null,"davon auf Gefahr VN"]
[null,"Länderschwerpunkte"]
[null,"Bezugswerte aus übrigen Ländern der Erde",null,null,null,"davon auf Gefahr VN"]
[null,"Länderschwerpunkte"]
["Transporte zwischen Betriebsstätten/Niederlassungen /externen Lagern \n(Bitte mit genauer Anschrift)",null,"ja",null,"nein"]
[null,"Länder",null,null,null,"Wert p.A"]
[]
[]
["Transporte zu/von Subunternehmern, Lohnbearbeitern, Fremdverpackern",null,"ja",null,"nein"]
[null,"Länder",null,null,null,"Wert p.A"]
[]
[]
[null,"Anschrift",null,null,null,"Maximum beim Aufenthalt"]
[]
[]
[null,"Dauer der Aufenthalte bis zu",null,null,null,"Tagen"]
["Transporte von Leih- und Demonstrationsgeräten",null,"ja",null,"nein"]
[null,"Länder",null,null,null,"Wert p.A"]
[]
[]
[null,"Dauer der Aufenthalte bis zu",null,null,null,"Tagen"]
["Transporte von Reparaturversendungen (Versand)",null,"ja",null,"nein"]
[null,"Länder",null,null,null,"Wert p.A"]
[]
[]
["Investitionsgütertransporte (Bezug)",null,"ja",null,"nein"]
[null,"Länder",null,null,null,"Wert p.A"]
[]
[]
["Transporte von Produktionsmaschinen, \n-anlagenteile und Werkzeuge \nZur Reparatur / Überholung an Dritte",null,"ja",null,"nein"]
[null,"Länder",null,null,null,"Wert p.A"]
[]
[]
[null,"Maximum beim Aufenthalt"]
[null,"Dauer der Aufenthalte bis zu",null,null,null,"Tagen"]
["Transporte mit eigenem Fuhrpark",null,"ja",null,"nein"]
[null,"Anzahl der Fahrzeuge"]
["Disponierte/verfügte Lagerungen bei Speditionen",null,"ja",null,"nein"]
[null,"Anschrift",null,null,null,"Maximum"]
[]
[]
[]
[null,"Dauer der Aufenthalte bis zu",null,null,null,"Tagen"]
["Ausstellungsrisiken","Länder",null,"Anzahl",null,"Versicherungssumme je Ausstellung"]
[]
[]
[]
["Firmen-Reisegepäck \n(wenn möglich Namensnennung, \nalternativ Personengruppen)","Name",null,null,null,"Versicherungssumme je Person"]
[]
[]
[]
[]
[null,"Alternativ:\nBezeichnung Personengruppe",null,null,"Anzahl",null,"Versicherungssumme je Person"]
[]
[]
[]
["Musterkollektionen|Werkzeug und Montageausrüstungen","Genaue Bezeichnung",null,"Anzahl",null,"Geltungsbereich",null,"Versicherungssumme"]
[]
[]
["Höchstversicherungssumme (Maximum)","Eigene Kraftfahrzeuge"]
[null,"Fremde Kraftfahrzeuge (Spedition, Frachtführer)"]
[null,"Bahn"]
[null,"Seeschiff"]
[null,"Flussschiff"]
[null,"Flugzeug"]
[null,"Paketdienste (je Paketsendung)"]
[null,"Ausstellung"]
[null,"Feuertechnisch getrenntes Lager (transportbedingte Lagerung)"]
["Verteilung des Transportvolumens auf die genannten Verkehrsträger","Eigene Kraftfahrzeuge"]
[null,"Fremde Kraftfahrzeuge (Spedition, Frachtführer)"]
[null,"Bahn "]
[null,"Seeschiff"]
[null,"Flussschiff "]
[null,"Flugzeug"]
[null,"Post/Paketdienste"]
["Gewünschter Versicherungsumfang",null,"Güter 2000/2008 – Volle Deckung"]
[null,null,"Güter 2000/2008 – Eingeschränkte Deckung"]
[null,null,"Güter 2000/2008 – inkl. politische Risiken Krieg|Streik|Beschlagnahme gem. Klauseln"]
[null,null,"Güter 2000/2008 – inkl. Güterfolgeschaden gem. Klauseln"]
[null,null,"Güter 2000/2008 – inkl. Vermögensschaden gem. Klauseln"]
["Gewünschter Selbstbehalt","Abzugsfranchise",null,"ja","nein","Integralfranchise",null,null,"ja","nein"]
[null,"keiner"]
[null,250]
[null,500]
[null,1000]
[null,"andere Alternative gewünscht"]
["Versichertes Interesse","        Versicherung abhängig der Gefahrtragung (nach Liefervereinbarung)"]
[null,"        Versicherung abhängig der Gefahrtragung (nach Liefervereinbarung) inkl. Schutzversicherung gem. Klausel"]
[null,"        Versicherung unabhängig der Gefahrtragung"]
["Vorschäden innerhalb der letzten 5 Jahre","Jahr ","Schadenart",null,null,null,"Schadenhöhe"]
[]
[]
[]
[]
[]
["Vorversicherung"]
["Versicherungsscheinnummer"]
["Ablauf des Vertrages"]
["Vertrag wird/wurde gekündigt von","Kunden: ","ja:",null,null,"Versicherer: ",null,"ja: "]

{"sheet":"Gepäck","index":33,"n_rows":14,"n_cols":8,"rows_kept":14,"cut":false,"hidden":true,"merged":[[8,2,8,5],[8,6,8,9],[5,2,5,5],[5,6,5,9],[6,2,6,5],[6,6,6,9],[7,2,7,5],[7,6,7,9],[0,1,0,4],[13,3,13,4],[13,5,13,6],[13,8,13,9],[9,2,9,5],[9,6,9,9],[10,1,10,9],[11,1,11,9],[12,1,12,9],[1,0,1,9],[3,1,3,9],[4,1,4,9],[2,1,2,4],[2,5,2,6],[2,7,2,9],[5,0,9,0]]}
["Risikoanalyse von:",{"$f":"IF(Allg.Daten!B8=\"\",\"\",Allg.Daten!B8)","v":""}]
["Reisegepäckversicherung "]
["Versicherungssumme",null,null,null,null,"Selbstbeteiligung"]
["Reisedauer: "]
["Anzahl der Reisenden:"]
["Vorschäden innerhalb der letzten 5 Jahre: ","Jahr ","Schadenart",null,null,null,"Schadenhöhe"]
[]
[]
[]
[]
["Vorversicherung: "]
["Versicherungsscheinnummer: "]
["Ablauf des Vertrages: "]
["Vertrag wird/wurde gekündigt von: ","Kunden: ","ja:",null,null,"Versicherer: ",null,"ja: "]

{"sheet":"Autoinhalt","index":34,"n_rows":20,"n_cols":9,"rows_kept":20,"cut":false,"hidden":true,"merged":[[1,0,1,9],[3,6,3,9],[4,6,4,9],[5,1,5,2],[5,3,5,4],[3,2,3,3],[4,2,4,3],[5,5,5,9],[2,1,2,4],[2,5,2,6],[2,7,2,9],[6,1,6,2],[6,3,6,4],[6,5,6,7],[6,8,6,9],[7,1,7,2],[7,3,7,4],[7,5,7,7],[7,8,7,9],[8,5,8,7],[11,0,15,0],[11,2,11,5],[11,6,11,9],[12,2,12,5],[12,6,12,9],[13,2,13,5],[8,8,8,9],[9,1,9,2],[9,3,9,4],[9,5,9,7],[9,8,9,9],[19,8,19,9],[0,1,0,4],[17,1,17,9],[18,1,18,9],[16,1,16,9],[10,1,10,2],[10,3,10,4],[10,5,10,7],[10,8,10,9],[13,6,13,9],[14,2,14,5],[14,6,14,9],[15,2,15,5],[15,6,15,9],[8,1,8,2],[8,3,8,4]]}
["Risikoanalyse von:",{"$f":"IF(Allg.Daten!B8=\"\",\"\",Allg.Daten!B8)","v":""}]
["Autoinhalt"]
["Versicherungssumme",null,null,null,null,"Selbstbeteiligung"]
["Transport mit dem eigenen Kraftfahrzeug: ","nein: ",null,null,"ja:"]
["Befinden sich eigen Werkzeuge/\nArbeitsmittel im eigenen KFZ:","nein: ",null,null,"ja:"]
["Einsatzgebiet: ","Deutschland:",null,"Europa:"]
["Fahrzeug (Typ/Art):","Kennzeichen",null,"Kennzeichen",null,"Art Werkzeug/Ware",null,null,"Höchstwert je KFZ"]
[]
[]
[]
[]
["Vorschäden innerhalb der letzten 5 Jahre: ","Jahr ","Schadenart",null,null,null,"Schadenhöhe"]
[]
[]
[]
[]
["Vorversicherung: "]
["Versicherungsscheinnummer: "]
["Ablauf des Vertrages: "]
["Vertrag wird/wurde gekündigt von: ","Kunden: ","ja:",null,null,"Versicherer: ",null,"ja: "]

{"sheet":"Ausstellung","index":35,"n_rows":19,"n_cols":8,"rows_kept":19,"cut":false,"hidden":true,"merged":[[17,1,17,9],[9,1,9,6],[9,7,9,9],[18,3,18,4],[18,5,18,6],[18,8,18,9],[15,1,15,9],[16,1,16,9],[10,0,14,0],[10,2,10,5],[10,6,10,9],[11,2,11,5],[11,6,11,9],[12,2,12,5],[12,6,12,9],[13,2,13,5],[13,6,13,9],[14,2,14,5],[14,6,14,9],[0,1,0,4],[1,0,1,9],[4,6,4,9],[6,0,9,0],[6,1,6,6],[6,7,6,9],[7,1,7,6],[7,7,7,9],[8,1,8,6],[8,7,8,9],[3,1,3,9],[2,1,2,4],[2,5,2,6],[2,7,2,9],[5,4,5,9]]}
["Risikoanalyse von:",{"$f":"IF(Allg.Daten!B8=\"\",\"\",Allg.Daten!B8)","v":""}]
["Ausstellung"]
["Versicherungssumme",null,null,null,null,"Selbstbeteiligung"]
["Veranstaltungsort: "]
["Land: ","BRD:",null,"Europa: ",null,"sonstige:"]
["Dauer der Ausstellung (inkl. Hin- und Rücktransport):","von:",null,"bis: "]
["Ausstellungsgüter \n(Standausstattung, Waren):","Art: ",null,null,null,null,null,"Wert: "]
[]
[]
[]
["Vorschäden innerhalb der letzten 5 Jahre: ","Jahr ","Schadenart",null,null,null,"Schadenhöhe"]
[]
[]
[]
[]
["Vorversicherung: "]
["Versicherungsscheinnummer: "]
["Ablauf des Vertrages: "]
["Vertrag wird/wurde gekündigt von: ","Kunden: ","ja:",null,null,"Versicherer: ",null,"ja: "]

{"sheet":"Kfz","index":36,"n_rows":49,"n_cols":19,"rows_kept":49,"cut":false,"hidden":true,"merged":[[1,0,1,18],[2,18,5,18],[4,16,4,17],[0,3,0,6],[48,15,48,17],[4,5,4,6],[2,14,2,17],[3,14,3,17],[4,14,4,15]]}
["Risikoanalyse von:",null,null,{"$f":"IF(Allg.Daten!B8=\"\",\"\",Allg.Daten!B8)","v":""}]
["KFZ"]
[null,null,null,null,null,null,null,null,null,null,null,null,null,null,"Versicherungsumfang",null,null,null,"Prämie aktueller Versicherer\n(Jahresprämie inkl. Vst.)"]
[null,null,null,null,null,null,null,null,null,null,null,null,null,null,"KH 100 Mio. "]
["Nr.","amtl. ","Art des","Verwendung","Aufbauart","Schl.-Nr.",null,"Erst-","Zulassung","kW, Pl., t","Fahrzeug-","Neuwert","Mehrwerte","ZW","SF-Klasse",null,"Selbstbeteiligung"]
[null,"Kennz.","KFZ",null,null,"Herst.","Typ","zulassung","auf VN",null,"identifizierungsNr.","in €","in €",null,"KH","VK","VK","TK"]
[]
[]
[]
[]
[]
[]
[]
[]
[]
[]
[]
[]
[]
[]
[]
[]
[]
[]
[]
[]
[]
[]
[]
[]
[]
[]
[]
[]
[]
[]
[]
[]
[]
[]
[]
[]
[]
[]
[]
[]
[]
[]
[null,null,null,null,null,null,null,null,null,null,null,null,null,null,null,"Gesamtjahresprämie",null,null,{"$f":"SUM(S7:S47)","v":0}]

{"sheet":"Dienstreise","index":37,"n_rows":3,"n_cols":2,"rows_kept":3,"cut":false,"hidden":true,"merged":[[1,0,1,9],[0,1,0,4],[2,0,2,9]]}
["Risikoanalyse von:",{"$f":"IF(Allg.Daten!B8=\"\",\"\",Allg.Daten!B8)","v":""}]
["Dienstreise-Kasko"]
["Bitte entnehmen Sie den Fragebogen aus dem BeraterPortal oder sprechen Sie die Fachabteilung an"]

{"sheet":"Kredit","index":38,"n_rows":79,"n_cols":10,"rows_kept":79,"cut":false,"hidden":true,"merged":[[5,1,5,4],[5,5,5,9],[6,1,6,4],[7,1,7,4],[8,1,8,4],[0,1,0,4],[1,0,1,9],[3,1,3,9],[2,1,2,9],[4,5,4,9],[4,1,4,4],[15,1,15,4],[6,5,6,9],[7,5,7,9],[8,5,8,9],[9,5,9,9],[10,5,10,9],[11,5,11,9],[12,5,12,9],[13,5,13,9],[14,5,14,9],[15,5,15,9],[9,1,9,4],[10,1,10,4],[11,1,11,4],[12,1,12,4],[13,1,13,4],[14,1,14,4],[20,1,20,4],[21,1,21,2],[21,3,21,4],[20,5,21,9],[20,0,21,0],[16,1,16,9],[18,0,19,0],[18,2,18,9],[17,1,17,9],[19,2,19,9],[26,1,26,3],[26,4,26,9],[27,1,27,2],[27,3,27,9],[25,1,25,2],[25,3,25,4],[22,5,22,9],[23,5,23,9],[24,5,24,9],[25,5,25,9],[22,1,22,2],[22,3,22,4],[23,1,23,2],[23,3,23,4],[24,1,24,2],[24,3,24,4],[30,1,30,5],[30,6,30,9],[31,1,31,5],[31,6,31,9],[32,1,32,5],[32,6,32,9],[28,1,28,5],[28,6,28,9],[29,1,29,5],[29,6,29,9],[33,1,33,5],[33,6,33,9],[34,0,35,0],[34,1,34,4],[34,5,34,9],[35,1,35,2],[35,3,35,4],[35,5,35,7],[35,8,35,9],[39,6,39,9],[40,1,40,5],[40,6,40,9],[41,1,41,5],[41,6,41,9],[38,3,38,4],[38,5,38,7],[38,8,38,9],[36,3,36,4],[36,5,36,7],[36,8,36,9],[37,1,37,2],[37,3,37,4],[37,5,37,7],[37,8,37,9],[36,1,36,2],[38,1,38,2],[39,1,39,5],[45,1,45,9],[46,1,46,2],[46,3,46,5],[46,6,46,9],[47,1,47,2],[47,3,47,5],[47,6,47,9],[42,6,42,9],[43,1,43,5],[43,6,43,9],[44,1,44,5],[44,6,44,9],[42,1,42,5],[61,1,61,4],[61,5,61,9],[62,1,62,4],[62,5,62,9],[48,6,48,9],[49,6,49,9],[50,6,50,9],[51,1,51,9],[52,1,52,9],[48,1,48,2],[48,3,48,5],[49,1,49,2],[49,3,49,5],[50,1,50,2],[50,3,50,5],[68,3,68,4],[65,1,65,4],[65,5,65,6],[74,0,76,0],[53,0,58,0],[58,1,58,2],[58,3,58,9],[59,1,59,4],[59,5,59,9],[56,1,57,5],[56,6,56,7],[56,8,56,9],[57,6,57,7],[57,8,57,9],[53,1,53,4],[53,5,53,9],[54,6,54,7],[54,8,54,9],[54,1,55,5],[55,6,55,7],[55,8,55,9],[59,0,64,0],[60,1,60,4],[60,5,60,9],[76,4,76,9],[63,1,63,4],[63,5,63,9],[64,1,64,2],[77,1,77,9],[78,1,78,9],[68,5,68,9],[69,0,73,0],[72,5,72,6],[73,5,73,6],[72,1,72,4],[73,1,73,4],[72,7,72,9],[73,7,73,9],[65,0,68,0],[66,1,66,4],[66,5,66,6],[66,7,66,9],[67,5,67,6],[67,1,67,2],[67,3,67,4],[67,7,67,8],[65,7,65,9],[68,1,68,2]]}
["Risikoanalyse von:",{"$f":"IF(Allg.Daten!B8=\"\",\"\",Allg.Daten!B8)","v":""}]
["Kredit/Forderungsausfall "]
["Folgende Waren bzw. Dienstleistungen werden geliefert / produziert bzw. erbracht"]
["Branchen, Industriezweige bzw. Handelsgruppen der Abnehmer (mit Prozentangabe des Anteils am Umsatz)"]
["Umsätze (exkl. USt.) / \nOffene Forderungen (exkl. USt.)","Umsätze (T€)",null,null,null,"Ø Forderungen (T€)"]
["Gesamte Geschäftsjahr 20 ___"]
["abzgl. verbundene Unternehmen (Beteiligungen)"]
["abzgl. öffentlich-rechtliche Unternehmen"]
["abzgl. Barumsätze"]
["abzgl. ______________________________"]
["Versicherbarer Nettoumsatz"]
["davon Inland"]
["davon Ausland pro Land \n(ggf. gesonderte Liste)"]
["1."]
["2."]
["3."]
["Durchschnittlicher Bestand an Halbfertigfabrikaten (Selbstkosten) in T€"]
["Durchschnittlicher Bestand an noch nicht fakturierten Leistungen in T€"]
["Voraussichtlicher versicherbarer Nettoumsatz der nächsten 12 Monate (T€)?","Inland"]
[null,"Ausland"]
["Struktur der Außenstände (ggf. aktuelle OP-Liste)","Anzahl der Kunden",null,null,null,"Gesamtforderungen (T€)"]
[null,"Inland",null,"Ausland"]
["Forderungen < 10 T€"]
["Forderungen > 10 T€"]
["Forderungen > T€"]
["Summe per Monatsultimo"]
["Saldo in T€ im Spitzenmonat"]
["Die Angaben beinhalten die gesetzliche USt. von",null,null,"%"]
["Größte Kunden","Firma, Ort",null,null,null,null,"max. Außenstand (T€)"]
["1."]
["2."]
["3."]
["4."]
["5."]
["Forderungsausfälle wegen Insolvenz der letzten 3 Jahre (ggf. gesonderte Aufstellung)","Anzahl",null,null,null,"T€"]
[null,"Inland",null,"Ausland",null,"Inland",null,null,"Ausland"]
["20 _____"]
["20 _____"]
["aktuellles Jahr"]
["Größte Forderungsausfälle","Firma, Ort",null,null,null,null,"Endgültiger Ausfall (T€)"]
["1."]
["2."]
["3."]
["4."]
["5."]
["Debitorenmanagement im Unternehmen"]
["Die Bonitätsprüfung erfolgt mittels","Neukunden",null,"Stammkunden"]
["Zahlungserfahrung der letzten 12 Monate"]
["Auskunfteien"]
["Bankauskünfte"]
["andere Quellen"]
["befragte Auskunfteien"]
["andere Quellen"]
["Zahlungsbedingungen","Unsere Zahlungsbedingungen gemäß AGB lauten:"]
[null,"Das im regelmäßigen Geschäftsverkehr akzeptierte Zahlungsziel beträgt:",null,null,null,null,null,null,"Tage im Inland"]
[null,null,null,null,null,null,null,null,"Tage im Ausland"]
[null,"Im Einzelfall akzeptieren wir Zahlungsziele von maximal:",null,null,null,null,null,null,"Tage im Inland"]
[null,null,null,null,null,null,null,null,"Tage im Ausland"]
[null,"Sondervereinbarungen:"]
["Fakturierung/Mahnverfahren","Die Fakturierung erfolgt",null,null,null,"Das Mahnverfahren erfolgt"]
[null,"          bei Lieferung",null,null,null,"          kundenindividuell"]
[null,"          innerhalb von einer Woche nach Lieferung",null,null,null,"          maschinell"]
[null,"          innerhalb von _______ Tagen nach Lieferung",null,null,null,"          durch folgende Dienstleister:"]
[null,"          (inkl. Sammelrechnungen/Streckengeschäften)"]
[null,"          in folgenden Währungen"]
["Mahnwesen","Die erste Mahnung erfolgt spätestens",null,null,null,null,null,"Tage nach Fälligkeit"]
[null,"Die zweite Mahnung erfolgt spätestens",null,null,null,null,null,"Tage nach Fälligkeit"]
[null,"weitere Mahnungen (Anzahl)",null,null,null,"erfolgen im Rhytmus von",null,null,null,"Tagen"]
[null,"Lieferungen werden",null,null,null,"Tage nach Fälligkeit eingestellt."]
["Forderungseintreibung erfolgt über ",null,"Rechtsanwalt",null,null,"Ausbuchen der Forderung(en)"]
[null,null,"Mahnbescheid",null,null,"sonstiges"]
[null,null,"Inkassoverfahren"]
[null,"Die Abgabe zum Inkasso erfolgt spätestens",null,null,null,null,null,"Tage nach Fälligkeit"]
[null,"Die Abgabe zur gerichtlichen Beitreibung erfolgt spätestens",null,null,null,null,null,"Tage nach Fälligkeit"]
["Folgende Eigentumsvorbehaltsrechte und sonstige Sicherungsrechte werden mit den Kunden vereinbart:",null,"einfacher Eigentumsvorbehalt",null,null,"Vorausabtretungsklausel"]
[null,null,"Verarbeitungs-/Vermischungsklausel",null,null,"Kontokorrent-/Saldenklausel"]
[null,null,"sonstige Sicherungsrechte:"]
["Mitzuversichernde Unternehmen (Firmierung, Anschrift, Land)"]
["Bisherige Absicherung der Debitoren"]

{"sheet":"Bürgschaft","index":39,"n_rows":41,"n_cols":10,"rows_kept":41,"cut":false,"hidden":true,"merged":[[0,1,0,4],[13,3,13,4],[13,8,13,9],[1,0,1,9],[8,6,8,9],[2,3,2,4],[2,7,2,9],[6,3,6,9],[7,3,7,9],[9,5,9,9],[10,5,10,7],[10,8,10,9],[11,7,11,9],[8,0,11,0],[8,1,8,2],[8,3,8,4],[9,1,9,2],[9,3,9,4],[10,1,10,2],[11,1,11,5],[3,1,3,2],[3,5,3,9],[2,0,5,0],[4,1,4,2],[4,3,4,9],[5,1,5,2],[5,3,5,9],[14,3,14,4],[15,3,15,4],[16,3,16,4],[17,3,17,4],[18,3,18,4],[14,8,14,9],[15,8,15,9],[16,8,16,9],[17,8,17,9],[18,8,18,9],[16,5,16,7],[17,5,17,7],[18,5,18,7],[14,5,14,7],[15,5,15,7],[22,1,22,2],[22,3,22,4],[23,1,23,2],[23,3,23,4],[23,5,23,9],[19,3,19,4],[20,3,20,4],[21,3,21,4],[19,5,19,9],[21,5,21,9],[20,8,20,9],[20,5,20,7],[19,1,19,2],[20,1,20,2],[21,1,21,2],[24,1,24,2],[24,6,24,7],[25,0,29,0],[25,1,25,3],[26,1,26,3],[27,1,27,3],[28,1,28,3],[29,1,29,3],[25,4,25,5],[25,6,25,7],[12,0,24,0],[12,1,12,2],[12,3,12,4],[12,5,12,9],[13,1,13,2],[14,1,14,2],[15,1,15,2],[16,1,16,2],[17,1,17,2],[18,1,18,2],[13,5,13,7],[25,8,25,9],[26,4,26,5],[27,4,27,5],[28,4,28,5],[29,4,29,5],[26,6,26,7],[27,6,27,7],[28,6,28,7],[29,6,29,7],[26,8,26,9],[27,8,27,9],[28,8,28,9],[29,8,29,9],[30,4,30,5],[30,6,30,7],[30,8,30,9],[31,1,31,3],[32,1,32,3],[33,1,33,3],[34,1,34,3],[35,1,35,3],[36,1,36,3],[31,4,31,5],[32,4,32,5],[33,4,33,5],[34,4,34,5],[35,4,35,5],[40,0,40,9],[22,6,22,9],[38,0,39,0],[38,4,38,9],[39,4,39,9],[38,1,39,3],[36,8,36,9],[30,0,37,0],[37,1,37,2],[37,3,37,5],[37,6,37,9],[31,8,31,9],[32,8,32,9],[33,8,33,9],[34,8,34,9],[35,8,35,9],[36,4,36,5],[31,6,31,7],[32,6,32,7],[33,6,33,7],[34,6,34,7],[35,6,35,7],[36,6,36,7],[30,1,30,3]]}
["Risikoanalyse von:",{"$f":"IF(Allg.Daten!B8=\"\",\"\",Allg.Daten!B8)","v":""}]
["Bürgschaft"]
["Angaben zum Unternehmen","Gründung:",null,"Rechtsform:",null,null,"seit:"]
[null,"Handelsregister-Nr.",null,null,"Amtsgericht"]
[null,"Gesellschafter:"]
[null,"Branche/Geschäftsgegenstand:"]
["Bestehen verbundene Unternehmen mit wesentlicher wirtschaftlicher Bedeutung für das anfragende Unternehmen?","nein","ja, für folgende"]
["Bestand / bestehen bereits eine / mehrere Kautionsversicherung","nein","ja, für folgende"]
["Angaben zum laufenden Geschäftsjahr","Auftragsbestand per: (Datum)",null,null,null,"EUR"]
[null,"Erwartete Gesamtleistung"]
[null,"Erwarteter Jahresüberschuss",null,null,null,"Erwarteter Jahresfehlbetrag"]
[null,"Subunternehmer- / Fremdleistungsantei an der Gesamtleistung in %:"]
["Angaben zum abgelaufenen Geschäftsjahr:","Gemäß Jahresabschluss per",null,null,null,"(Datum)"]
[null,"Umsatz",null,null,null,"Eigenkapital lt. Bilanz"]
[null,"Jahresüberschuss",null,null,null,"abzgl. Ausstehender Einlagen            -"]
[null,"Jahresfehlbetrag",null,null,null,"abzgl. Forderungen gegen Gesellschafter                                    -"]
[null,"Personalaufwand",null,null,null,"zzgl. Darlehen von Gesellschaftern   +"]
[null,"Zinsaufwand",null,null,null,"Bereinigtes Eigenkapital",null,null,{"$f":"IF(I14=\"\",\"\",I14-I15-I16+I17)","v":""}]
[null,"Zinsertrag",null,null,null,"Bilanzsumme"]
[null,"sonstige betriebliche Erträge",null,null,null,"Forderungsverluste"]
[null,"Steuern vor Einkommen und Ertrag",null,null,null,"        nein          ja, in Höhe von"]
[null,"Erhaltene Abschlagszahlungen der Aktivseite"]
[null,"Höhe der Einzelaufträge von",null,null,null,"bis"]
[null,"Auslastung bis",null,null,null,"Monat/Jahr"]
[null,"Auftragsbestand in %",null,null,"mit Gewinn",null,"kostendeckend",null,null,"mit Verlust"]
["Angaben zu weiteren Avalgebern","Name weiterer Avalgeber",null,null,"Limit",null,"Ausschöpfung",null,"Sicherheit"]
[]
[]
[]
[]
["Benötigte Avalarten","Avalart",null,null,"Limit pro Avalart",null,"Benötigte Avale von",null,"bis"]
[]
[]
[]
[]
[]
[]
[null,"Gewünschtes Gesamtlimit:"]
["Sicherheiten","Die zu stellende Sicherheit wird erbracht als",null,null,"        Bankbürgschaft"]
[null,null,null,null,"        Abtretung von Bankgutachten des Versicherungsnehmers"]
["Bitte reichen Sie ab einem Gesamtlimit über 300.000 € die endgültigen, testierten und unterschriebenen Jahresabschlüsse mit Anhang, Lage- und Prüfberichten \nder letzten beiden Geschäftsjahre und ggf. Zwischenbilanz oder Gewinn- und Verlustrechnung für das laufende Geschäftsjahr ein."]

{"sheet":"Factoring","index":40,"n_rows":3,"n_cols":2,"rows_kept":3,"cut":false,"hidden":true,"merged":[[1,0,1,9],[0,1,0,4],[2,0,2,9]]}
["Risikoanalyse von:",{"$f":"IF(Allg.Daten!B8=\"\",\"\",Allg.Daten!B8)","v":""}]
["Factoring"]
["Bitte entnehmen Sie den Fragebogen aus dem BeraterPortal oder sprechen Sie die Fachabteilung an"]

{"sheet":"Leasing","index":41,"n_rows":3,"n_cols":2,"rows_kept":3,"cut":false,"hidden":true,"merged":[[1,0,1,9],[0,1,0,4],[2,0,2,9]]}
["Risikoanalyse von:",{"$f":"IF(Allg.Daten!B8=\"\",\"\",Allg.Daten!B8)","v":""}]
["Leasing: "]
["Bitte entnehmen Sie den Fragebogen aus dem BeraterPortal oder sprechen Sie die Fachabteilung an"]

{"sheet":"GUV","index":42,"n_rows":26,"n_cols":8,"rows_kept":26,"cut":false,"hidden":true,"merged":[[22,1,22,9],[21,2,21,5],[21,6,21,9],[4,5,4,9],[17,2,17,5],[20,2,20,5],[20,6,20,9],[18,2,18,5],[18,6,18,9],[17,6,17,9],[16,5,16,9],[13,8,13,9],[14,8,14,9],[15,8,15,9],[13,2,13,3],[3,5,3,9],[5,1,5,4],[5,5,5,9],[4,1,4,4],[13,1,15,1],[17,0,21,0],[19,2,19,5],[19,6,19,9],[9,0,12,0],[9,4,9,9],[10,1,10,3],[10,4,10,9],[11,1,11,3],[11,4,11,9],[12,1,12,3],[12,4,12,9],[13,0,15,0],[14,2,14,3],[15,2,15,3],[0,1,0,4],[23,1,23,9],[24,1,24,9],[25,3,25,4],[25,5,25,6],[25,8,25,9],[8,1,8,9],[6,1,6,4],[6,5,6,9],[7,1,7,4],[7,5,7,9],[1,0,1,9],[2,0,7,0],[2,1,2,4],[2,5,2,9],[3,1,3,4]]}
["Risikoanalyse von:",{"$f":"IF(Allg.Daten!B8=\"\",\"\",Allg.Daten!B8)","v":""}]
["Gruppenunfall"]
["Versicherungsumfang: ","Grundsumme Invalidtität mit 350% Progression:"]
[null,"Leistung bei Vollinvalidität:"]
[null,"Todesfallsumme: "]
[null,"Krankenhaustagegeld:"]
[null,"Tagegeld, ab dem             Tag:"]
[null,"monatliche Unfallrente:"]
["Anzahl der zu versicherten Personen: "]
["Namensnennung:","ohne: ",null,"mit: "]
[null,"Name und Geburtsdatum:"]
[null,"Name und Geburtsdatum:"]
[null,"Name und Geburtsdatum:"]
["Gefahrengruppe: ","Berufsgruppe\n(Büro, Fahrer\nVerkäufer etc.)",null,null,"Anzahl A",null,"Anzahl B: "]
[null,null,null,null,"Anzahl A",null,"Anzahl B: "]
[null,null,null,null,"Anzahl A",null,"Anzahl B: "]
["Direktanspruch der vesicherten Person: ","ja ",null,"nein: "]
["Vorschäden innerhalb der letzten 5 Jahre: ","Jahr ","Schadenart",null,null,null,"Schadenhöhe"]
[]
[]
[]
[]
["Vorversicherung: "]
["Versicherungsscheinnummer: "]
["Ablauf des Vertrages: "]
["Vertrag wird/wurde gekündigt von:","Kunden: ","ja:",null,null,"Versicherer: ",null,"ja: "]

{"sheet":"KR","index":43,"n_rows":30,"n_cols":8,"rows_kept":30,"cut":false,"hidden":true,"merged":[[7,4,7,5],[7,6,7,9],[13,7,13,9],[10,1,10,2],[11,1,11,2],[12,1,12,2],[9,3,9,5],[10,3,10,5],[11,3,11,5],[12,3,12,5],[9,6,9,9],[10,6,10,9],[11,6,11,9],[12,6,12,9],[27,1,27,9],[28,1,28,9],[29,3,29,4],[29,5,29,6],[29,8,29,9],[26,1,26,9],[19,1,19,3],[19,6,19,9],[20,1,20,3],[20,6,20,9],[23,6,23,9],[24,2,24,5],[24,6,24,9],[25,2,25,5],[25,6,25,9],[21,0,25,0],[21,2,21,5],[21,6,21,9],[22,2,22,5],[22,6,22,9],[23,2,23,5],[15,0,20,0],[16,1,16,2],[16,6,16,9],[17,1,17,3],[17,6,17,9],[18,1,18,3],[18,6,18,9],[15,1,15,2],[15,3,15,4],[15,6,15,9],[8,0,12,0],[8,1,8,2],[8,3,8,5],[8,6,8,9],[13,0,14,0],[13,1,13,3],[14,2,14,3],[14,4,14,5],[14,6,14,9],[9,1,9,2],[0,1,0,4],[1,0,1,9],[3,0,6,0],[3,1,3,2],[3,3,3,5],[3,6,3,9],[2,1,2,9],[4,1,4,2],[5,1,5,2],[6,1,6,2],[4,3,4,5],[5,3,5,5],[6,3,6,5],[4,6,4,9],[5,6,5,9],[6,6,6,9]]}
["Risikoanalyse von:",{"$f":"IF(Allg.Daten!B8=\"\",\"\",Allg.Daten!B8)","v":""}]
["Kidnap and Ransom"]
["Anzahl der zu versicherte Personen: "]
["Länderrisiko:","Land",null,"lokale Mitarbeiter",null,null,"Expatriaten "]
[]
[]
[]
["Gehören dem Unternehmen Schiffe:","nein:",null,"ja: ",null,null,"Es folgt separater Fragebogen. "]
["Reiseprofil \n(geplant für die nächsten 12 Monate):","Land",null,"ungefähre Aufenthaltsdauer",null,null,"Anzahl der Personen "]
[]
[]
[]
[]
["Bestehen weitere Versicherungen: ","Entführungs- und Lösegeldversicherung: ",null,null,"nein:",null,"wenn ja: "]
[null,"Versicherer: ",null,null,"Versicherungssumme: "]
["Versicherungsumfang: ","Versicherungssumme: ",null,null,null,"Währung: "]
[null,"Deckungserweiterung: ",null,"gewünscht:","ja:","nein"]
[null,"Kosten für Abwehr von Bedrohungen:"]
[null,"Notfallbedingte Aussiedlung o. Rückführung:"]
[null,"Ertragsausfalldeckung:"]
[null,"Ertragsausfall durch Cyber-Erpressung: "]
["Drohungen/Vorschäden \nin den letzten 5 Jahren: ","Jahr ","Schadenart",null,null,null,"Schadenhöhe"]
[]
[]
[]
[]
["Vorversicherung: "]
["Versicherungsscheinnummer:"]
["Ablauf des Vertrages: "]
["Vertrag wird/wurde gekündigt von: ","Kunden: ","ja:",null,null,"Versicherer: ",null,"ja: "]

{"sheet":"Keyman","index":44,"n_rows":18,"n_cols":16,"rows_kept":18,"cut":false,"hidden":true,"merged":[[15,13,15,16],[16,13,16,16],[17,13,17,16],[1,0,1,16],[7,13,7,16],[11,13,11,16],[12,13,12,16],[13,13,13,16],[14,13,14,16],[16,1,16,4],[17,1,17,4],[12,1,12,4],[15,1,15,4],[14,1,14,4],[17,5,17,8],[17,9,17,12],[0,1,0,4],[2,1,2,4],[4,1,4,4],[5,1,5,4],[2,13,2,16],[3,13,3,16],[4,13,4,16],[5,13,5,16],[2,9,2,12],[4,9,4,12],[14,9,14,12],[15,9,15,12],[16,9,16,12],[11,5,11,8],[12,5,12,8],[14,5,14,8],[15,5,15,8],[16,5,16,8],[13,1,13,4],[13,5,13,8],[13,9,13,12],[2,5,2,8],[4,5,4,8],[5,5,5,8],[7,5,7,8],[7,1,7,4],[11,1,11,4],[5,9,5,12],[3,1,3,4],[3,5,3,8],[3,9,3,12],[7,9,7,12],[11,9,11,12],[12,9,12,12]]}
["Risikoanalyse von:",""]
["Ausfall einer Schlüsselkraft"]
[null,"Person 1",null,null,null,"Person 2",null,null,null,"Person 3",null,null,null,"Person 4"]
["Name, Vorname"]
["Versicherungssumme"]
["Geburtsdatum"]
["Raucher","nein:",null,"ja:",null,"nein:",null,"ja:",null,"nein:",null,"ja:",null,"nein:",null,"ja:"]
["Welche Tätigkeit wird derzeit ausgeübt:"]
["Beschäftigt im Angestelltenverhältnis:","nein:",null,"ja:",null,"nein:",null,"ja:",null,"nein:",null,"ja:",null,"nein:",null,"ja:"]
["Tätig als Freiberufler:","nein:",null,"ja:",null,"nein:",null,"ja:",null,"nein:",null,"ja:",null,"nein:",null,"ja:"]
["Selbstständig tätig: ","nein:",null,"ja:",null,"nein:",null,"ja:",null,"nein:",null,"ja:",null,"nein:",null,"ja:"]
["durchschn. Monatsbruttolohn "]
["Lohnnebenkosten"]
["Lohnkosten für Interimsmanager\n(150 % vom Monatsbruttolohn)"]
["aktuell bezifferbare  Auftrags- und Projektausfälle  "]
["aktuell schätzbare Auftrags- und Projektausfälle "]
["Kosten für Recruiting u. Neueinstellung (100% vom Jahresbrutto)"]
["Besondere Anmerkungen"]

{"sheet":"Zusatzinformationen","index":45,"n_rows":34,"n_cols":11,"rows_kept":34,"cut":false,"hidden":true,"merged":[[0,2,0,5],[5,3,5,10],[33,0,33,7],[21,0,21,10],[25,0,25,7],[26,0,26,7],[27,0,27,7],[28,0,28,7],[29,0,29,7],[30,0,30,7],[31,0,31,7],[32,0,32,7],[12,5,12,7],[12,0,12,4],[15,0,15,4],[18,0,18,4],[1,0,1,10],[3,2,3,10],[18,6,18,7],[13,1,13,10],[6,2,6,10],[3,0,3,1],[5,0,5,2]]}
["Risikoanalyse von:",null,{"$f":"IF(Allg.Daten!B8=\"\",\"\",Allg.Daten!B8)","v":""}]
["Allgemeine Fragen"]
[]
["Wer betreut Sie derzeit?"]
["Zufrieden?","        ja","        nein"]
["Was kann man besser machen?"]
["Wünsche/Ziele?"]
[]
[]
["Wurden Ihre Versicherungen schon einmal auf den Prüfstand gestellt?",null,null,null,null,"        ja","        nein"]
[]
[]
["Was müssen wir erfüllen, um zu einer Zusammenarbeit zu kommen?"]
[]
[]
["Wenn wir dies erfüllen, bekommen wir dann eine faire Chance?",null,null,null,null,"        ja","        nein"]
[]
[]
["Treffen Sie die Entscheidung alleine oder mit jemand gemeinsam?",null,null,null,null,"        alleine","        gemeinsam"]
[]
[]
["Grundsätzliche Motive mit Gewichtung"]
[]
[]
[null,null,null,null,null,null,null,null,"wichtig","neutral","unwichtig"]
["Beitragsersparnis"]
["Bedingungs-Check"]
["Risiken erkennen und absichern"]
["Besserer Service (Kompetenz, Erreichbarkeit, fester Ansprechpartner)"]
["Regelmäßige Überprüfung / Service Check"]
["Aktives Schadenmanagement / Regelmäßiges Schadenreporting"]
["Eigene Absicherung / Versorgung erhöhen"]
["Absicherung / Versorgung der Mitarbeiter (bAV, bKV, Affinity, etc.)"]
["Attraktivität als Arbeitgeber erhöhen"]

{"sheet":"Checkliste","index":46,"n_rows":52,"n_cols":6,"rows_kept":52,"cut":false,"hidden":true,"merged":[[7,0,7,1],[8,0,8,1],[9,0,9,1],[10,0,10,1],[1,0,1,8],[3,1,3,8],[4,1,4,8],[6,0,6,1],[6,7,6,8],[7,7,7,8],[8,7,8,8],[9,7,9,8],[12,0,12,2],[13,0,13,1],[14,0,14,1],[15,0,15,1],[16,0,16,1],[13,4,13,7],[14,4,14,7],[17,0,17,1],[18,0,18,1],[19,0,19,1],[12,4,12,8],[27,0,27,8],[15,4,15,7],[16,4,16,7],[17,4,17,7],[18,4,18,7],[19,4,19,7],[20,4,20,7],[23,0,23,1],[24,0,24,1],[20,0,20,1],[21,0,21,1],[22,0,22,1],[21,4,21,7],[23,4,23,5],[24,4,24,5],[39,0,39,8],[40,0,40,8],[28,0,28,8],[30,0,30,8],[31,0,31,1],[32,0,32,1],[33,0,33,1],[31,4,31,7],[36,0,36,8],[37,0,37,8],[23,6,23,8],[24,6,24,8],[51,0,51,8],[52,0,52,8],[6,4,6,6],[7,4,7,6],[8,4,8,6],[9,4,9,6],[42,0,42,8],[43,0,43,8],[45,0,45,8],[46,0,46,8],[48,0,48,8],[49,0,49,8],[32,4,32,7],[33,4,33,7]]}
[]
["Checkliste Neukunden nach Erstgespräch"]
[]
["Kundenname:",{"$f":"IF(Allg.Daten!B8=\"\",\"\",Allg.Daten!B8)","v":""}]
["empfohlen durch:"]
[]
["Kundendaten im Finanz-Office angelegt",null,null,null,"ID-Übergabe am:"]
["aktuelle Verträge erfasst",null,null,null,"Analyse am:"]
["aktuelle Dokumente/Unterlagen hinterlegt",null,null,null,"Beratung am:"]
["Kundengruppe angelegt",null,null,null,"2. Beratung am:"]
["Kundendaten in Vergleichsprogrammen erfasst:"]
[]
["Gesprächsvorbereitung",null,null,null,"Gesprächsnachbereitung"]
["fehlende Unterlagen angefordert*",null,null,null,"Finanzplan/Risikoplan vervollständigt"]
["aktuelle Werte (z. B. DRV, RKW) eingeholt*",null,null,null,"Finanzplan/Risikoplan abgeschlossen","D"]
["Finanzplan/Risikoplan erstellt",null,null,null,"Bestandsübertragungen veranlasst","D"]
["Vertragsstatus erfasst",null,null,null,"Wiedervorlagen angelegt","D"]
["Empfehlungen berechnet und angelegt*",null,null,null,"Kunden-Ordner (alt) zurück an Kunden","D"]
["Auskunftsvollmacht/Maklerauftrag vorbereitet",null,null,null,"Maklerauftrag an Kunden geschickt","D"]
["Angebotsunterlagen zusammengestellt",null,null,null,"Strategie-Kopie an Kunden geschickt","D"]
["Anträge vorbereitet*",null,null,null,"Welcome-Brief an Kunden verschickt","D"]
["Erstinformation erstellt | in FO abgelegt",null,null,null,"Feedback an Empfehlungsgeber","D"]
["Beratungsprotokolle erstellt | in FO abgelegt"]
["Kündigungen vorbereitet",null,null,null,"nächster Termin am:"]
["afm-Ordner angelegt",null,null,null,"Thema:"]
["* nähere Informationen siehe Rückseite"]
[]
["Empfehlungen"]
[]
[]
["Merkmale"]
["persönliche Anrede (Du)",null,null,null,"afm Marktplatz"]
["Geburtstagskarte",null,null,null,"Newsletter Privat"]
["Weihnachtskarte",null,null,null,"Newsletter Firma"]
[]
[{"$f":"IF(Allg.Daten!B8=\"\",\"\",Allg.Daten!B8)","v":""}]
["Hobbies | Haustiere"]
[]
[]
["Bemerkungen:"]
[]
[]
["* angeforderte fehlende Unterlagen:"]
[]
[]
["* angeforderte Werteauskünfte:"]
[]
[]
["* berechnete und angelegte Empfehlungen:"]
[]
[]
["* vorbereitete Anträge:"]

{"sheet":"Vollmacht","index":47,"n_rows":31,"n_cols":6,"rows_kept":31,"cut":false,"hidden":true,"merged":[[20,3,20,6],[21,3,21,6],[30,0,30,2],[30,5,30,8],[24,0,24,8],[19,3,19,6],[11,0,11,1],[12,3,12,6],[17,3,17,6],[18,3,18,6],[13,3,13,6],[11,3,11,6]]}
[]
[]
[]
[]
[]
[]
[]
[]
[]
[]
[]
["Auftraggeber:",null,null,{"$f":"IF(Allg.Daten!B8=\"\",\"\",Allg.Daten!B8)","v":""}]
[null,null,null,{"$f":"IF(Allg.Daten!C13=\"\",\"\",Allg.Daten!C13)","v":""}]
[null,null,null,{"$f":"IF(Allg.Daten!G13=\"\",\"\",Allg.Daten!G13)","v":""}]
[]
["Hiermit bevollmächtige/n ich/wir die Firma"]
[]
[null,null,null,"afm assekuranz-finanz-makler GmbH"]
[null,null,null,"Kaiser-Wilhelm-Straße 9"]
[null,null,null,"20355 Hamburg"]
[null,null,null,"Tel. 040 532886-0"]
[null,null,null,"  Fax 040 532886-111"]
[]
[]
["bei den einzelnen Versicherungsgesellschaften Informationen über meine/unsere Versicherungs- und \nBausparverträge einzuholen."]
[]
[]
[]
[]
[]
["Ort, Datum",null,null,null,null,"Unterschrift Auftraggeber / Stempel"]

{"sheet":"Deckungsklage-RS","index":48,"n_rows":3,"n_cols":2,"rows_kept":3,"cut":false,"hidden":true,"merged":[[0,1,0,4],[1,0,1,9],[2,0,2,9]]}
["Risikoanalyse von:",{"$f":"IF(Allg.Daten!B8=\"\",\"\",Allg.Daten!B8)","v":""}]
["Deckungsklage-Rechtsschutz / Vermögensschaden-Rechtsschutz"]
["Bitte reichen Sie eine Kopie der aktuellen D&O Police ein."]

{"sheet":"Unterschrift","index":49,"n_rows":11,"n_cols":4,"rows_kept":11,"cut":false,"hidden":false,"merged":[[0,1,0,4],[8,1,8,3],[8,4,8,9],[1,0,1,9],[2,0,2,9],[4,0,4,2],[4,3,4,9],[5,0,6,2],[5,3,5,9],[6,3,6,9],[3,0,3,9]]}
["Risikoanalyse von:",{"$f":"IF(Allg.Daten!B8=\"\",\"\",Allg.Daten!B8)","v":""}]
["Datenschutzklausel, Erklärung und Unterschrift"]
["Der Unterzeichner willigt ein, dass Daten aus der Risikoanalyse an Versicherer, Maklerpools und Assekuradeure im erforderlichen Umfang übermittelt werden dürfen. Hierzu benötigen wir Ihre Erklärung nach § 3 Bundesdatenschutzgesetz, dass die Daten dieser Analyse gespeichert und verarbeitet werden dürfen. \nAlle Daten dienen ausschließlich dem angegebenen Verwendungszweck.\nDer Unterzeichner bestätigt, dass die oben gemachten Angaben nach bestem Wissen wahrheitsgemäß sind. Es gilt als vereinbart, dass dieser Fragebogen bei Vertragsabschluss Bestandteil des Versicherungsvertrages wird. Anzeigepflichten ergeben sich aus den Bestimmungen des Vertrages und des Versicherungsvertragsgesetzes.\n"]
["Die Erstinformation über den Berater habe ich erhalten."]
["Ort, Datum ",null,null,"Name des Unterzeichnenden "]
["Firmenstempel",null,null,"Postition des Unterzeichnenden"]
[null,null,null,"Unterschrift"]
[]
["Geschäftsbriefbogen"]
["Eigene AGB"]
["Firmenbroschüre"]

{"sheet":"RPÜbersicht","index":50,"n_rows":55,"n_cols":4,"rows_kept":55,"cut":false,"hidden":true,"merged":[[49,2,49,4],[13,3,13,7],[43,2,43,8]]}
[]
[]
[]
[]
[]
[]
[]
[]
[]
[]
[]
[]
[]
[null,null,null,"afm Risikoplan"]
[]
[]
[]
[]
[]
[]
[]
[]
[]
[]
[]
[]
[]
[]
[]
[]
[]
[]
[]
[]
[]
[]
[]
[]
[]
[]
[]
[]
[]
[null,null,"Entscheidungsnavigation für mehr Sicherheit"]
[]
[]
[]
[]
[]
["Ihr afm Berater: "]
[]
[]
["Straße/Hausnummer | PLZ/Ort"]
["Tel. xxxx | Fax xxxx"]
["xxxx@afm-gruppe.de | www.afm-gruppe.de"]

{"sheet":"RPAllg.Daten","index":51,"n_rows":31,"n_cols":5,"rows_kept":31,"cut":false,"hidden":true,"merged":[[11,1,11,7],[26,1,26,7],[30,1,30,7],[29,1,29,7],[1,0,1,7],[2,0,2,7],[3,0,3,7],[4,0,4,7],[8,1,8,7],[12,0,13,0],[14,0,17,0],[17,2,17,7],[9,1,9,7],[10,1,10,7],[12,2,12,7],[13,2,13,7],[28,1,28,7],[20,1,20,7],[18,1,18,7],[19,1,19,7],[27,5,27,7],[14,2,14,7],[15,2,15,7],[16,2,16,7],[24,1,24,7],[25,1,25,7]]}
[]
["Auf  Basis unserer Bestandsaufnahme haben wir für Sie den Versicherermarkt „unter die Lupe“ genommen und unter Berücksichtigung Ihres individuellen Bedarfs und Ihrer Zielsetzung Ihren individuellen afm Risikoplan erstellt."]
["Anhand unserer ausführlichen Expertise – unseres afm Risikoplans – zeigen wir Ihnen notwendige Handlungsfelder und Maßnahmen für ein ganzheitliches Sicherheitskonzept auf. Dabei stehen das Minimieren der Risiken und das Maximieren der Chancen im Fokus. Risiken frühzeitig zu erkennen und passende Lösungen im Rahmen eines professionellen Risikomanagements zu implementieren, ist ein entscheidender Faktor im Rahmen eines verlässlichen Versicherungsmanagements."]
["Unsere unabhängige Position ermöglicht uns, auf alle Versicherer des Marktes zurückzugreifen und unter Berücksichtigung eines attraktiven Preis-/Leistungsverhältnisses Angebote einzuholen. "]
["Mit dem afm Risikoplan verbessern Sie Ihr Risikomanagement, reduzieren Ihre Kosten und gewinnen durch unseren Firmenkunden-Full-Service mehr Entscheidungsfreiheit für Ihre unternehmerische Tätigkeit"]
[]
["Kundendaten"]
[]
["Firmenname inkl. Gesellschaftsform",{"$f":"IF(Allg.Daten!B8=\"\",\"\",(Allg.Daten!B8))","v":""}]
["Geschäftsführer",{"$f":"IF(Allg.Daten!B11=\"\",\"\",Allg.Daten!B11)","v":""}]
["Webseite",{"$f":"IF(Allg.Daten!B17=\"\",\"\",Allg.Daten!B17)","v":""}]
["Handelsregister/Nr."]
["Anschrift","Straße",{"$f":"IF(Allg.Daten!C13=\"\",\"\",Allg.Daten!C13)","v":""}]
[null,"PLZ/Ort",{"$f":"IF(Allg.Daten!G13=\"\",\"\",Allg.Daten!G13)","v":""}]
["Ansprechpartner","Name",{"$f":"IF(Allg.Daten!B12=\"\",\"\",Allg.Daten!B12)","v":""}]
[null,"Telefon",{"$f":"IF(Allg.Daten!B14=\"\",\"\",Allg.Daten!B14)","v":""}]
[null,"Telefax",{"$f":"IF(Allg.Daten!B15=\"\",\"\",Allg.Daten!B15)","v":""}]
[null,"E-Mail",{"$f":"IF(Allg.Daten!B16=\"\",\"\",Allg.Daten!B16)","v":""}]
["Tochterunternehmen",{"$f":"IF(Allg.Daten!B19=\"\",\"\",Allg.Daten!B19)","v":""}]
["Niederlassungen",{"$f":"IF(Allg.Daten!B22=\"\",\"\",Allg.Daten!B22)","v":""}]
["Verbandsmitgliedschaften",{"$f":"IF(Allg.Daten!B24=\"\",\"\",Allg.Daten!B24)","v":""}]
[]
["Allgemeine Angaben"]
[]
["Branche",{"$f":"IF(Allg.Daten!B20=\"\",\"\",Allg.Daten!B20)","v":""}]
["Tätigkeitsbeschreibung",{"$f":"IF(Allg.Daten!B21=\"\",\"\",Allg.Daten!B21)","v":""}]
["Anzahl Inhaber"]
["Anzahl Mitarbeiter","Vollzeit",{"$f":"IF(Allg.Daten!B31=\"\",\"\",Allg.Daten!B31)","v":""},"Teilzeit",{"$f":"IF(Allg.Daten!C31=\"\",\"\",Allg.Daten!C31)","v":""}]
["Bruttoumsatz",{"$f":"IF(Allg.Daten!C26=\"\",\"\",Allg.Daten!C26)","v":""}]
["Bruttojahreslohn- und Gehaltssumme",{"$f":"IF(Allg.Daten!C29=\"\",\"\",Allg.Daten!C29)","v":""}]
["Gesellschafter-Struktur",{"$f":"IF(Allg.Daten!B9=\"\",\"\",Allg.Daten!B9)","v":""}]

{"sheet":"RPBHV3","index":52,"n_rows":39,"n_cols":4,"rows_kept":39,"cut":false,"hidden":true,"merged":[[12,0,12,3],[40,0,45,3]]}
[]
[]
[]
[]
[]
[]
[]
[]
[]
[]
["Betriebs-, Produkt- und Umwelthaftpflichtversicherung"]
[]
["Die Betriebshaftpflichtversicherung bietet speziellen Versicherungsschutz für Haftungsrisiken, die Unternehmen oder ihre Mitarbeiter in Ausübung der betrieblichen Tätigkeit ausgesetzt sind. Sie reguliert aufgrund gesetzlicher Bestimmungen berechtigte Ansprüche Dritter und wehrt unberechtigte Ansprüche ab."]
[]
[null,"Ist-Situation","afm Empfehlung I","afm Empfehlung II"]
["Versicherungsgesellschaft",{"$f":"IF(BHV!B39=\"\",\"\",BHV!B39)","v":""}]
["Tarifbezeichnung"]
["Vertragsnummer",{"$f":"IF(BHV!B40=\"\",\"\",BHV!B40)","v":""}]
["Beginn"]
["Ablauf",{"$f":"IF(BHV!B41=\"\",\"\",BHV!B41)","v":""}]
["Beitrag/Zahlweise"]
["Beitrag p .a."]
["Versichertes Risiko"]
["Versicherungssumme Personenschäden"]
["Versicherungssumme Sachschäden"]
["Versicherungssumme Vermögensschäden"]
["Versicherungssumme Umwelthaftpflichtversicherung "]
["Versicherungssumme Umweltschadenversicherung"]
["Beauftragung fremder Unter-nehmen/Subunternehmen"]
["Belegschafts- und Besucherhabe"]
["Vermögensschäden aus Daten-schutzverletzungen "]
["Tätigkeitsschäden "]
["Mängelbeseitigungsnebenkosten "]
["Selbstbeteiligung je Schadenfall"]
["Besonderheiten"]
["Aktion","Kündigen","Neu abschließen","Alternativ abschließen"]
[]
[]
["Begründung"]

{"sheet":"RPBHV2","index":53,"n_rows":39,"n_cols":3,"rows_kept":39,"cut":false,"hidden":true,"merged":[[12,0,12,2],[40,0,45,2]]}
[]
[]
[]
[]
[]
[]
[]
[]
[]
[]
["Betriebs-, Produkt- und Umwelthaftpflichtversicherung"]
[]
["Die Betriebshaftpflichtversicherung bietet speziellen Versicherungsschutz für Haftungsrisiken, die Unternehmen oder ihre Mitarbeiter in Ausübung der betrieblichen Tätigkeit ausgesetzt sind. Sie reguliert aufgrund gesetzlicher Bestimmungen berechtigte Ansprüche Dritter und wehrt unberechtigte Ansprüche ab."]
[]
[null,"Ist-Situation","afm Empfehlung I"]
["Versicherungsgesellschaft",{"$f":"IF(BHV!B39=\"\",\"\",BHV!B39)","v":""}]
["Tarifbezeichnung"]
["Vertragsnummer",{"$f":"IF(BHV!B40=\"\",\"\",BHV!B40)","v":""}]
["Beginn"]
["Ablauf",{"$f":"IF(BHV!B41=\"\",\"\",BHV!B41)","v":""}]
["Beitrag/Zahlweise"]
["Beitrag p. a."]
["Versichertes Risiko"]
["Versicherungssumme Personenschäden"]
["Versicherungssumme Sachschäden"]
["Versicherungssumme Vermögensschäden"]
["Versicherungssumme Umwelthaftpflichtversicherung "]
["Versicherungssumme Umweltschadenversicherung"]
["Beauftragung fremder Unter-nehmen/Subunternehmen"]
["Belegschafts- und Besucherhabe"]
["Vermögensschäden aus Daten-schutzverletzungen "]
["Tätigkeitsschäden "]
["Mängelbeseitigungsnebenkosten "]
["Selbstbeteiligung je Schadenfall"]
["Besonderheiten"]
["Aktion","Kündigen","Neu abschließen"]
[]
[]
["Begründung"]

{"sheet":"Blanko3","index":54,"n_rows":39,"n_cols":4,"rows_kept":39,"cut":false,"hidden":true,"merged":[[12,0,12,3],[40,0,45,3]]}
[]
[]
[]
[]
[]
[]
[]
[]
[]
[]
["Hier bitte die Sparte eintragen!"]
[]
[]
[]
[null,"Ist-Situation","afm Empfehlung I","afm Empfehlung II"]
["Versicherungsgesellschaft",{"$f":"IF(BHV!B39=\"\",\"\",BHV!B39)","v":""}]
["Tarifbezeichnung"]
["Vertragsnummer",{"$f":"IF(BHV!B40=\"\",\"\",BHV!B40)","v":""}]
["Beginn"]
["Ablauf",{"$f":"IF(BHV!B41=\"\",\"\",BHV!B41)","v":""}]
["Beitrag/Zahlweise"]
["Beitrag p. a."]
[]
[]
[]
[]
[]
[]
[]
[]
[]
[]
[]
[]
["Besonderheiten"]
["Aktion","Kündigen","Neu abschließen","Alternativ abschließen"]
[]
[]
["Begründung"]

{"sheet":"Blanko2","index":55,"n_rows":39,"n_cols":3,"rows_kept":39,"cut":false,"hidden":true,"merged":[[12,0,12,2],[40,0,46,2]]}
[]
[]
[]
[]
[]
[]
[]
[]
[]
[]
["Hier bitte die Sparte eintragen!"]
[]
[]
[]
[null,"Ist-Situation","afm Empfehlung I"]
["Versicherungsgesellschaft",{"$f":"IF(BHV!B39=\"\",\"\",BHV!B39)","v":""}]
["Tarifbezeichnung"]
["Vertragsnummer",{"$f":"IF(BHV!B40=\"\",\"\",BHV!B40)","v":""}]
["Beginn"]
["Ablauf",{"$f":"IF(BHV!B41=\"\",\"\",BHV!B41)","v":""}]
["Beitrag/Zahlweise"]
["Beitrag p. a."]
[]
[]
[]
[]
[]
[]
[]
[]
[]
[]
[]
[]
[]
["Aktion","Kündigen","Neu abschließen"]
[]
[]
["Begründung"]

{"sheet":"RPVeranstaltungsHV3","index":56,"n_rows":29,"n_cols":4,"rows_kept":29,"cut":false,"hidden":true,"merged":[[12,0,12,3],[30,0,35,3]]}
[]
[]
[]
[]
[]
[]
[]
[]
[]
[]
["Veranstaltungshaftpflichtversicherung"]
[]
["Veranstalter haften für Personen- und Sachschäden, die während einer Veranstaltung entstehen und für die sie ein Verschulden trifft. Gerade bei Personenschäden sind die Kosten oft extrem hoch. Die Veranstaltungshaftpflichtversicherung begleicht die Kosten für die entstandenen Schäden. Bei unberechtigten Ansprüchen wehrt sie diese für den Versicherungsnehmer ab. Auch die hierbei entstehenden Kosten – bis hin zu den Prozesskosten bei einer gerichtlichen Auseinandersetzung – werden im Normalfall von der Veranstaltungshaftpflichtversicherung übernommen. "]
[null,"Ist-Situation","afm Empfehlung I","afm Empfehlung II"]
["Versicherungsgesellschaft"]
["Tarifbezeichnung"]
["Vertragsnummer"]
["Beginn"]
["Ablauf"]
["Beitrag/Zahlweise"]
["Beitrag p. a."]
["Art der Veranstaltung"]
["Ort der Veranstaltung"]
["Dauer der Veranstaltung"]
["Selbstbeteiligung je Schadenfall"]
["Besonderheiten"]
["Aktion","Kündigen","Neu abschließen","Alternativ abschließen"]
[]
["Begründung"]

{"sheet":"RPVeranstaltungsHV2","index":57,"n_rows":30,"n_cols":3,"rows_kept":30,"cut":false,"hidden":true,"merged":[[12,0,12,2],[31,0,36,2]]}
[]
[]
[]
[]
[]
[]
[]
[]
[]
[]
["Veranstaltungshaftpflichtversicherung"]
[]
["Veranstalter haften für Personen- und Sachschäden, die während einer Veranstaltung entstehen und für die sie ein Verschulden trifft. Gerade bei Personenschäden sind die Kosten oft extrem hoch. Die Veranstaltungshaftpflichtversicherung begleicht die Kosten für die entstandenen Schäden. Bei unberechtigten Ansprüchen wehrt sie diese für den Versicherungsnehmer ab. Auch die hierbei entstehenden Kosten – bis hin zu den Prozesskosten bei einer gerichtlichen Auseinandersetzung – werden im Normalfall von der Veranstaltungshaftpflichtversicherung übernommen. "]
[]
[null,"Ist-Situation","afm Empfehlung I"]
["Versicherungsgesellschaft"]
["Tarifbezeichnung"]
["Vertragsnummer"]
["Beginn"]
["Ablauf"]
["Beitrag/Zahlweise"]
["Beitrag p. a."]
["Art der Veranstaltung"]
["Ort der Veranstaltung"]
["Dauer der Veranstaltung"]
["Selbstbeteiligung je Schadenfall"]
["Besonderheiten"]
["Aktion","Kündigen","Neu abschließen"]
[]
["Begründung"]

{"sheet":"RPBerufsHV3","index":58,"n_rows":28,"n_cols":4,"rows_kept":28,"cut":false,"hidden":true,"merged":[[12,0,12,3],[29,0,34,3]]}
[]
[]
[]
[]
[]
[]
[]
[]
[]
[]
["Berufs- und Vermögensschadenhaftpflichtversicherung"]
[]
["Beratend, betreuend, verwaltend, vermittelnd, begutachtend, beurkundend tätige Personen/Unternehmen oder Personen/Unternehmen die im IT-Bereich arbeiten, benötigen neben der Betriebshaftpflicht- eine separate Vermögensschadenaftpflichtversicherung. Die Vermögensschadenhaftpflichtversicherung bietet speziellen Versicherungsschutz für Haftungsrisiken, die Unternehmen oder ihre Mitarbeiter in Ausübung der betrieblichen Tätigkeit ausgesetzt sind. Über die Betriebshaltpflichtversicherung hinaus sind reine Vermögensschäden, d. h. Schäden, die weder Personen- noch Sachschäden sind oder sich aus solchen herleiten, Bestandteil der Deckung. Sie reguliert aufgrund gesetzlicher Bestimmungen berechtigte Ansprüche Dritter und wehrt unberechtigte Ansprüche ab. Für Kammerberufe (wie z. B. Rechtsanwälte, Notare, Architekten) handelt es sich hierbei um eine Pflichtversicherung."]
[null,"Ist-Situation","afm Empfehlung I","afm Empfehlung II"]
["Versicherungsgesellschaft"]
["Tarifbezeichnung"]
["Vertragsnummer"]
["Beginn"]
["Ablauf"]
["Beitrag/Zahlweise"]
["Beitrag p. a."]
["Versichertes Risiko"]
["Versicherungssumme Vermögensschäden"]
["Selbstbeteiligung je Schadenfall"]
["Besonderheiten"]
["Aktion","Kündigen","Neu abschließen","Alternativ abschließen"]
[]
["Begründung"]

{"sheet":"RPBerufsHV2","index":59,"n_rows":28,"n_cols":3,"rows_kept":28,"cut":false,"hidden":true,"merged":[[12,0,12,2],[29,0,34,2]]}
[]
[]
[]
[]
[]
[]
[]
[]
[]
[]
["Berufs- und Vermögensschadenhaftpflichtversicherung"]
[]
["Beratend, betreuend, verwaltend, vermittelnd, begutachtend, beurkundend tätige Personen/Unternehmen oder Personen/Unternehmen, die im IT-Bereich arbeiten, benötigen neben der Betriebshaftpflicht- eine separate Vermögensschadenhaftpflichtversicherung. Die Vermögensschadenhaftpflichtversicherung bietet speziellen Versicherungsschutz für Haftungsrisiken, die Unternehmen oder ihre Mitarbeiter in Ausübung der betrieblichen Tätigkeit ausgesetzt sind. Über die Betriebshaltpflichtversicherung hinaus sind reine Vermögensschäden, d. h. Schäden, die weder Personen- noch Sachschäden sind oder sich aus solchen herleiten, Bestandteil der Deckung. Sie reguliert aufgrund gesetzlicher Bestimmungen berechtigte Ansprüche Dritter und wehrt unberechtigte Ansprüche ab. Für Kammerberufe (wie z. B. Rechtsanwälte, Notare, Architekten) handelt es sich hierbei um eine Pflichtversicherung."]
[null,"Ist-Situation","afm Empfehlung I"]
["Versicherungsgesellschaft"]
["Tarifbezeichnung"]
["Vertragsnummer"]
["Beginn"]
["Ablauf"]
["Beitrag/Zahlweise"]
["Beitrag p. a."]
["Versichertes Risiko"]
["Versicherungssumme Vermögensschäden"]
["Selbstbeteiligung je Schadenfall"]
["Besonderheiten"]
["Aktion","Kündigen","Neu abschließen"]
[]
["Begründung"]

{"sheet":"RPDuO3","index":60,"n_rows":31,"n_cols":4,"rows_kept":31,"cut":false,"hidden":true,"merged":[[12,0,12,3],[32,0,37,3]]}
[]
[]
[]
[]
[]
[]
[]
[]
[]
[]
["D&O-Versicherung"]
[]
["Die D&O Versicherung (Directors-and-Officers-Versicherung | Organ- oder Managerhaftpflichtversicherung) ist eine Vermögensschadenhaftpflichtversicherung, die ein Unternehmen für seine Organe und leitenden Angestellten abschließt. Aufgabe der D&O ist es, Mitglieder der Leitungs- und Aufsichtsorgane des Unternehmens für den Fall der Inanspruchnahme wegen eines reinen Vermögensschadens, verursacht durch eine Pflichtverletzung oder ein Fehlverhalten aufgrund gesetzlicher Haftpflichtbestimmungen, zu schützen. Wie jede Haftpflichtversicherung leistet die D&O-Versicherung Ersatz bei berechtigten Ansprüchen und bietet Abwehrschutz bei unberechtigten Ansprüchen."]
[null,"Ist-Situation","afm Empfehlung I","afm Empfehlung II"]
["Versicherungsgesellschaft",{"$f":"IF(DuO!B33=\"\",\"\",DuO!B33)","v":""}]
["Versichertes Risiko gem. Police"]
["Vertragsnummer",{"$f":"IF(DuO!B34=\"\",\"\",DuO!B34)","v":""}]
["Beginn"]
["Ablauf",{"$f":"IF(DuO!B35=\"\",\"\",DuO!B35)","v":""}]
["Beitrag Zahlweise"]
["Beitrag p. a. "]
["Deckungssumme für Vermögensschäden"]
["Selbstbehaltsdeckung bei Vorständen (AG)"]
["Abwehrkostenzusatzlimit"]
["Nachmeldefrist"]
["Gehaltsfortzahlung"]
["Ausschluss Vorsatz/Wissentlichkeit"]
["Besonderheiten"]
["Aktion","Kündigen","Neu abschließen","Alternativ abschließen"]
[]
["Begründung"]

{"sheet":"RPDuO2","index":61,"n_rows":31,"n_cols":3,"rows_kept":31,"cut":false,"hidden":true,"merged":[[12,0,12,2],[32,0,37,2]]}
[]
[]
[]
[]
[]
[]
[]
[]
[]
[]
["D&O-Versicherung"]
[]
["Die D&O Versicherung (Directors-and-Officers-Versicherung | Organ- oder Managerhaftpflichtversicherung) ist eine Vermögensschadenhaftpflichtversicherung, die ein Unternehmen für seine Organe und leitenden Angestellten abschließt. Aufgabe der D&O ist es, Mitglieder der Leitungs- und Aufsichtsorgane des Unternehmens für den Fall der Inanspruchnahme wegen eines reinen Vermögensschadens, verursacht durch eine Pflichtverletzung oder ein Fehlverhalten aufgrund gesetzlicher Haftpflichtbestimmungen, zu schützen. Wie jede Haftpflichtversicherung leistet die D&O-Versicherung Ersatz bei berechtigten Ansprüchen und bietet Abwehrschutz bei unberechtigten Ansprüchen."]
[null,"Ist-Situation","afm Empfehlung I"]
["Versicherungsgesellschaft",{"$f":"IF(DuO!B33=\"\",\"\",DuO!B33)","v":""}]
["Versichertes Risiko gem. Police"]
["Vertragsnummer",{"$f":"IF(DuO!B34=\"\",\"\",DuO!B34)","v":""}]
["Beginn"]
["Ablauf",{"$f":"IF(DuO!B35=\"\",\"\",DuO!B35)","v":""}]
["Beitrag Zahlweise"]
["Beitrag p. a. "]
["Deckungssumme für Vermögensschäden"]
["Selbstbehaltsdeckung bei Vorständen (AG)"]
["Abwehrkostenzusatzlimit"]
["Nachmeldefrist"]
["Gehaltsfortzahlung"]
["Ausschluss Vorsatz/Wissentlichkeit"]
["Besonderheiten"]
["Aktion","Kündigen","Neu abschließen"]
[]
["Begründung"]

{"sheet":"RPCyber3","index":62,"n_rows":33,"n_cols":4,"rows_kept":33,"cut":false,"hidden":true,"merged":[[12,0,12,3],[34,0,39,3]]}
[]
[]
[]
[]
[]
[]
[]
[]
[]
[]
["Cyberversicherung"]
[]
["Der massive Anstieg von Cyberattacken und Computerviren stellt eine zunehmende Bedrohung für die Gesamtwirtschaft dar. Kein IT-Sicherheitssystem kann einen hundertprozentigen Schutz gewährleisten. Die Sicherheitslücke lässt sich nur durch eine zusätzliche Versicherung vollständig schließen. Die Cyberversicherung bietet einerseits Schutz vor Ansprüchen Dritter aufgrund Datenrechts- oder Vertraulichkeitsverletzungen. Viel entscheidender ist jedoch der Ersatz von eigenen Kosten. Die Benachrichtigung von Betroffenen und Behörden, Daten- und Systemwiederherstellung sowie die nötige Unterstützung von Profis aus den Bereichen der IT, Public Relations oder des Rechts verursachen unter Umständen Kosten in Millionenhöhe. Sind auch noch Kreditkartendaten betroffen, verdoppelt oder verdreifacht sich der Gesamtschaden leicht."]
[null,"Ist-Situation","afm Empfehlung I","afm Empfehlung II"]
["Versicherungsgesellschaft",{"$f":"IF(Cyber!B29=\"\",\"\",Cyber!B29)","v":""}]
["Versichertes Risiko gem. Police"]
["Vertragsnummer",{"$f":"IF(Cyber!B30=\"\",\"\",Cyber!B30)","v":""}]
["Beginn"]
["Ablauf",{"$f":"IF(Cyber!B31=\"\",\"\",Cyber!B31)","v":""}]
["Beitrag Zahlweise"]
["Beitrag p. a. "]
["Selbstbeteiligung je Schadenfall"]
["Deckungssumme für Vermögensschäden"]
["Fehlbedienung"]
["IT-Forensik-Kosten"]
["Benachrichtigungskosten bis"]
["Vertragliche Ansprüche von Kreditkartenunternehmen"]
["Vorsatzausschluss ex-/inklusive Mitarbeiter ohne Leitungsfunktion"]
["„Stand der Technik“-Klausel"]
["Besonderheiten"]
["Aktion","Kündigen","Neu abschließen","Alternativ abschließen"]
[]
["Begründung"]

{"sheet":"RPCyber2","index":63,"n_rows":33,"n_cols":3,"rows_kept":33,"cut":false,"hidden":true,"merged":[[12,0,12,2],[34,0,39,2]]}
[]
[]
[]
[]
[]
[]
[]
[]
[]
[]
["Cyberversicherung"]
[]
["Der massive Anstieg von Cyberattacken und Computerviren stellt eine zunehmende Bedrohung für die Gesamtwirtschaft dar. Kein IT-Sicherheitssystem kann einen hundertprozentigen Schutz gewährleisten. Die Sicherheitslücke lässt sich nur durch eine zusätzliche Versicherung vollständig schließen. Die Cyberversicherung bietet einerseits Schutz vor Ansprüchen Dritter aufgrund Datenrechts- oder Vertraulichkeitsverletzungen. Viel entscheidender ist jedoch der Ersatz von eigenen Kosten. Die Benachrichtigung von Betroffenen und Behörden, Daten- und Systemwiederherstellung sowie die nötige Unterstützung von Profis aus den Bereichen der IT, Public Relations oder des Rechts verursachen unter Umständen Kosten in Millionenhöhe. Sind auch noch Kreditkartendaten betroffen, verdoppelt oder verdreifacht sich der Gesamtschaden leicht."]
[null,"Ist-Situation","afm Empfehlung I"]
["Versicherungsgesellschaft",{"$f":"IF(Cyber!B29=\"\",\"\",Cyber!B29)","v":""}]
["Versichertes Risiko gem. Police"]
["Vertragsnummer",{"$f":"IF(Cyber!B30=\"\",\"\",Cyber!B30)","v":""}]
["Beginn"]
["Ablauf",{"$f":"IF(Cyber!B31=\"\",\"\",Cyber!B31)","v":""}]
["Beitrag Zahlweise"]
["Beitrag p. a. "]
["Selbstbeteiligung je Schadenfall"]
["Deckungssumme für Vermögensschäden"]
["Fehlbedienung"]
["IT-Forensik-Kosten"]
["Benachrichtigungskosten bis"]
["Vertragliche Ansprüche von Kreditkartenunternehmen"]
["Vorsatzausschluss ex-/inklusive Mitarbeiter ohne Leitungsfunktion"]
["„Stand der Technik“-Klausel"]
["Besonderheiten"]
["Aktion","Kündigen","Neu abschließen"]
[]
["Begründung"]

{"sheet":"RPVSV3","index":64,"n_rows":31,"n_cols":4,"rows_kept":31,"cut":false,"hidden":true,"merged":[[12,0,12,3],[32,0,37,3]]}
[]
[]
[]
[]
[]
[]
[]
[]
[]
[]
["Vertrauensschadenversicherung"]
[]
["Oftmals lauern die größten Risiken in den eigenen Reihen. Deutsche Ermittlungsbehörden registrieren jährlich hunderttausende Fälle, in denen Mitarbeiter ihren Arbeitgeber vorsätzlich schädigen. Die Motive sind dabei sehr unterschiedlich: Bereicherungsabsicht, Rache oder Zuneigung zu einer dritten Person. Strategische Kooperationen mit Personen außerhalb des Unternehmens sind keine Seltenheit. Die Vertrauensschadenversicherung ist außerdem eine der wenigen Möglichkeiten, das Risiko der Kontenplünderung durch Manipulationen des Zahlungsverkehrs von Außen abzudecken."]
[null,"Ist-Situation","afm Empfehlung I","afm Empfehlung II"]
["Versicherungsgesellschaft",{"$f":"IF(VSV!B47=\"\",\"\",VSV!B47)","v":""}]
["Versichertes Risiko gem. Police"]
["Vertragsnummer",{"$f":"IF(VSV!B48=\"\",\"\",VSV!B48)","v":""}]
["Beginn"]
["Ablauf",{"$f":"IF(VSV!B49=\"\",\"\",VSV!B49)","v":""}]
["Beitrag Zahlweise"]
["Beitrag p. a. "]
["Selbstbeteiligung je Schadenfall"]
["Deckungssumme für Vermögensschäden"]
["Nachmeldefrist"]
["Mitversicherung von Gesellschaftern bis Anteil (%)"]
["Reputationsschäden"]
["Kontenplünderung durch Cyber-Angriff von Außen"]
["Besonderheiten"]
["Aktion","Kündigen","Neu abschließen","Alternativ abschließen"]
[]
["Begründung"]

{"sheet":"RPVSV2","index":65,"n_rows":31,"n_cols":3,"rows_kept":31,"cut":false,"hidden":true,"merged":[[12,0,12,2],[32,0,37,2]]}
[]
[]
[]
[]
[]
[]
[]
[]
[]
[]
["Vertrauensschadenversicherung"]
[]
["Oftmals lauern die größten Risiken in den eigenen Reihen. Deutsche Ermittlungsbehörden registrieren jährlich hunderttausende Fälle, in denen Mitarbeiter ihren Arbeitgeber vorsätzlich schädigen. Die Motive sind dabei sehr unterschiedlich: Bereicherungsabsicht, Rache oder Zuneigung zu einer dritten Person. Strategische Kooperationen mit Personen außerhalb des Unternehmens sind keine Seltenheit. Die Vertrauensschadenversicherung ist außerdem eine der wenigen Möglichkeiten, das Risiko der Kontenplünderung durch Manipulationen des Zahlungsverkehrs von außen abzudecken."]
[null,"Ist-Situation","afm Empfehlung I"]
["Versicherungsgesellschaft",{"$f":"IF(VSV!B47=\"\",\"\",VSV!B47)","v":""}]
["Versichertes Risiko gem. Police"]
["Vertragsnummer",{"$f":"IF(VSV!B48=\"\",\"\",VSV!B48)","v":""}]
["Beginn"]
["Ablauf",{"$f":"IF(VSV!B49=\"\",\"\",VSV!B49)","v":""}]
["Beitrag Zahlweise"]
["Beitrag p. a. "]
["Selbstbeteiligung je Schadenfall"]
["Deckungssumme für Vermögensschäden"]
["Nachmeldefrist"]
["Mitversicherung von Gesellschaftern bis Anteil (%)"]
["Reputationsschäden"]
["Kontenplünderung durch Cyberangriff von außen"]
["Besonderheiten"]
["Aktion","Kündigen","Neu abschließen"]
[]
["Begründung"]

{"sheet":"RPGebäude3","index":66,"n_rows":35,"n_cols":4,"rows_kept":35,"cut":false,"hidden":true,"merged":[[12,0,12,3],[36,0,41,3]]}
[]
[]
[]
[]
[]
[]
[]
[]
[]
[]
["Gebäudeversicherung"]
[]
["Die Gebäudeversicherung bietet Unternehmen bzw. Eigentümern eines Geschäftsgebäudes speziellen Versicherungsschutz gegen die Gefahren Feuer, Leitungswasser und Sturm/Hagel sowie bei besonderer Vereinbarung zusätzlich bei Inneren Unruhen, böswilliger Beschädigung, Streik, Aussperrung, erweiterten Elementarschäden. Sie schützt vor den finanziellen Auswirkungen von Schäden am Gebäude. Versichert sind alle fest mit dem Gebäude verbundenen Sachen, aber auch das Gebäude selbst, einschließlich Fundamente, Grund- und Kellermauern. Zusätzlich kann man Nebengebäude sowie Garagen mitversichern."]
[null,"Ist-Situation","afm Empfehlung I","afm Empfehlung II"]
["Versicherungsgesellschaft",{"$f":"IF(Sachsubstanz!B97=\"\",\"\",Sachsubstanz!B97)","v":""}]
["Tarifbezeichnung"]
["Vertragsnummer",{"$f":"IF(Sachsubstanz!B98=\"\",\"\",Sachsubstanz!B98)","v":""}]
["Beginn"]
["Ablauf",{"$f":"IF(Sachsubstanz!B99=\"\",\"\",Sachsubstanz!B99)","v":""}]
["Beitrag/Zahlweise"]
["Beitrag p. a."]
["Risikoort"]
["Objektart"]
["Baujahr"]
["Versicherungssumme aktuell"]
["Wert 1914"]
["Versicherte Gefahren"]
["Elementarschäden"]
["Glas"]
["Photovoltaik-/Solaranlage"]
["Selbstbeteiligung je Schadenfall"]
["Besonderheiten"]
["Aktion","Kündigen","Neu abschließen","Alternativ abschließen"]
[]
["Begründung"]

{"sheet":"RPGebäude2","index":67,"n_rows":35,"n_cols":3,"rows_kept":35,"cut":false,"hidden":true,"merged":[[12,0,12,2],[36,0,41,2]]}
[]
[]
[]
[]
[]
[]
[]
[]
[]
[]
["Gebäudeversicherung"]
[]
["Die Gebäudeversicherung bietet Unternehmen bzw. Eigentümern eines Geschäftsgebäudes speziellen Versicherungsschutz gegen die Gefahren Feuer, Leitungswasser und Sturm/Hagel sowie bei besonderer Vereinbarung zusätzlich bei Inneren Unruhen, böswilliger Beschädigung, Streik, Aussperrung, erweiterten Elementarschäden. Sie schützt vor den finanziellen Auswirkungen von Schäden am Gebäude. Versichert sind alle fest mit dem Gebäude verbundenen Sachen, aber auch das Gebäude selbst, einschließlich Fundamente, Grund- und Kellermauern. Zusätzlich kann man Nebengebäude sowie Garagen mitversichern."]
[null,"Ist-Situation","afm Empfehlung I"]
["Versicherungsgesellschaft",{"$f":"IF(Sachsubstanz!B97=\"\",\"\",Sachsubstanz!B97)","v":""}]
["Tarifbezeichnung"]
["Vertragsnummer",{"$f":"IF(Sachsubstanz!B98=\"\",\"\",Sachsubstanz!B98)","v":""}]
["Beginn"]
["Ablauf",{"$f":"IF(Sachsubstanz!B99=\"\",\"\",Sachsubstanz!B99)","v":""}]
["Beitrag/Zahlweise"]
["Beitrag p. a."]
["Risikoort"]
["Objektart"]
["Baujahr"]
["Versicherungssumme aktuell"]
["Wert 1914"]
["Versicherte Gefahren"]
["Elementarschäden"]
["Glas"]
["Photovoltaik-/Solaranlage"]
["Selbstbeteiligung je Schadenfall"]
["Besonderheiten"]
["Aktion","Kündigen","Neu abschließen"]
[]
["Begründung"]

{"sheet":"RPHuG3","index":68,"n_rows":27,"n_cols":4,"rows_kept":27,"cut":false,"hidden":true,"merged":[[12,0,12,3],[28,0,33,3]]}
[]
[]
[]
[]
[]
[]
[]
[]
[]
[]
["Haus- und Grundbesitzerhaftpflichtversicherung"]
[]
["Nach § 836, § 837 und § 838 BGB sind Grundstücks- und Gebäudebesitzer bei mindestens fahrlässiger Handlung in unbegrenzter Höhe haftbar, sollte z. B. durch Ablösung von Teilen des Gebäudes ein Mensch geschädigt oder eine Sache beschädigt werden. Zusätzlich besteht für den Eigentümer eine Verkehrssicherungspflicht, deren Unterlassen nach § 823 BGB ebenfalls zu einer unbegrenzten Haftung führen kann. Aus diesem Grund ist der Abschluss einer Haus- und Grundbesitzerhaftpflichtversicherung sehr wichtig."]
[null,"Ist-Situation","afm Empfehlung I","afm Empfehlung II"]
["Versicherungsgesellschaft"]
["Tarifbezeichnung"]
["Vertragsnummer"]
["Beginn"]
["Ablauf"]
["Beitrag/Zahlweise"]
["Beitrag p. a."]
["Versicherungssumme"]
["Selbstbeteiligung je Schadenfall"]
["Besonderheiten"]
["Aktion","Kündigen","Neu abschließen","Alternativ abschließen"]
[]
["Begründung"]

{"sheet":"RPHuG2","index":69,"n_rows":27,"n_cols":3,"rows_kept":27,"cut":false,"hidden":true,"merged":[[12,0,12,2],[28,0,33,2]]}
[]
[]
[]
[]
[]
[]
[]
[]
[]
[]
["Haus- und Grundbesitzerhaftpflichtversicherung"]
[]
["Nach § 836, § 837 und § 838 BGB sind Grundstücks- und Gebäudebesitzer bei mindestens fahrlässiger Handlung in unbegrenzter Höhe haftbar, sollte z. B. durch Ablösung von Teilen des Gebäudes ein Mensch geschädigt oder eine Sache beschädigt werden. Zusätzlich besteht für den Eigentümer eine Verkehrssicherungspflicht, deren Unterlassen nach § 823 BGB ebenfalls zu einer unbegrenzten Haftung führen kann. Aus diesem Grund ist der Abschluss einer Haus- und Grundbesitzerhaftpflichtversicherung sehr wichtig."]
[null,"Ist-Situation","afm Empfehlung I"]
["Versicherungsgesellschaft"]
["Tarifbezeichnung"]
["Vertragsnummer"]
["Beginn"]
["Ablauf"]
["Beitrag/Zahlweise"]
["Beitrag p. a."]
["Versicherungssumme"]
["Selbstbeteiligung je Schadenfall"]
["Besonderheiten"]
["Aktion","Kündigen","Neu abschließen"]
[]
["Begründung"]

{"sheet":"RPBHH3","index":70,"n_rows":31,"n_cols":4,"rows_kept":31,"cut":false,"hidden":true,"merged":[[12,0,12,3],[32,0,37,3]]}
[]
[]
[]
[]
[]
[]
[]
[]
[]
[]
["Bauherrenhaftpflichtversicherung"]
[]
["Die Bauherrenhaftpflichtversicherung schützt Unternehmen bzw. Eigentümer während der Neu- oder Umbauphase eines Geschäftsgebäudes vor möglichen Ansprüchen Dritter, wenn ein entstandener Schaden durch das Bauvorhaben verursacht wurde. Als Bauherr tragen sie auch die Verantwortung dafür, ihre Baustelle ausreichend zu schützen und dies regelmäßig zu überwachen. Das ist im Übrigen auch der Fall, wenn der Bauherr sachverständige Personen, wie Unternehmer, Handwerker oder Architekten, beauftragt hat. Dies entbindet den Bauherrn nicht von seiner Sorgfaltspflicht. Nach der Baufertigstellung ist die Bauherrenhaftpflichtversicherung nicht mehr nötig, wird das Gebäude aber ganz bzw. teilweise vermietet ist eine Haus- und Grundbesitzerhaftpflichtversicherung zu empfehlen. In der Betriebshaftpflichtversicherung ist regelmäßig schon das Bauherrenrisiko im Rahmen der Haus- und Grundbesitzerhaftpflichtversicherung enthalten, bei den meisten Versicherern jedoch auf eine bestimmte Bausumme beschränkt."]
[null,"Ist-Situation","afm Empfehlung I","afm Empfehlung II"]
["Versicherungsgesellschaft"]
["Tarifbezeichnung"]
["Vertragsnummer"]
["Beginn"]
["Ablauf"]
["Beitrag/Zahlweise"]
["Beitrag p. a."]
["Versicherungsort"]
["Art des Bauvorhabens"]
["Deckungssumme für Personenschäden"]
["Deckungssumme für Sachschäden"]
["Mitversicherung von „Bauen in eigener Leistung“ bis (€)"]
["Selbstbeteiligung je Schadenfall"]
["Besonderheiten"]
["Aktion","Kündigen","Neu abschließen","Alternativ abschließen"]
[]
["Begründung"]

{"sheet":"RPBHH2","index":71,"n_rows":31,"n_cols":3,"rows_kept":31,"cut":false,"hidden":true,"merged":[[12,0,12,2],[32,0,37,2]]}
[]
[]
[]
[]
[]
[]
[]
[]
[]
[]
["Bauherrenhaftpflichtversicherung"]
[]
["Die Bauherrenhaftpflichtversicherung schützt Unternehmen bzw. Eigentümer während der Neu- oder Umbauphase eines Geschäftsgebäudes vor möglichen Ansprüchen Dritter, wenn ein entstandener Schaden durch das Bauvorhaben verursacht wurde. Als Bauherr tragen Sie auch die Verantwortung dafür, Ihre Baustelle ausreichend zu schützen und dies regelmäßig zu überwachen. Das ist im Übrigen auch der Fall, wenn der Bauherr sachverständige Personen, wie Unternehmer, Handwerker oder Architekten, beauftragt hat. Dies entbindet den Bauherrn nicht von seiner Sorgfaltspflicht. Nach der Baufertigstellung ist die Bauherrenhaftpflichtversicherung nicht mehr nötig, wird das Gebäude aber ganz bzw. teilweise vermietet ist eine Haus- und Grundbesitzerhaftpflichtversicherung zu empfehlen. In der Betriebshaftpflichtversicherung ist regelmäßig schon das Bauherrenrisiko im Rahmen der Haus- und Grundbesitzerhaftpflichtversicherung enthalten, bei den meisten Versicherern jedoch auf eine bestimmte Bausumme beschränkt."]
[null,"Ist-Situation","afm Empfehlung I"]
["Versicherungsgesellschaft"]
["Tarifbezeichnung"]
["Vertragsnummer"]
["Beginn"]
["Ablauf"]
["Beitrag / Zahlweise"]
["Beitrag p.a."]
["Versicherungsort"]
["Art des Bauvorhabens"]
["Deckungssumme für Personenschäden"]
["Deckungssumme für Sachschäden"]
["Mitversicherung von „Bauen in eigener Leistung“ bis (€)"]
["Selbstbeteiligung je Schadenfall"]
["Besonderheiten"]
["Aktion","Kündigen","Neu abschließen"]
[]
["Begründung"]

{"sheet":"RPBauleistung3","index":72,"n_rows":39,"n_cols":4,"rows_kept":39,"cut":false,"hidden":true,"merged":[[12,0,12,3],[40,0,45,3]]}
[]
[]
[]
[]
[]
[]
[]
[]
[]
[]
["Bauleistungsversicherung"]
[]
["Die Bauleistungsversicherung bietet dem Bauherren speziellen Versicherungsschutz im Falle von unvorhersehbaren Schäden auf einer Baustelle, insbesondere solcher, die durch Naturkatastrophen wie Sturm und Hochwasser verursacht werden. Auch durch Vandalismus, Konstruktionsfehler oder Fahrlässigkeit verursachte Schäden sind mitversichert."]
[null,"Ist-Situation","afm Empfehlung I","afm Empfehlung II"]
["Versicherungsgesellschaft",{"$f":"IF(Bauleistung!B19=\"\",\"\",Bauleistung!B19)","v":""}]
["Tarifbezeichnung"]
["Vertragsnummer",{"$f":"IF(Bauleistung!B20=\"\",\"\",Bauleistung!B20)","v":""}]
["Beginn"]
["Ablauf",{"$f":"IF(Bauleistung!F4=\"\",\"\",Bauleistung!F4)","v":""}]
["Beitrag/Zahlweise"]
["Beitrag p. a."]
["Art des Bauvorhabens"]
["Versicherungsort"]
["Versicherungssumme "]
["Nachhaftung"]
["Mitversicherung des Feuerrisikos"]
["Mitversicherung von Wasserhaltung"]
["Mitversicherung von Baugrubensicherung (als Spundwand oder „Berliner Verbau“)"]
["Mitversicherung von Pfahl-, Brunnen- und/oder Senkkastengründung"]
["Mitversicherung von Mehrkosten"]
["Kosten für Gefahr des Einsturzes bzw. Teileinsturzes bei Umbau"]
["Schadenminderungs- und Schadensuchkosten"]
["Zusätzliche Aufräumungskosten sofern in Folge der Aufräumungskosten die VS überschritten wird"]
["Kosten für Baugrund und Bodenmassen sofern sie nicht Bestandteil der Bauleistungsversicherung sind"]
["Selbstbeteiligung je Schadenfall"]
["Besonderheiten"]
["Aktion","Kündigen","Neu abschließen","Alternativ abschließen"]
[]
["Begründung"]

{"sheet":"RPBauleistung2","index":73,"n_rows":39,"n_cols":3,"rows_kept":39,"cut":false,"hidden":true,"merged":[[12,0,12,2],[40,0,45,2]]}
[]
[]
[]
[]
[]
[]
[]
[]
[]
[]
["Bauleistungsversicherung"]
[]
["Die Bauleistungsversicherung bietet dem Bauherren speziellen Versicherungsschutz im Falle von unvorhersehbaren Schäden auf einer Baustelle, insbesondere solcher, die durch Naturkatastrophen wie Sturm und Hochwasser verursacht werden. Auch durch Vandalismus, Konstruktionsfehler oder Fahrlässigkeit verursachte Schäden sind mitversichert."]
[null,"Ist-Situation","afm Empfehlung I"]
["Versicherungsgesellschaft",{"$f":"IF(Bauleistung!B19=\"\",\"\",Bauleistung!B19)","v":""}]
["Tarifbezeichnung"]
["Vertragsnummer",{"$f":"IF(Bauleistung!B20=\"\",\"\",Bauleistung!B20)","v":""}]
["Beginn"]
["Ablauf",{"$f":"IF(Bauleistung!F4=\"\",\"\",Bauleistung!F4)","v":""}]
["Beitrag/Zahlweise"]
["Beitrag p. a."]
["Art des Bauvorhabens"]
["Versicherungsort"]
["Versicherungssumme "]
["Nachhaftung"]
["Mitversicherung des Feuerrisikos"]
["Mitversicherung von Wasserhaltung"]
["Mitversicherung von Baugrubensicherung (als Spundwand oder „Berliner Verbau“)"]
["Mitversicherung von Pfahl-, Brunnen- und/oder Senkkastengründung"]
["Mitversicherung von Mehrkosten"]
["Kosten für Gefahr des Einsturzes bzw. Teileinsturzes bei Umbau"]
["Schadenminderungs- und Schadensuchkosten"]
["Zusätzliche Aufräumungskosten sofern in Folge der Aufräumungskosten die VS überschritten wird"]
["Kosten für Baugrund und Bodenmassen sofern sie nicht Bestandteil der Bauleistungsversicherung sind"]
["Selbstbeteiligung je Schadenfall"]
["Besonderheiten"]
["Aktion","Kündigen","Neu abschließen"]
[]
["Begründung"]

{"sheet":"RPPhotovoltaik3","index":74,"n_rows":32,"n_cols":4,"rows_kept":32,"cut":false,"hidden":true,"merged":[[12,0,12,3],[33,0,38,3]]}
[]
[]
[]
[]
[]
[]
[]
[]
[]
[]
["Solar- und Photovoltaik- inkl. Ertragsausfallversicherung"]
[]
["Mit der Elektronik- und Ertragsausfallversicherung sind nicht nur die Solarmodule selbst, sondern auch die dazugehörigen Komponenten wie Wechselrichter, Einspeise- und Erzeugungszähler, Hausverteilerkästen und Verkabelungen versichert.\nDarüber hinaus können man sich gegen einen Ertragsausfall absichern. Schließlich müssen eventuelle Verbindlichkeiten weiter bedient werden, auch wenn die Anlage defekt ist und keinen Strom mehr produziert."]
[null,"Ist-Situation","afm Empfehlung I","afm Empfehlung II"]
["Versicherungsgesellschaft"]
["Tarifbezeichnung"]
["Vertragsnummer"]
["Beginn"]
["Ablauf"]
["Beitrag/Zahlweise"]
["Beitrag p. a."]
["Risikoort"]
["Anlagenleistung in kWp"]
["Wert der Anlage"]
["Versicherungssumme"]
["Baujahr"]
["Ertragsausfall"]
["Haftzeit"]
["Besonderheiten"]
["Aktion","Kündigen","Neu abschließen","Alternativ abschließen"]
[]
["Begründung"]

{"sheet":"RPPhotovoltaik2","index":75,"n_rows":32,"n_cols":3,"rows_kept":32,"cut":false,"hidden":true,"merged":[[12,0,12,2],[33,0,38,2]]}
[]
[]
[]
[]
[]
[]
[]
[]
[]
[]
["Solar- und Photovoltaik- inkl. Ertragsausfallversicherung"]
[]
["Mit der Elektronik- und Ertragsausfallversicherung sind nicht nur die Solarmodule selbst, sondern auch die dazugehörigen Komponenten wie Wechselrichter, Einspeise- und Erzeugungszähler, Hausverteilerkästen und Verkabelungen versichert.\nDarüber hinaus können man sich gegen einen Ertragsausfall absichern. Schließlich müssen eventuelle Verbindlichkeiten weiter bedient werden, auch wenn die Anlage defekt ist und keinen Strom mehr produziert."]
[null,"Ist-Situation","afm Empfehlung I"]
["Versicherungsgesellschaft"]
["Tarifbezeichnung"]
["Vertragsnummer"]
["Beginn"]
["Ablauf"]
["Beitrag/Zahlweise"]
["Beitrag p. a."]
["Risikoort"]
["Anlagenleistung in kWp"]
["Wert der Anlage"]
["Versicherungssumme"]
["Baujahr"]
["Ertragsausfall"]
["Haftzeit"]
["Besonderheiten"]
["Aktion","Kündigen","Neu abschließen"]
[]
["Begründung"]

{"sheet":"RPPhotovoltaikHV3","index":76,"n_rows":31,"n_cols":4,"rows_kept":31,"cut":false,"hidden":true,"merged":[[12,0,12,3],[32,0,37,3]]}
[]
[]
[]
[]
[]
[]
[]
[]
[]
[]
["Betreiberhaftpflichtversicherung Solar- und Photovoltaik"]
[]
["Trotz aller Vorsicht sind Betreiber einer Photovoltaikanlage schnell in der Haftung. Zum Beispiel dann, wenn jemand durch herunterfallende Teile verletzt wird, wenn benachbarte Häuser beschädigt werden oder der Strom beim Einleiten in das Netz des Energieversorgers einen Netzschaden verursacht."]
[null,"Ist-Situation","afm Empfehlung I","afm Empfehlung II"]
["Versicherungsgesellschaft"]
["Tarifbezeichnung"]
["Vertragsnummer"]
["Beginn"]
["Ablauf"]
["Beitrag/Zahlweise"]
["Beitrag p. a."]
["Anlagenleistung in kWp"]
["Wert der Anlage"]
["Baujahr"]
["Versicherungssumme Personenschäden"]
["Versicherungssumme Sachschäden"]
["Selbstbeteiligung je Schadenfall"]
["Besonderheiten"]
["Aktion","Kündigen","Neu abschließen","Alternativ abschließen"]
[]
["Begründung"]

{"sheet":"RPPhotovoltaikHV2","index":77,"n_rows":31,"n_cols":3,"rows_kept":31,"cut":false,"hidden":true,"merged":[[12,0,12,2],[32,0,37,2]]}
[]
[]
[]
[]
[]
[]
[]
[]
[]
[]
["Betreiberhaftpflichtversicherung Solar- und Photovoltaik"]
[]
["Trotz aller Vorsicht sind Betreiber einer Photovoltaikanlage schnell in der Haftung. Zum Beispiel dann, wenn jemand durch herunterfallende Teile verletzt wird, wenn benachbarte Häuser beschädigt werden oder der Strom beim Einleiten in das Netz des Energieversorgers einen Netzschaden verursacht."]
[null,"Ist-Situation","afm Empfehlung I"]
["Versicherungsgesellschaft"]
["Tarifbezeichnung"]
["Vertragsnummer"]
["Beginn"]
["Ablauf"]
["Beitrag/Zahlweise"]
["Beitrag p. a."]
["Anlagenleistung in kWp"]
["Wert der Anlage"]
["Baujahr"]
["Versicherungssumme Personenschäden"]
["Versicherungssumme Sachschäden"]
["Selbstbeteiligung je Schadenfall"]
["Besonderheiten"]
["Aktion","Kündigen","Neu abschließen"]
[]
["Begründung"]

{"sheet":"RPInhalt3","index":78,"n_rows":35,"n_cols":4,"rows_kept":35,"cut":false,"hidden":true,"merged":[[12,0,12,3],[36,0,41,3]]}
[]
[]
[]
[]
[]
[]
[]
[]
[]
[]
["Inhaltsversicherung"]
[]
["Die Inhaltsversicherung bietet speziellen Versicherungsschutz für die in einem Betrieb vorhandenen technischen und kaufmännischen Betriebseinrichtungen sowie für die Waren und Vorräte gegen die Gefahren Feuer, Einbruchdiebstahl, Leitungswasser und Sturm/Hagel sowie bei besonderer Vereinbarung zusätzlich bei Inneren Unruhen, böswilliger Beschädigung, Streik, Aussperrung und erweiterten Elementarschäden. Sie schützt vor den finanziellen Auswirkungen von Schäden an der Betriebseinrichtung."]
[null,"Ist-Situation","afm Empfehlung I","afm Empfehlung II"]
["Versicherungsgesellschaft",{"$f":"IF(Sachsubstanz!B105=\"\",\"\",Sachsubstanz!B105)","v":""}]
["Tarifbezeichnung"]
["Vertragsnummer",{"$f":"IF(Sachsubstanz!B106=\"\",\"\",Sachsubstanz!B106)","v":""}]
["Beginn"]
["Ablauf",{"$f":"IF(Sachsubstanz!B107=\"\",\"\",Sachsubstanz!B107)","v":""}]
["Beitrag/Zahlweise"]
["Beitrag p. a."]
["Risikoort"]
["Versicherungssumme"]
["Versicherungssumme für Betriebsunterbrechung"]
["Versicherte Gefahren"]
["Elementarschäden"]
["Glas"]
["Mehrkosten infolge behördlicher Wiederherstellungsbeschränkungen"]
["Kosten für die Wiederherstellung betriebsspezifischer Daten"]
["Überspannungsschäden"]
["Selbstbeteiligung je Schadenfall"]
["Besonderheiten"]
["Aktion","Kündigen","Neu abschließen","Alternativ abschließen"]
[]
["Begründung"]

{"sheet":"RPInhalt2","index":79,"n_rows":35,"n_cols":3,"rows_kept":35,"cut":false,"hidden":true,"merged":[[12,0,12,2],[36,0,41,2]]}
[]
[]
[]
[]
[]
[]
[]
[]
[]
[]
["Inhaltsversicherung"]
[]
["Die Inhaltsversicherung bietet speziellen Versicherungsschutz für die in einem Betrieb vorhandenen technischen und kaufmännischen Betriebseinrichtungen sowie für die Waren und Vorräte gegen die Gefahren Feuer, Einbruchdiebstahl, Leitungswasser und Sturm/Hagel sowie bei besonderer Vereinbarung zusätzlich bei Inneren Unruhen, böswilliger Beschädigung, Streik, Aussperrung und erweiterten Elementarschäden. Sie schützt vor den finanziellen Auswirkungen von Schäden an der Betriebseinrichtung."]
[null,"Ist-Situation","afm Empfehlung I"]
["Versicherungsgesellschaft",{"$f":"IF(Sachsubstanz!B105=\"\",\"\",Sachsubstanz!B105)","v":""}]
["Tarifbezeichnung"]
["Vertragsnummer",{"$f":"IF(Sachsubstanz!B106=\"\",\"\",Sachsubstanz!B106)","v":""}]
["Beginn"]
["Ablauf",{"$f":"IF(Sachsubstanz!B107=\"\",\"\",Sachsubstanz!B107)","v":""}]
["Beitrag/Zahlweise"]
["Beitrag p. a."]
["Risikoort"]
["Versicherungssumme"]
["Versicherungssumme für Betriebsunterbrechung"]
["Versicherte Gefahren"]
["Elementarschäden"]
["Glas"]
["Mehrkosten infolge behördlicher Wiederherstellungsbeschränkungen"]
["Kosten für die Wiederherstellung betriebsspezifischer Daten"]
["Überspannungsschäden"]
["Selbstbeteiligung je Schadenfall"]
["Besonderheiten"]
["Aktion","Kündigen","Neu abschließen"]
[]
["Begründung"]

{"sheet":"RPBU3","index":80,"n_rows":33,"n_cols":4,"rows_kept":33,"cut":false,"hidden":true,"merged":[[12,0,12,3],[34,0,39,3]]}
[]
[]
[]
[]
[]
[]
[]
[]
[]
[]
["Betriebsunterbrechungsversicherung"]
[]
["Die Betriebsunterbrechungsversicherung deckt Vermögensschäden ab, die aufgrund einer zufälligen und ungewollten Betriebsunterbrechung entstehen. Versichert sind der Betriebsgewinn und fortlaufende Kosten (Löhne und Gehälter, Zinsen, Mieten usw.). Die Leistungspflicht des Versicherungsunternehmens ist auf die Haftzeit beschränkt. Die Haftzeit beginnt mit Eintritt der Betriebsunterbrechung und endet mit dem Ende der Betriebsunterbrechung, spätestens jedoch mit Ende der vereinbarten Haftzeit."]
[null,"Ist-Situation","afm Empfehlung I","afm Empfehlung II"]
["Versicherungsgesellschaft",{"$f":"IF(BU!B29=\"\",\"\",BU!B29)","v":""}]
["Tarifbezeichnung"]
["Vertragsnummer",{"$f":"IF(BU!B30=\"\",\"\",BU!B30)","v":""}]
["Beginn"]
["Ablauf",{"$f":"IF(BU!B31=\"\",\"\",BU!B31)","v":""}]
["Beitrag/Zahlweise"]
["Beitrag p. a."]
["Risikoort"]
["Versicherungssumme"]
["Haftzeit"]
["Versicherte Gefahren"]
["Elementarschäden"]
["Mehrkosten für Schichtarbeit, Überstundenzuschläge"]
["Mehrkosten für Anmietung anderer Geschäftsräume"]
["Selbstbeteiligung je Schadenfall"]
["Besonderheiten"]
["Aktion","Kündigen","Neu abschließen","Alternativ abschließen"]
[]
["Begründung"]

{"sheet":"RPBU2","index":81,"n_rows":33,"n_cols":3,"rows_kept":33,"cut":false,"hidden":true,"merged":[[12,0,12,2],[34,0,39,2]]}
[]
[]
[]
[]
[]
[]
[]
[]
[]
[]
["Betriebsunterbrechungsversicherung"]
[]
["Die Betriebsunterbrechungsversicherung deckt Vermögensschäden ab, die aufgrund einer zufälligen und ungewollten Betriebsunterbrechung entstehen. Versichert sind der Betriebsgewinn und fortlaufende Kosten (Löhne und Gehälter, Zinsen, Mieten usw.). Die Leistungspflicht des Versicherungsunternehmens ist auf die Haftzeit beschränkt. Die Haftzeit beginnt mit Eintritt der Betriebsunterbrechung und endet mit dem Ende der Betriebsunterbrechung, spätestens jedoch mit Ende der vereinbarten Haftzeit."]
[null,"Ist-Situation","afm Empfehlung I"]
["Versicherungsgesellschaft",{"$f":"IF(BU!B29=\"\",\"\",BU!B29)","v":""}]
["Tarifbezeichnung"]
["Vertragsnummer",{"$f":"IF(BU!B30=\"\",\"\",BU!B30)","v":""}]
["Beginn"]
["Ablauf",{"$f":"IF(BU!B31=\"\",\"\",BU!B31)","v":""}]
["Beitrag/Zahlweise"]
["Beitrag p. a."]
["Risikoort"]
["Versicherungssumme"]
["Haftzeit"]
["Versicherte Gefahren"]
["Elementarschäden"]
["Mehrkosten für Schichtarbeit, Überstundenzuschläge"]
["Mehrkosten für Anmietung anderer Geschäftsräume"]
["Selbstbeteiligung je Schadenfall"]
["Besonderheiten"]
["Aktion","Kündigen","Neu abschließen"]
[]
["Begründung"]

{"sheet":"RPGlas3","index":82,"n_rows":31,"n_cols":4,"rows_kept":31,"cut":false,"hidden":true,"merged":[[12,0,12,3],[32,0,37,3]]}
[]
[]
[]
[]
[]
[]
[]
[]
[]
[]
["Glasversicherung"]
[]
["Die gewerbliche Glasversicherung bietet speziellen Versicherungsschutz für die in einem Betrieb fertig eingesetzten oder montierten Außen- und Innenverglasungen sowie Werbeanlagen, die durch Bruch (Zerbrechen) zerstört oder beschädigt werden. Die Leistung der Glasversicherung erfolgt in Naturalersatz und erstreckt sich nicht auf Beschädigungen von Oberflächen oder Kanten, undicht werden der Randverbindungen, Schäden durch Brand, Blitzschlag u. ä."]
[null,"Ist-Situation","afm Empfehlung I","afm Empfehlung II"]
["Versicherungsgesellschaft",{"$f":"IF(Sachsubstanz!B101=\"\",\"\",Sachsubstanz!B101)","v":""}]
["Tarifbezeichnung"]
["Vertragsnummer",{"$f":"IF(Sachsubstanz!B102=\"\",\"\",Sachsubstanz!B102)","v":""}]
["Beginn"]
["Ablauf",{"$f":"IF(Sachsubstanz!B103=\"\",\"\",Sachsubstanz!B103)","v":""}]
["Beitrag/Zahlweise"]
["Beitrag p. a."]
["Risikoort"]
["Glasfläche"]
["Einzelscheibengröße"]
["Kosten für den Aufbau von Gerüsten und Kränen"]
["Kosten für künstlerisch bearbeitete Scheiben"]
["Selbstbeteiligung je Schadenfall"]
["Besonderheiten"]
["Aktion","Kündigen","Neu abschließen","Alternativ abschließen"]
[]
["Begründung"]

{"sheet":"RPGlas2","index":83,"n_rows":31,"n_cols":3,"rows_kept":31,"cut":false,"hidden":true,"merged":[[12,0,12,2],[32,0,37,2]]}
[]
[]
[]
[]
[]
[]
[]
[]
[]
[]
["Glasversicherung"]
[]
["Die gewerbliche Glasversicherung bietet speziellen Versicherungsschutz für die in einem Betrieb fertig eingesetzten oder montierten Außen- und Innenverglasungen sowie Werbeanlagen, die durch Bruch (Zerbrechen) zerstört oder beschädigt werden. Die Leistung der Glasversicherung erfolgt in Naturalersatz und erstreckt sich nicht auf Beschädigungen von Oberflächen oder Kanten, undicht werden der Randverbindungen, Schäden durch Brand, Blitzschlag u. ä."]
[null,"Ist-Situation","afm Empfehlung I"]
["Versicherungsgesellschaft",{"$f":"IF(Sachsubstanz!B101=\"\",\"\",Sachsubstanz!B101)","v":""}]
["Tarifbezeichnung"]
["Vertragsnummer",{"$f":"IF(Sachsubstanz!B102=\"\",\"\",Sachsubstanz!B102)","v":""}]
["Beginn"]
["Ablauf",{"$f":"IF(Sachsubstanz!B103=\"\",\"\",Sachsubstanz!B103)","v":""}]
["Beitrag/Zahlweise"]
["Beitrag p. a."]
["Risikoort"]
["Glasfläche"]
["Einzelscheibengröße"]
["Kosten für den Aufbau von Gerüsten und Kränen"]
["Kosten für künstlerisch bearbeitete Scheiben"]
["Selbstbeteiligung je Schadenfall"]
["Besonderheiten"]
["Aktion","Kündigen","Neu abschließen"]
[]
["Begründung"]

{"sheet":"RPElektronik3","index":84,"n_rows":37,"n_cols":4,"rows_kept":37,"cut":false,"hidden":true,"merged":[[12,0,12,3],[38,0,43,3]]}
[]
[]
[]
[]
[]
[]
[]
[]
[]
[]
["Elektronikversicherung"]
[]
["Die Elektronikversicherung bietet speziellen Versicherungsschutz für die in einem Betrieb vorhandenen stationären und mobilen elektronischen Anlagen und Geräte. Es handelt sich hierbei um eine All-Gefahren-Deckung, somit ist über die klassischen Gefahren wie Feuer, Einbruchdiebstahl, Leitungswasser und Sturm hinaus auch eine Absicherung für Bedienungsfehler, unsachgemäße Handhabung, Vorsatz Dritter und Überschwemmungsschäden mitversichert."]
[null,"Ist-Situation","afm Empfehlung I","afm Empfehlung II"]
["Versicherungsgesellschaft",{"$f":"IF(Elektronik!B18=\"\",\"\",Elektronik!B18)","v":""}]
["Tarifbezeichnung"]
["Vertragsnummer",{"$f":"IF(Elektronik!B19=\"\",\"\",Elektronik!B19)","v":""}]
["Beginn"]
["Ablauf",{"$f":"IF(Elektronik!B20=\"\",\"\",Elektronik!B20)","v":""}]
["Beitrag/Zahlweise"]
["Beitrag p. a."]
["Risikoort"]
["Versicherte Anlagen und Geräte"]
["Gesamt Versicherungssumme "]
["Versicherungssumme für mobile Anlagen und Geräte"]
["Versicherungssumme zur Datenversicherung"]
["Versicherungssumme zur erweiterten Datenversicherung"]
["Aufräumungs-, Dekontaminations- und Entsorgungskosten"]
["Bewegungs- und Schutzkosten"]
["Kosten für Luftfracht"]
["Kosten für Steuerungen (z. B. CNC) von Maschinen"]
["Mitversicherung der Elektronik-Betriebsunterbrechung"]
["Selbstbeteiligung je Schadenfall"]
["Besonderheiten"]
["Aktion","Kündigen","Neu abschließen","Alternativ abschließen"]
[]
["Begründung"]

{"sheet":"RPElektronik2","index":85,"n_rows":37,"n_cols":3,"rows_kept":37,"cut":false,"hidden":true,"merged":[[12,0,12,2],[38,0,43,2]]}
[]
[]
[]
[]
[]
[]
[]
[]
[]
[]
["Elektronikversicherung"]
[]
["Die Elektronikversicherung bietet speziellen Versicherungsschutz für die in einem Betrieb vorhandenen stationären und mobilen elektronischen Anlagen und Geräte. Es handelt sich hierbei um eine All-Gefahren-Deckung, somit ist über die klassischen Gefahren wie Feuer, Einbruchdiebstahl, Leitungswasser und Sturm hinaus auch eine Absicherung für Bedienungsfehler, unsachgemäße Handhabung, Vorsatz Dritter und Überschwemmungsschäden mitversichert."]
[null,"Ist-Situation","afm Empfehlung I"]
["Versicherungsgesellschaft",{"$f":"IF(Elektronik!B18=\"\",\"\",Elektronik!B18)","v":""}]
["Tarifbezeichnung"]
["Vertragsnummer",{"$f":"IF(Elektronik!B19=\"\",\"\",Elektronik!B19)","v":""}]
["Beginn"]
["Ablauf",{"$f":"IF(Elektronik!B20=\"\",\"\",Elektronik!B20)","v":""}]
["Beitrag/Zahlweise"]
["Beitrag p. a."]
["Risikoort"]
["Versicherte Anlagen und Geräte"]
["Gesamt Versicherungssumme "]
["Versicherungssumme für mobile Anlagen und Geräte"]
["Versicherungssumme zur Datenversicherung"]
["Versicherungssumme zur erweiterten Datenversicherung"]
["Aufräumungs-, Dekontaminations- und Entsorgungskosten"]
["Bewegungs- und Schutzkosten"]
["Kosten für Luftfracht"]
["Kosten für Steuerungen (z. B. CNC) von Maschinen"]
["Mitversicherung der Elektronik-Betriebsunterbrechung"]
["Selbstbeteiligung je Schadenfall"]
["Besonderheiten"]
["Aktion","Kündigen","Neu abschließen"]
[]
["Begründung"]

{"sheet":"RPMaschinen-mobil3","index":86,"n_rows":38,"n_cols":4,"rows_kept":38,"cut":false,"hidden":true,"merged":[[12,0,12,3],[39,0,44,3]]}
[]
[]
[]
[]
[]
[]
[]
[]
[]
[]
["Maschinenversicherung - mobil"]
[]
["Die Maschinenversicherung bietet speziellen Versicherungsschutz für die in einem Betrieb vorhandenen mobilen Arbeitsmaschinen über die klassischen Gefahren wie Feuer, Einbruchdiebstahl, Leitungswasser und Sturm hinaus besteht auch eine Absicherung für unvorhergesehen eintretende Beschädigung oder Zerstörung, ohne Rücksicht darauf, ob die Schadenursache von außen oder mit dem Betrieb der Maschine zusammenhängt."]
[null,"Ist-Situation","afm Empfehlung I","afm Empfehlung II"]
["Versicherungsgesellschaft",{"$f":"IF(Maschinen!B23=\"\",\"\",Maschinen!B23)","v":""}]
["Tarifbezeichnung"]
["Vertragsnummer",{"$f":"IF(Maschinen!B24=\"\",\"\",Maschinen!B24)","v":""}]
["Beginn"]
["Ablauf",{"$f":"IF(Maschinen!B25=\"\",\"\",Maschinen!B25)","v":""}]
["Beitrag/Zahlweise"]
["Beitrag p. a."]
["Risikoort"]
["Versicherte Anlagen und Geräte"]
["Versicherungssumme aktuell"]
["Versicherungssumme Wert 3/71"]
["Schadenabhängiger Sonderrabatt "]
["Mitversicherung innere Betriebsschäden"]
["Bergungs- und Abschleppkosten"]
["Aufräumungs-, Dekontaminations- und Entsorgungskosten"]
["Kosten für Folgeschäden an Ketten, Transportbändern, Seilen u. ä."]
["Kosten für Folgeschäden an Raupen, Bereifung u. ä."]
["Mehrkosten für Luftfracht"]
["Miet- und Leihkosten für Ersatzmaschinen"]
["Selbstbeteiligung je Schadenfall"]
["Besonderheiten"]
["Aktion","Kündigen","Neu abschließen","Alternativ abschließen"]
[]
["Begründung"]

{"sheet":"RPMaschinen-mobil2","index":87,"n_rows":38,"n_cols":3,"rows_kept":38,"cut":false,"hidden":true,"merged":[[12,0,12,2],[39,0,44,2]]}
[]
[]
[]
[]
[]
[]
[]
[]
[]
[]
["Maschinenversicherung - mobil"]
[]
["Die Maschinenversicherung bietet speziellen Versicherungsschutz für die in einem Betrieb vorhandenen mobilen Arbeitsmaschinen über die klassischen Gefahren wie Feuer, Einbruchdiebstahl, Leitungswasser und Sturm hinaus besteht auch eine Absicherung für unvorhergesehen eintretende Beschädigung oder Zerstörung, ohne Rücksicht darauf, ob die Schadenursache von außen oder mit dem Betrieb der Maschine zusammenhängt."]
[null,"Ist-Situation","afm Empfehlung I"]
["Versicherungsgesellschaft",{"$f":"IF(Maschinen!B23=\"\",\"\",Maschinen!B23)","v":""}]
["Tarifbezeichnung"]
["Vertragsnummer",{"$f":"IF(Maschinen!B24=\"\",\"\",Maschinen!B24)","v":""}]
["Beginn"]
["Ablauf",{"$f":"IF(Maschinen!B25=\"\",\"\",Maschinen!B25)","v":""}]
["Beitrag / Zahlweise"]
["Beitrag p. a."]
["Risikoort"]
["Versicherte Anlagen und Geräte"]
["Versicherungssumme aktuell"]
["Versicherungssumme Wert 3/71"]
["Schadenabhängiger Sonderrabatt "]
["Mitversicherung innere Betriebsschäden"]
["Bergungs- und Abschleppkosten"]
["Aufräumungs-, Dekontaminations- und Entsorgungskosten"]
["Kosten für Folgeschäden an Ketten, Transportbändern, Seilen u. ä."]
["Kosten für Folgeschäden an Raupen, Bereifung u. ä."]
["Mehrkosten für Luftfracht"]
["Miet- und Leihkosten für Ersatzmaschinen"]
["Selbstbeteiligung je Schadenfall"]
["Besonderheiten"]
["Aktion","Kündigen","Neu abschließen"]
[]
["Begründung"]

{"sheet":"RPMaschinen-stationär3","index":88,"n_rows":39,"n_cols":4,"rows_kept":39,"cut":false,"hidden":true,"merged":[[12,0,12,3],[40,0,45,3]]}
[]
[]
[]
[]
[]
[]
[]
[]
[]
[]
["Maschinenversicherung - stationär"]
[]
["Die Maschinenversicherung bietet speziellen Versicherungsschutz für die in einem Betrieb vorhandenen stationären Arbeitsmaschinen bei unvorhergesehen eintretenden Beschädigungen oder Zerstörungen, ohne Rücksicht darauf, ob die Schadenursache von außen oder mit dem Betrieb der Maschine zusammenhängt. Die klassischen Gefahren wie Feuer und Einbruchdiebstahl sind nicht Bestandteil der Deckung und bedürfen der Absicherung über die Inhaltsversicherung."]
[null,"Ist-Situation","afm Empfehlung I","afm Empfehlung II"]
["Versicherungsgesellschaft",{"$f":"IF(Maschinen!B19=\"\",\"\",Maschinen!B19)","v":""}]
["Tarifbezeichnung"]
["Vertragsnummer",{"$f":"IF(Maschinen!B20=\"\",\"\",Maschinen!B20)","v":""}]
["Beginn"]
["Ablauf",{"$f":"IF(Maschinen!B21=\"\",\"\",Maschinen!B21)","v":""}]
["Beitrag/Zahlweise"]
["Beitrag p. a."]
["Risikoort"]
["Versicherte Anlagen und Geräte"]
["Versicherungssumme aktuell"]
["Versicherungssumme Wert 3/71"]
["Schadenabhängiger Sonderrabatt "]
["Versicherte Gefahr Feuer"]
["Versicherte Gefahr Einbruchdiebstahl"]
["De- und Remontagekosten"]
["Aufräumungs-, Dekontaminations- und Entsorgungskosten"]
["Kosten für Folgeschäden an Ketten, Transportbändern, Seilen u. ä."]
["Mehrkosten für Luftfracht"]
["Miet- und Leihkosten für Ersatzmaschinen"]
["Mitversicherung der Maschinen-Betriebsunterbrechung"]
["Selbstbeteiligung je Schadenfall"]
["Besonderheiten"]
["Aktion","Kündigen","Neu abschließen","Alternativ abschließen"]
[]
["Begründung"]

{"sheet":"RPMaschinen-stationär2","index":89,"n_rows":39,"n_cols":3,"rows_kept":39,"cut":false,"hidden":true,"merged":[[12,0,12,2],[40,0,45,2]]}
[]
[]
[]
[]
[]
[]
[]
[]
[]
[]
["Maschinenversicherung - stationär"]
[]
["Die Maschinenversicherung bietet speziellen Versicherungsschutz für die in einem Betrieb vorhandenen stationären Arbeitsmaschinen bei unvorhergesehen eintretenden Beschädigungen oder Zerstörungen, ohne Rücksicht darauf, ob die Schadenursache von außen oder mit dem Betrieb der Maschine zusammenhängt. Die klassischen Gefahren wie Feuer und Einbruchdiebstahl sind nicht Bestandteil der Deckung und bedürfen der Absicherung über die Inhaltsversicherung."]
[null,"Ist-Situation","afm Empfehlung I"]
["Versicherungsgesellschaft",{"$f":"IF(Maschinen!B19=\"\",\"\",Maschinen!B19)","v":""}]
["Tarifbezeichnung"]
["Vertragsnummer",{"$f":"IF(Maschinen!B20=\"\",\"\",Maschinen!B20)","v":""}]
["Beginn"]
["Ablauf",{"$f":"IF(Maschinen!B21=\"\",\"\",Maschinen!B21)","v":""}]
["Beitrag/Zahlweise"]
["Beitrag p. a."]
["Risikoort"]
["Versicherte Anlagen und Geräte"]
["Versicherungssumme aktuell"]
["Versicherungssumme Wert 3/71"]
["Schadenabhängiger Sonderrabatt "]
["Versicherte Gefahr Feuer"]
["Versicherte Gefahr Einbruchdiebstahl"]
["De- und Remontagekosten"]
["Aufräumungs-, Dekontaminations- und Entsorgungskosten"]
["Kosten für Folgeschäden an Ketten, Transportbändern, Seilen u. ä."]
["Mehrkosten für Luftfracht"]
["Miet- und Leihkosten für Ersatzmaschinen"]
["Mitversicherung der Maschinen-Betriebsunterbrechung"]
["Selbstbeteiligung je Schadenfall"]
["Besonderheiten"]
["Aktion","Kündigen","Neu abschließen"]
[]
["Begründung"]

{"sheet":"RPMontage3","index":90,"n_rows":35,"n_cols":4,"rows_kept":35,"cut":false,"hidden":true,"merged":[[12,0,12,3],[36,0,41,3]]}
[]
[]
[]
[]
[]
[]
[]
[]
[]
[]
["Montageversicherung"]
[]
["Sowohl Hersteller als auch Lieferanten oder Montagefirmen von technischen Anlagen und Maschinen aller Art sind dafür verantwortlich, dass Montage und Probebetrieb reibungslos verlaufen. Aufgrund von Konstruktions-, Material- oder Montagefehlern können jedoch Schäden eintreten. "]
[null,"Ist-Situation","afm Empfehlung I","afm Empfehlung II"]
["Versicherungsgesellschaft"]
["Tarifbezeichnung"]
["Vertragsnummer"]
["Beginn"]
["Ablauf"]
["Beitrag/Zahlweise"]
["Beitrag p. a."]
["Versicherungsort"]
["Versicherungssumme"]
["Versicherte Sachen "]
["Versicherte Gefahren"]
["Mitversicherung von Montageausrüstungen"]
["Mitversicherung von Autokränen und Fahrzeugen aller Art"]
["Mitversicherung fremder Sachen, die nicht Teil des Objektes bzw. der Ausrüstung sind"]
["Mitversicherung von Bändern, Raupen, Kabeln, Kübeln, Ketten, Seilen, Gurten, Riemen, Belägen"]
["Mitversicherung von Öl- und Gasfüllungen, die zu Isolationszwecken dienen"]
["Selbstbeteiligung je Schadenfall"]
["Besonderheiten"]
["Aktion","Kündigen","Neu abschließen","Alternativ abschließen"]
[]
["Begründung"]

{"sheet":"RPMontage2","index":91,"n_rows":35,"n_cols":3,"rows_kept":35,"cut":false,"hidden":true,"merged":[[12,0,12,2],[36,0,41,2]]}
[]
[]
[]
[]
[]
[]
[]
[]
[]
[]
["Montageversicherung"]
[]
["Sowohl Hersteller als auch Lieferanten oder Montagefirmen von technischen Anlagen und Maschinen aller Art sind dafür verantwortlich, dass Montage und Probebetrieb reibungslos verlaufen. Aufgrund von Konstruktions-, Material- oder Montagefehlern können jedoch Schäden eintreten. "]
[null,"Ist-Situation","afm Empfehlung I"]
["Versicherungsgesellschaft"]
["Tarifbezeichnung"]
["Vertragsnummer"]
["Beginn"]
["Ablauf"]
["Beitrag/Zahlweise"]
["Beitrag p. a."]
["Versicherungsort"]
["Versicherungssumme"]
["Versicherte Sachen "]
["Versicherte Gefahren"]
["Mitversicherung von Montageausrüstungen"]
["Mitversicherung von Autokränen und Fahrzeugen aller Art"]
["Mitversicherung fremder Sachen, die nicht Teil des Objektes bzw. der Ausrüstung sind"]
["Mitversicherung von Bändern, Raupen, Kabeln, Kübeln, Ketten, Seilen, Gurten, Riemen, Belägen"]
["Mitversicherung von Öl- und Gasfüllungen, die zu Isolationszwecken dienen"]
["Selbstbeteiligung je Schadenfall"]
["Besonderheiten"]
["Aktion","Kündigen","Neu abschließen"]
[]
["Begründung"]

{"sheet":"RPRS3","index":92,"n_rows":38,"n_cols":4,"rows_kept":38,"cut":false,"hidden":true,"merged":[[12,0,12,3],[39,0,44,3]]}
[]
[]
[]
[]
[]
[]
[]
[]
[]
[]
["Rechtsschutzversicherung"]
[]
["Besonders Gewerbebetreibende/Selbständige sind einer Flut von Gesetzen und Verordnungen ausgesetzt. Ob es sich um Klagen wegen Verdienstausfall, Probleme mit dem Finanzamt, Prozesse vor Arbeitsgerichten oder Sozialgerichten oder einen Streit mit dem Mieter/Vermieter handelt, das Bedürfnis, sich wehren zu können und die hohen Kosten eines Rechtsstreites abgesichert zu wissen, sind die häufigsten Gründe für den Abschluss einer Rechtschutzversicherung."]
[null,"Ist-Situation","afm Empfehlung I","afm Empfehlung II"]
["Versicherungsgesellschaft",{"$f":"IF(RS!B16=\"\",\"\",RS!B16)","v":""}]
["Tarifbezeichnung"]
["Vertragsnummer",{"$f":"IF(RS!B17=\"\",\"\",RS!B17)","v":""}]
["Beginn"]
["Ablauf",{"$f":"IF(RS!B18=\"\",\"\",RS!B18)","v":""}]
["Beitrag/Zahlweise"]
["Beitrag p. a."]
["Anzahl Mitarbeiter"]
["Versicherungssumme (Europa)"]
["Versicherungssumme (weltweit)"]
["Strafkaution"]
["Rechtsschutz im Firmenbereich"]
["Firmen-Vertragsrechtsschutz"]
["Rechtsschutz als Arbeitgeber"]
["Rechtsschutz im Verkehrsbereich"]
["Rechtsschutz im Immobilienbereich"]
["Spezial-Straf-Rechtsschutz"]
["Privat-Rechtsschutz für den Inhaber/ Geschäftsführer"]
["Forderungsmanagement"]
["Selbstbeteiligung je Schadenfall"]
["Besonderheiten"]
["Aktion","Kündigen","Neu abschließen","Alternativ abschließen"]
[]
["Begründung"]

{"sheet":"RPRS2","index":93,"n_rows":38,"n_cols":3,"rows_kept":38,"cut":false,"hidden":true,"merged":[[12,0,12,2],[39,0,44,2]]}
[]
[]
[]
[]
[]
[]
[]
[]
[]
[]
["Rechtsschutzversicherung"]
[]
["Besonders Gewerbebetreibende/Selbständige sind einer Flut von Gesetzen und Verordnungen ausgesetzt. Ob es sich um Klagen wegen Verdienstausfall, Probleme mit dem Finanzamt, Prozesse vor Arbeitsgerichten oder Sozialgerichten oder einen Streit mit dem Mieter/Vermieter handelt, das Bedürfnis, sich wehren zu können und die hohen Kosten eines Rechtsstreites abgesichert zu wissen, sind die häufigsten Gründe für den Abschluss einer Rechtschutzversicherung."]
[null,"Ist-Situation","afm Empfehlung I"]
["Versicherungsgesellschaft",{"$f":"IF(RS!B16=\"\",\"\",RS!B16)","v":""}]
["Tarifbezeichnung"]
["Vertragsnummer",{"$f":"IF(RS!B17=\"\",\"\",RS!B17)","v":""}]
["Beginn"]
["Ablauf",{"$f":"IF(RS!B18=\"\",\"\",RS!B18)","v":""}]
["Beitrag/Zahlweise"]
["Beitrag p. a."]
["Anzahl Mitarbeiter"]
["Versicherungssumme (Europa)"]
["Versicherungssumme (weltweit)"]
["Strafkaution"]
["Rechtsschutz im Firmenbereich"]
["Firmen-Vertragsrechtsschutz"]
["Rechtsschutz als Arbeitgeber"]
["Rechtsschutz im Verkehrsbereich"]
["Rechtsschutz im Immobilienbereich"]
["Spezial-Straf-Rechtsschutz"]
["Privat-Rechtsschutz für den Inhaber/ Geschäftsführer"]
["Forderungsmanagement"]
["Selbstbeteiligung je Schadenfall"]
["Besonderheiten"]
["Aktion","Kündigen","Neu abschließen"]
[]
["Begründung"]

{"sheet":"RPAutoinhalt3","index":94,"n_rows":34,"n_cols":4,"rows_kept":34,"cut":false,"hidden":true,"merged":[[12,0,12,3],[35,0,40,3]]}
[]
[]
[]
[]
[]
[]
[]
[]
[]
[]
["Autoinhaltsversicherung"]
[]
["Im Rahmen einer Allgefahrendeckung bietet die Werkverkehr-/Autoinhaltsversicherung Versicherungsschutz für Waren und Güter während der Beförderung in eigenen (ggf. auch in gemieteten oder geleasten) Fahrzeugen. Die Versicherung gilt auf dem Weg zu Kunden, Betriebsstellen, Werkstätten, Baustellen oder zu sonstigen Abhol- und Auslieferungsorten."]
[null,"Ist-Situation","afm Empfehlung I","afm Empfehlung II"]
["Versicherungsgesellschaft",{"$f":"IF(Autoinhalt!B17=\"\",\"\",Autoinhalt!B17)","v":""}]
["Tarifbezeichnung"]
["Vertragsnummer",{"$f":"IF(Autoinhalt!B18=\"\",\"\",Autoinhalt!B18)","v":""}]
["Beginn"]
["Ablauf",{"$f":"IF(Autoinhalt!B19=\"\",\"\",Autoinhalt!B19)","v":""}]
["Beitrag/Zahlweise"]
["Beitrag p. a."]
["Gesamt Versicherungssumme"]
["Anzahl der Fahrzeuge"]
["Versicherungssumme je Fahrzeug"]
["Höchstentschädigung je Fahrzeug"]
["Güterfolgeschäden bis (€)"]
["Ausschluss Nachtzeitklausel"]
["Ausschluss Domizilklausel"]
["Geltungsbereich"]
["Selbstbeteiligung je Schadenfall"]
["Besonderheiten"]
["Aktion","Kündigen","Neu abschließen","Alternativ abschließen"]
[]
["Begründung"]

{"sheet":"RPAutoinhalt2","index":95,"n_rows":34,"n_cols":3,"rows_kept":34,"cut":false,"hidden":true,"merged":[[12,0,12,2],[35,0,40,2]]}
[]
[]
[]
[]
[]
[]
[]
[]
[]
[]
["Autoinhaltsversicherung"]
[]
["Im Rahmen einer Allgefahrendeckung bietet die Werkverkehr-/Autoinhaltsversicherung Versicherungsschutz für Waren und Güter während der Beförderung in eigenen (ggf. auch in gemieteten oder geleasten) Fahrzeugen. Die Versicherung gilt auf dem Weg zu Kunden, Betriebsstellen, Werkstätten, Baustellen oder zu sonstigen Abhol- und Auslieferungsorten."]
[null,"Ist-Situation","afm Empfehlung I"]
["Versicherungsgesellschaft",{"$f":"IF(Autoinhalt!B17=\"\",\"\",Autoinhalt!B17)","v":""}]
["Tarifbezeichnung"]
["Vertragsnummer",{"$f":"IF(Autoinhalt!B18=\"\",\"\",Autoinhalt!B18)","v":""}]
["Beginn"]
["Ablauf",{"$f":"IF(Autoinhalt!B19=\"\",\"\",Autoinhalt!B19)","v":""}]
["Beitrag/Zahlweise"]
["Beitrag p. a."]
["Gesamt Versicherungssumme"]
["Anzahl der Fahrzeuge"]
["Versicherungssumme je Fahrzeug"]
["Höchstentschädigung je Fahrzeug"]
["Güterfolgeschäden bis (€)"]
["Ausschluss Nachtzeitklausel"]
["Ausschluss Domizilklausel"]
["Geltungsbereich"]
["Selbstbeteiligung je Schadenfall"]
["Besonderheiten"]
["Aktion","Kündigen","Neu abschließen"]
[]
["Begründung"]

{"sheet":"RPKFZ-Einzel3","index":96,"n_rows":38,"n_cols":4,"rows_kept":38,"cut":false,"hidden":true,"merged":[[12,0,12,3],[39,0,44,3]]}
[]
[]
[]
[]
[]
[]
[]
[]
[]
[]
["Kfz-Versicherung"]
[]
["Die Kraftfahrtversicherung bietet speziellen Versicherungsschutz für die in einer Firma oder Unternehmen vorhandenen Kraftfahrzeuge. Sie besteht aus der Haftpflicht- und der Kaskoversicherung. Die Kfz-Haftpflichtversicherung reguliert aufgrund gesetzlicher Bestimmungen berechtigte Ansprüche Dritter und wehrt unberechtigte Ansprüche ab. Die Kaskoversicherung kommt für Schäden am eigenen Kraftfahrzeug auf. Hier wird zwischen der Teilkasko, sie deckt Schäden durch Brand, Sturm, Hagel, Marderbisse, Glasbruch und Diebstahl ab, und der Vollkasko die Schäden durch selbstverschuldete Unfälle oder mutwillige Beschädigungen durch Fremde entschädigt. Zusätzlich vereinbar sind auch die Deckungsbausteine Neuwertentschädigung, GAP-Deckung, die Schutzbriefleistung und Brems-, Betriebs- und Bruchschäden."]
[null,"Ist-Situation","afm Empfehlung I","afm Empfehlung II"]
["Versicherungsgesellschaft"]
["Tarifbezeichnung"]
["Vertragsnummer"]
["Beginn"]
["Ablauf"]
["Beitrag/Zahlweise"]
["Beitrag p. a."]
["Fahrzeugart"]
["Kennzeichen"]
["Kraftfahrthaftpflicht"]
["Schadenfreiheitsrabatt"]
["Teilkasko (Selbstbeteiligung)"]
["Vollkasko (Selbstbeteiligung)"]
["Schadenfreiheitsrabatt"]
["Art der Nutzung"]
["Nutzerkreis"]
["Jährliche Fahrleistung"]
["Nächtlicher Abstellplatz"]
["GAP-Deckung"]
["Fahrerschutzbrief/Schutzbrief"]
["Besonderheiten"]
["Aktion","Kündigen","Neu abschließen","Alternativ abschließen"]
[]
["Begründung"]

{"sheet":"RPKFZ-Einzel2","index":97,"n_rows":38,"n_cols":3,"rows_kept":38,"cut":false,"hidden":true,"merged":[[12,0,12,2],[39,0,44,2]]}
[]
[]
[]
[]
[]
[]
[]
[]
[]
[]
["Kfz-Versicherung"]
[]
["Die Kraftfahrtversicherung bietet speziellen Versicherungsschutz für die in einer Firma oder Unternehmen vorhandenen Kraftfahrzeuge. Sie besteht aus der Haftpflicht- und der Kaskoversicherung. Die Kfz-Haftpflichtversicherung reguliert aufgrund gesetzlicher Bestimmungen berechtigte Ansprüche Dritter und wehrt unberechtigte Ansprüche ab. Die Kaskoversicherung kommt für Schäden am eigenen Kraftfahrzeug auf. Hier wird zwischen der Teilkasko, sie deckt Schäden durch Brand, Sturm, Hagel, Marderbisse, Glasbruch und Diebstahl ab, und der Vollkasko die Schäden durch selbstverschuldete Unfälle oder mutwillige Beschädigungen durch Fremde entschädigt. Zusätzlich vereinbar sind auch die Deckungsbausteine Neuwertentschädigung, GAP-Deckung, die Schutzbriefleistung und Brems-, Betriebs- und Bruchschäden."]
[null,"Ist-Situation","afm Empfehlung I"]
["Versicherungsgesellschaft"]
["Tarifbezeichnung"]
["Vertragsnummer"]
["Beginn"]
["Ablauf"]
["Beitrag/Zahlweise"]
["Beitrag p. a."]
["Fahrzeugart"]
["Kennzeichen"]
["Kraftfahrthaftpflicht"]
["Schadenfreiheitsrabatt"]
["Teilkasko (Selbstbeteiligung)"]
["Vollkasko (Selbstbeteiligung)"]
["Schadenfreiheitsrabatt"]
["Art der Nutzung"]
["Nutzerkreis"]
["Jährliche Fahrleistung"]
["Nächtlicher Abstellplatz"]
["GAP-Deckung"]
["Fahrerschutzbrief/Schutzbrief"]
["Besonderheiten"]
["Aktion","Kündigen","Neu abschließen"]
[]
["Begründung"]

{"sheet":"RPKFZ-Flotte3","index":98,"n_rows":39,"n_cols":4,"rows_kept":39,"cut":false,"hidden":true,"merged":[[12,0,12,3],[40,0,45,3]]}
[]
[]
[]
[]
[]
[]
[]
[]
[]
[]
["Kfz-Flotte"]
[]
["Die Kfz-Flottenversicherung bietet einer Firma oder einem Unternehmen den gleichen Versicherungsschutz wie eine Kfz-Einzelversicherung (Haftpflicht- sowie Teil-/Vollkaskoversicherung). Besonders zu empfehlen ist eine Flottenversicherung für Firmen mit mehr als 10 Fahrzeugen. Der Unterschied hierbei ist, dass sich die Prämie anhand einer Stück- bzw. Festprämie errechnet. Zusätzlich vereinbar sind auch hier die Deckungsbausteine Neuwertentschädigung, GAP-Deckung, Brems-, Betriebs- und Bruchschäden."]
[null,"Ist-Situation","afm Empfehlung I","afm Empfehlung II"]
["Versicherungsgesellschaft"]
["Tarifbezeichnung"]
["Vertragsnummer"]
["Beginn"]
["Ablauf"]
["Beitrag/Zahlweise"]
["Beitrag p. a."]
["Anzahl PKW"]
["Anzahl LKW"]
["Anzahl Sattelzugmaschinen"]
["Anzahl Anhänger / Auflieger"]
["Anzahl Motorräder"]
["Kraftfahrthaftpflicht"]
["Teilkasko (Selbstbeteiligung)"]
["Vollkasko (Selbstbeteiligung)"]
["Art der Nutzung"]
["GAP-Deckung"]
["Brems-, Betriebs- und Bruchschäden"]
["Fahrerschutzbrief/Schutzbrief"]
["Gewinnbeteiligung"]
["Gefahrguttransport"]
["Besonderheiten"]
["Aktion","Kündigen","Neu abschließen","Alternativ abschließen"]
[]
["Begründung"]

{"sheet":"RPKFZ-Flotte2","index":99,"n_rows":39,"n_cols":3,"rows_kept":39,"cut":false,"hidden":true,"merged":[[12,0,12,2],[40,0,45,2]]}
[]
[]
[]
[]
[]
[]
[]
[]
[]
[]
["Kfz-Flotte"]
[]
["Die Kfz-Flottenversicherung bietet einer Firma oder einem Unternehmen den gleichen Versicherungsschutz wie eine Kfz-Einzelversicherung (Haftpflicht- sowie Teil-/Vollkaskoversicherung). Besonders zu empfehlen ist eine Flottenversicherung für Firmen mit mehr als 10 Fahrzeugen. Der Unterschied hierbei ist, dass sich die Prämie anhand einer Stück- bzw. Festprämie errechnet. Zusätzlich vereinbar sind auch hier die Deckungsbausteine Neuwertentschädigung, GAP-Deckung, Brems-, Betriebs- und Bruchschäden."]
[null,"Ist-Situation","afm Empfehlung I"]
["Versicherungsgesellschaft"]
["Tarifbezeichnung"]
["Vertragsnummer"]
["Beginn"]
["Ablauf"]
["Beitrag/Zahlweise"]
["Beitrag p. a."]
["Anzahl PKW"]
["Anzahl LKW"]
["Anzahl Sattelzugmaschinen"]
["Anzahl Anhänger / Auflieger"]
["Anzahl Motorräder"]
["Kraftfahrthaftpflicht"]
["Teilkasko (Selbstbeteiligung)"]
["Vollkasko (Selbstbeteiligung)"]
["Art der Nutzung"]
["GAP-Deckung"]
["Brems-, Betriebs- und Bruchschäden"]
["Fahrerschutzbrief/Schutzbrief"]
["Gewinnbeteiligung"]
["Gefahrguttransport"]
["Besonderheiten"]
["Aktion","Kündigen","Neu abschließen"]
[]
["Begründung"]

{"sheet":"RPGUV3","index":100,"n_rows":66,"n_cols":4,"rows_kept":66,"cut":false,"hidden":true,"merged":[[80,0,80,3],[58,0,58,3],[59,0,59,3],[61,0,61,3],[62,0,62,3],[64,0,64,3],[65,0,65,3],[55,0,55,3],[56,0,56,3],[40,0,40,3],[12,0,12,3],[50,0,50,3],[51,0,51,3],[52,0,52,3],[53,0,53,3],[54,0,54,3],[43,0,48,3]]}
[]
[]
[]
[]
[]
[]
[]
[]
[]
[]
["Gruppenunfallversicherung"]
[]
["Die betriebliche Gruppen-Unfallversicherung bietet speziellen Versicherungsschutz für Firmeninhaber und Mitarbeiter vor Auswirkungen eines Unfalls in Form von finanziellen Leistungen. Leistungsbestandteile der Unfallversicherung sind Tod, Invalidität, Unfallrente, Krankenhaustagegeld, Tagegeld sowie diverse Kostenpositionen."]
[null,"Ist-Situation","afm Empfehlung I","afm Empfehlung II"]
["Versicherungsgesellschaft",{"$f":"IF(GUV!B23=\"\",\"\",GUV!B23)","v":""}]
["Tarifbezeichnung"]
["Vertragsnummer",{"$f":"IF(GUV!B24=\"\",\"\",GUV!B24)","v":""}]
["Beginn"]
["Ablauf",{"$f":"IF(GUV!B25=\"\",\"\",GUV!B25)","v":""}]
["Beitrag/Zahlweise"]
["Beitrag p. a."]
["Versicherte Personen"]
["Versicherungssumme Unfalltod"]
["Versicherungssumme Invalidität (Grundsumme)"]
["Progression in %"]
["Leistung bei Vollinvalidität"]
["monatliche Unfallrente"]
["Krankenhaustagegeld"]
["Besonderheiten"]
["Aktion","Kündigen","Neu abschließen","Alternativ abschließen"]
[]
["Unsere Angebotsbeispiele"]
["Leistungen","Modell 1","Modell 2","Modell 3 "]
["Unfalltod",10000,50000]
["Grundsumme Invaliditätsleistung",100000,200000,400000]
["Höchstleistung durch progressive Invaliditätsstaffel 350 %",350000,700000,1400000]
["Monatliche Unfallrente ",500,0,1000]
["Krankenhaustagegeld ",50,0,100]
["Gefahrengruppe A\n(kaufmännisch, planend tätig)",86.63,88.06,271.32]
["Gefahrengruppe B\n(körperlich oder handwerklich tätig)",103.89,105.32,324.87]
["Bei den Beiträgen handelt es sich um Jahresprämien je versicherte Person inkl. 19 % Versicherungssteuer vorbehaltlich Gesundheitsprüfung."]
[]
["Begründung"]
[]
[]
[]
[]
[]
[]
[]
["Besonderheiten"]
["·         weltweiter Versicherungsschutz (24 Stunden)"]
["·         Erweiterter Unfallbegriff (Mitversichert sind zum Beispiel auch Infektionen, Ersticken, Ertrinken, Nahrungsmittelvergiftungen, Unfälle aufgrund von Eigenbewegungen, usw.)"]
["·         Verbesserte Gliedertaxe (Berücksichtigung bei der Berechnung der Leistung und Erhöhung der Entschädigung)"]
["·         Umfangreiche Zusatzleistungen (Zum Beispiel kosmetische Operationen, Bergungskosten, Gäste- und Besucherschutz, Sofortleistungen bei Gesundheitsschädigungen) "]
["·         Unfall-Service (Kosten für Such-, Rettungs- oder Bergungseinsätze bis 25.000Euro je versicherte Person)"]
["·         Herzinfarkt und Schlaganfall (Es sind auch Unfälle infolge eines Herzinfarktes und/oder Schlaganfalles mitversichert)"]
[]
["Steuerliche Behandlung der Beiträge und Leistungen beim Arbeitgeber"]
["Die vom Arbeitgeber gezahlten Beiträge zur Unfallversicherung stellen Betriebsausgaben dar. Da der Arbeitgeber grundsätzlich verpflichtet ist Versicherungsleistungen an den Arbeitnehmer weiterzuleiten, sind diese nur ein „durchlaufender“ Posten und berühren den Unternehmensgewinn nicht."]
[]
["Steuerliche Behandlung der Beiträge beim Arbeitnehmer (Kein Direktanspruch vereinbart)"]
["Die Ausübung der Rechte steht dem Arbeitgeber zu. Die vom Arbeitgeber laufend gezahlten Beiträge sind kein Arbeitslohn und unterliegen zum Zeitpunkt der Beitragszahlung nicht dem Lohnsteuerabzug. Im Leistungsfall kommt es dafür zu einer nachgelagerten Besteuerung der Beiträge."]
[]
["Steuerliche Behandlung der Leistungen beim Arbeitnehmer"]
["Versicherungsleistungen sind kein steuerpflichtiger Arbeitslohn und unterliegen nicht dem Lohnsteuerabzug. Leibrenten (z. B. Unfall-Renten) sind als sonstige Einkünfte mit dem Ertragsanteil zu versteuern. Eine Todesfallleistung unterliegt der Erbschaftsteuerpflicht."]

{"sheet":"RPGUV2","index":101,"n_rows":66,"n_cols":4,"rows_kept":66,"cut":false,"hidden":true,"merged":[[65,0,65,3],[28,3,28,4],[29,3,29,4],[28,1,28,2],[29,1,29,2],[53,0,53,3],[54,0,54,3],[61,0,61,3],[62,0,62,3],[64,0,64,3],[40,0,40,4],[50,0,50,4],[51,0,51,3],[52,0,52,3],[43,0,48,4],[26,1,26,2],[22,3,22,4],[23,3,23,4],[24,3,24,4],[25,3,25,4],[26,3,26,4],[23,1,23,2],[22,1,22,2],[20,3,20,4],[21,3,21,4],[12,0,12,4],[20,1,20,2],[21,1,21,2],[18,3,18,4],[19,3,19,4],[13,3,13,4],[14,3,14,4],[15,3,15,4],[16,3,16,4],[17,3,17,4],[80,0,80,4],[13,1,13,2],[14,1,14,2],[15,1,15,2],[16,1,16,2],[17,1,17,2],[18,1,18,2],[19,1,19,2],[55,0,55,3],[56,0,56,3],[58,0,58,3],[59,0,59,3],[27,3,27,4],[27,1,27,2],[24,1,24,2],[25,1,25,2]]}
[]
[]
[]
[]
[]
[]
[]
[]
[]
[]
["Gruppenunfallversicherung"]
[]
["Die betriebliche Gruppen-Unfallversicherung bietet speziellen Versicherungsschutz für Firmeninhaber und Mitarbeiter vor Auswirkungen eines Unfalls in Form von finanziellen Leistungen. Leistungsbestandteile der Unfallversicherung sind Tod, Invalidität, Unfallrente, Krankenhaustagegeld, Tagegeld sowie diverse Kostenpositionen."]
[null,"Ist-Situation",null,"afm Empfehlung I"]
["Versicherungsgesellschaft",{"$f":"IF(GUV!B23=\"\",\"\",GUV!B23)","v":""}]
["Tarifbezeichnung"]
["Vertragsnummer",{"$f":"IF(GUV!B24=\"\",\"\",GUV!B24)","v":""}]
["Beginn"]
["Ablauf",{"$f":"IF(GUV!B25=\"\",\"\",GUV!B25)","v":""}]
["Beitrag/Zahlweise"]
["Beitrag p. a."]
["Versicherte Personen"]
["Versicherungssumme Unfalltod"]
["Versicherungssumme Invalidität (Grundsumme)"]
["Progression in %"]
["Leistung bei Vollinvalidität"]
["monatliche Unfallrente"]
["Krankenhaustagegeld"]
["Besonderheiten"]
["Aktion","Kündigen",null,"Neu abschließen"]
[]
["Unsere Angebotsbeispiele"]
["Leistungen","Modell 1","Modell 2","Modell 3 "]
["Unfalltod",10000,50000]
["Grundsumme Invaliditätsleistung",100000,200000,400000]
["Höchstleistung durch progressive Invaliditätsstaffel 350 %",350000,700000,1400000]
["Monatliche Unfallrente ",500,0,1000]
["Krankenhaustagegeld ",50,0,100]
["Gefahrengruppe A\n(kaufmännisch, planend tätig)",86.63,88.06,271.32]
["Gefahrengruppe B\n(körperlich oder handwerklich tätig)",103.89,105.32,324.87]
["Bei den Beiträgen handelt es sich um Jahresprämien je versicherte Person inkl. 19 % Versicherungssteuer vorbehaltlich Gesundheitsprüfung."]
[]
["Begründung"]
[]
[]
[]
[]
[]
[]
[]
["Besonderheiten"]
["·         weltweiter Versicherungsschutz (24 Stunden)"]
["·         Erweiterter Unfallbegriff (Mitversichert sind zum Beispiel auch Infektionen, Ersticken, Ertrinken, Nahrungsmittelvergiftungen,\n        Unfälle aufgrund von Eigenbewegungen, usw.)"]
["·         Verbesserte Gliedertaxe (Berücksichtigung bei der Berechnung der Leistung und Erhöhung der Entschädigung)"]
["·         Umfangreiche Zusatzleistungen (Zum Beispiel kosmetische Operationen, Bergungskosten, Gäste- und Besucherschutz, \n        Sofortleistungen bei Gesundheitsschädigungen) "]
["·         Unfall-Service (Kosten für Such-, Rettungs- oder Bergungseinsätze bis 25.000Euro je versicherte Person)"]
["·         Herzinfarkt und Schlaganfall (Es sind auch Unfälle infolge eines Herzinfarktes und/oder Schlaganfalles mitversichert)"]
[]
["Steuerliche Behandlung der Beiträge und Leistungen beim Arbeitgeber"]
["Die vom Arbeitgeber gezahlten Beiträge zur Unfallversicherung stellen Betriebsausgaben dar. Da der Arbeitgeber grundsätzlich verpflichtet ist Versicherungsleistungen an den Arbeitnehmer weiterzuleiten, sind diese nur ein „durchlaufender“ Posten und berühren den Unternehmensgewinn nicht."]
[]
["Steuerliche Behandlung der Beiträge beim Arbeitnehmer (Kein Direktanspruch vereinbart)"]
["Die Ausübung der Rechte steht dem Arbeitgeber zu. Die vom Arbeitgeber laufend gezahlten Beiträge sind kein Arbeitslohn und unterliegen zum Zeitpunkt der Beitragszahlung nicht dem Lohnsteuerabzug. Im Leistungsfall kommt es dafür zu einer nachgelagerten Besteuerung der Beiträge."]
[]
["Steuerliche Behandlung der Leistungen beim Arbeitnehmer"]
["Versicherungsleistungen sind kein steuerpflichtiger Arbeitslohn und unterliegen nicht dem Lohnsteuerabzug. Leibrenten (z. B. Unfall-Renten) sind als sonstige Einkünfte mit dem Ertragsanteil zu versteuern. Eine Todesfallleistung unterliegt der Erbschaftsteuerpflicht."]

{"sheet":"RPTransport3","index":102,"n_rows":30,"n_cols":4,"rows_kept":30,"cut":false,"hidden":true,"merged":[[12,0,12,3],[31,0,36,3],[9,1,9,4]]}
[]
[]
[]
[]
[]
[]
[]
[]
[]
[]
["Transportversicherung"]
[]
["Im Rahmen einer Allgefahrendeckung bietet die Warentransportversicherung Versicherungsschutz für Transporte von Gütern aller Art während der Dauer von See-, Land- oder Luftbeförderungen sowie bei transportbedingten Lagerungen. Dabei kann der Versicherungsschutz auf disponierte Vor-, Zwischen- und Nachlagerungen ausgedehnt werden. Die Transportversicherung tritt unabhängig von der Haftung eines Verkehrsträgers oder eines sonstigen Dritten ein und ersetzt den vollen Sachschaden am versicherten Gut."]
[null,"Ist-Situation","afm Empfehlung I","afm Empfehlung II"]
["Versicherungsgesellschaft"]
["Tarifbezeichnung"]
["Vertragsnummer"]
["Beginn"]
["Ablauf"]
["Beitrag/Zahlweise"]
["Beitrag p. a."]
["Versicherungsumfang"]
["Versicherte Sachen"]
["Versicherungssumme"]
["Geltungsbereich"]
["Selbstbeteiligung je Schadenfall"]
["Besonderheiten"]
["Aktion","Kündigen","Neu abschließen","Alternativ abschließen"]
[]
["Begründung"]

{"sheet":"RPTransport2","index":103,"n_rows":30,"n_cols":3,"rows_kept":30,"cut":false,"hidden":true,"merged":[[12,0,12,2],[31,0,36,2]]}
[]
[]
[]
[]
[]
[]
[]
[]
[]
[]
["Transportversicherung"]
[]
["Im Rahmen einer Allgefahrendeckung bietet die Warentransportversicherung Versicherungsschutz für Transporte von Gütern aller Art während der Dauer von See-, Land- oder Luftbeförderungen sowie bei transportbedingten Lagerungen. Dabei kann der Versicherungsschutz auf disponierte Vor-, Zwischen- und Nachlagerungen ausgedehnt werden. Die Transportversicherung tritt unabhängig von der Haftung eines Verkehrsträgers oder eines sonstigen Dritten ein und ersetzt den vollen Sachschaden am versicherten Gut."]
[null,"Ist-Situation","afm Empfehlung I"]
["Versicherungsgesellschaft"]
["Tarifbezeichnung"]
["Vertragsnummer"]
["Beginn"]
["Ablauf"]
["Beitrag/Zahlweise"]
["Beitrag p .a."]
["Versicherungsumfang"]
["Versicherte Sachen"]
["Versicherungssumme"]
["Geltungsbereich"]
["Selbstbeteiligung je Schadenfall"]
["Besonderheiten"]
["Aktion","Kündigen","Neu abschließen"]
[]
["Begründung"]

{"sheet":"RPVerkehrsHV3","index":104,"n_rows":36,"n_cols":4,"rows_kept":36,"cut":false,"hidden":true,"merged":[[12,0,12,3],[37,0,42,3]]}
[]
[]
[]
[]
[]
[]
[]
[]
[]
[]
["Frachtführer- und Speditionshaftpflichtversicherung"]
[]
["Die Verkehrshaftungsversicherung bietet Spediteuren und Logistikdienstleistern speziellen Versicherungsschutz für Haftungsrisiken für die sie aufgrund der gesetzlichen und/oder vertraglichen Haftung aus dem Verkehrsvertrag haften. Frachtführer, die Güter mit einem LKW mit einem zulässigen Gesamtgewicht (inkl. Anhänger) von mehr als 3,5 Tonnen innerdeutsch und grenzüberschreitend transportieren, sind verpflichtet eine Verkehrshaftungsversicherung abzuschließen und aufrecht zu erhalten (§ 7a GüKG)."]
[null,"Ist-Situation","afm Empfehlung I","afm Empfehlung II"]
["Versicherungsgesellschaft"]
["Tarifbezeichnung"]
["Vertragsnummer"]
["Beginn"]
["Ablauf"]
["Beitrag/Zahlweise"]
["Beitrag p. a."]
["Bruttoumsatz"]
["Anzahl der Fahrzeuge"]
["Nutzlast"]
["Art der Fahrzeuge (z. B. Silo-, Kühl- oder sonstige Fahrzeuge)"]
["Güterfolgeschäden bis (€)"]
["Geltungsbereich"]
["Großraum- und Schwergutbeförderung nach § 29 Absatz 3 StVO"]
["Beförderung von Umzugsgut"]
["Beförderung von lebenden Tieren und Pflanzen"]
["Beförderung von temperaturgeführten Gütern"]
["Selbstbeteiligung je Schadenfall"]
["Besonderheiten"]
["Aktion","Kündigen","Neu abschließen","Alternativ abschließen"]
[]
["Begründung"]

{"sheet":"RPVerkehrsHV2","index":105,"n_rows":36,"n_cols":3,"rows_kept":36,"cut":false,"hidden":true,"merged":[[12,0,12,2],[37,0,42,2]]}
[]
[]
[]
[]
[]
[]
[]
[]
[]
[]
["Frachtführer- und Speditionshaftpflichtversicherung"]
[]
["Die Verkehrshaftungsversicherung bietet Spediteuren und Logistikdienstleistern speziellen Versicherungsschutz für Haftungsrisiken für die sie aufgrund der gesetzlichen und/oder vertraglichen Haftung aus dem Verkehrsvertrag haften. Frachtführer, die Güter mit einem LKW mit einem zulässigen Gesamtgewicht (inkl. Anhänger) von mehr als 3,5 Tonnen innerdeutsch und grenzüberschreitend transportieren, sind verpflichtet eine Verkehrshaftungsversicherung abzuschließen und aufrecht zu erhalten (§ 7a GüKG)."]
[null,"Ist-Situation","afm Empfehlung I"]
["Versicherungsgesellschaft"]
["Tarifbezeichnung"]
["Vertragsnummer"]
["Beginn"]
["Ablauf"]
["Beitrag/Zahlweise"]
["Beitrag p. a."]
["Bruttoumsatz"]
["Anzahl der Fahrzeuge"]
["Nutzlast"]
["Art der Fahrzeuge (z. B. Silo-, Kühl- oder sonstige Fahrzeuge)"]
["Güterfolgeschäden bis (€)"]
["Geltungsbereich"]
["Großraum- und Schwergut-beförderung nach § 29 Absatz 3 StVO"]
["Beförderung von Umzugsgut"]
["Beförderung von lebenden Tieren und Pflanzen"]
["Beförderung von temperaturgeführten Gütern"]
["Selbstbeteiligung je Schadenfall"]
["Besonderheiten"]
["Aktion","Kündigen","Neu abschließen"]
[]
["Begründung"]

{"sheet":"RPKredit3","index":106,"n_rows":28,"n_cols":4,"rows_kept":28,"cut":false,"hidden":true,"merged":[[12,0,12,3],[29,0,34,3]]}
[]
[]
[]
[]
[]
[]
[]
[]
[]
[]
["Kreditversicherung"]
[]
["Pleiten und Insolvenzen selbst von bekannten und renommierten Firmen haben Hochkonjunktur. Die Folgen sind verheerend: Intakte Unternehmen können durch unverschuldete Forderungsausfälle selber schnell in Zahlungsschwierigkeiten gelangen und damit in eine Folgeinsolvenz. "]
[null,"Ist-Situation","afm Empfehlung I","afm Empfehlung II"]
["Versicherungsgesellschaft",{"$f":"IF(Kredit!B12=\"\",\"\",Kredit!B12)","v":""}]
["Tarifbezeichnung"]
["Vertragsnummer",{"$f":"IF(Kredit!B13=\"\",\"\",Kredit!B13)","v":""}]
["Beginn"]
["Ablauf",{"$f":"IF(Kredit!B14=\"\",\"\",Kredit!B14)","v":""}]
["Beitrag/Zahlweise"]
["Beitrag p. a."]
["Umsatz"]
["Versicherungssumme"]
["Selbstbeteiligung je Schadenfall"]
["Besonderheiten"]
["Aktion","Kündigen","Neu abschließen","Alternativ abschließen"]
[]
["Begründung"]

{"sheet":"RPKredit2","index":107,"n_rows":28,"n_cols":3,"rows_kept":28,"cut":false,"hidden":true,"merged":[[12,0,12,2],[29,0,34,2]]}
[]
[]
[]
[]
[]
[]
[]
[]
[]
[]
["Kreditversicherung"]
[]
["Pleiten und Insolvenzen selbst von bekannten und renommierten Firmen haben Hochkonjunktur. Die Folgen sind verheerend: Intakte Unternehmen können durch unverschuldete Forderungsausfälle selber schnell in Zahlungsschwierigkeiten gelangen und damit in eine Folgeinsolvenz. "]
[null,"Ist-Situation","afm Empfehlung I"]
["Versicherungsgesellschaft",{"$f":"IF(Kredit!B12=\"\",\"\",Kredit!B12)","v":""}]
["Tarifbezeichnung"]
["Vertragsnummer",{"$f":"IF(Kredit!B13=\"\",\"\",Kredit!B13)","v":""}]
["Beginn"]
["Ablauf",{"$f":"IF(Kredit!B14=\"\",\"\",Kredit!B14)","v":""}]
["Beitrag/Zahlweise"]
["Beitrag p. a."]
["Umsatz"]
["Versicherungssumme"]
["Selbstbeteiligung je Schadenfall"]
["Besonderheiten"]
["Aktion","Kündigen","Neu abschließen"]
[]
["Begründung"]

{"sheet":"RPBAV3","index":108,"n_rows":31,"n_cols":4,"rows_kept":31,"cut":false,"hidden":true,"merged":[[12,0,12,3],[32,0,37,3]]}
[]
[]
[]
[]
[]
[]
[]
[]
[]
[]
["Betriebliche Altersvorsorge"]
[]
["Das Betriebsrentengesetz sichert Arbeitnehmern einen Rechtsanspruch auf Einführung einer betrieblichen Altersversorgung. Sofern der Arbeitgeber nicht bereits eine Pensionskasse oder einen Pensionsfonds anbietet, kann der Mitarbeiter die Durchführung über eine Direktversicherung verlangen. \n\nHierbei profitiert der Arbeitnehmer von der in einem bestimmten Umfang möglichen Beitrags und Steuerfreiheit der umgewandelten Entgeltbestandteile und erhält einen unmittelbaren, unverfallbaren Rechtsanspruch auf die erreichten Leistungsanwartschaften.\n\nDer Arbeitgeber profitiert ebenfalls von Sozialabgabenersparnissen von innerhalb der jeweiligen Beitragsbemessungsgrenzen umgewandelten Entgeltbestandteilen und erhält somit die Möglichkeit, sich an der Altersversorgung des Mitarbeiters möglichst liquiditätsschonend zu beteiligen.\n"]
[null,"Ist-Situation","afm Empfehlung I","afm Empfehlung II"]
["Versicherungsgesellschaft"]
["Tarifbezeichnung"]
["Vertragsnummer"]
["Beginn"]
["Ablauf"]
["Beitrag/Zahlweise"]
["Beitrag p. a."]
["Versicherte Person"]
["Ablaufleistung garantiert"]
["Ablaufleistung gesamt"]
["Altersrente garantiert"]
["Altersrente gesamt"]
["Aktueller Rückkaufswert"]
["Besonderheiten"]
["Aktion","Kündigen","Neu abschließen","Alternativ abschließen"]
[]
["Begründung"]

{"sheet":"RPBAV2","index":109,"n_rows":31,"n_cols":3,"rows_kept":31,"cut":false,"hidden":true,"merged":[[12,0,12,2],[32,0,37,2]]}
[]
[]
[]
[]
[]
[]
[]
[]
[]
[]
["Betriebliche Altersvorsorge"]
[]
["Das Betriebsrentengesetz sichert Arbeitnehmern einen Rechtsanspruch auf Einführung einer betrieblichen Altersversorgung. Sofern der Arbeitgeber nicht bereits eine Pensionskasse oder einen Pensionsfonds anbietet, kann der Mitarbeiter die Durchführung über eine Direktversicherung verlangen. \n\nHierbei profitiert der Arbeitnehmer von der in einem bestimmten Umfang möglichen Beitrags und Steuerfreiheit der umgewandelten Entgeltbestandteile und erhält einen unmittelbaren, unverfallbaren Rechtsanspruch auf die erreichten Leistungsanwartschaften.\n\nDer Arbeitgeber profitiert ebenfalls von Sozialabgabenersparnissen von innerhalb der jeweiligen Beitragsbemessungsgrenzen umgewandelten Entgeltbestandteilen und erhält somit die Möglichkeit, sich an der Altersversorgung des Mitarbeiters möglichst liquiditätsschonend zu beteiligen.\n"]
[null,"Ist-Situation","afm Empfehlung I"]
["Versicherungsgesellschaft"]
["Tarifbezeichnung"]
["Vertragsnummer"]
["Beginn"]
["Ablauf"]
["Beitrag/Zahlweise"]
["Beitrag p. a."]
["Versicherte Person"]
["Ablaufleistung garantiert"]
["Ablaufleistung gesamt"]
["Altersrente garantiert"]
["Altersrente gesamt"]
["Aktueller Rückkaufswert"]
["Besonderheiten"]
["Aktion","Kündigen","Neu abschließen"]
[]
["Begründung"]

{"sheet":"RPbGM3","index":110,"n_rows":32,"n_cols":4,"rows_kept":32,"cut":false,"hidden":true,"merged":[[12,0,12,3],[33,0,38,3],[24,8,24,11]]}
[]
[]
[]
[]
[]
[]
[]
[]
[]
[]
["Betriebliches Gesundheitsmanagement (bGM)"]
[]
["Ein betriebliches Gesundheitsmanagement ist ein Mittel, um neue Fachkräfte zu gewinnen und qualifizierte Mitarbeiter langfristig zu binden. Durch die Schaffung erlebbarer Mehrwerte positioniert sich ein Unternehmen als attraktiver Arbeitgeber, der soziale Verantwortung für seine Belegschaft übernimmt. \n\nVor allem aus betriebswirtschaftlicher Sicht lohnt sich jede Investition in die Gesundheit der Mitarbeiter: Ein aktives betriebliches Gesundheitsmanagement trägt dazu bei, Kosten zu senken und die Leistungsfähigkeit der Belegschaft und somit des Unternehmens zu steigern. Wer sich im Job wohl und wertgeschätzt fühlt, der leistet mehr. \n"]
[null,"Ist-Situation","afm Empfehlung I","afm Empfehlung II"]
["Versicherungsgesellschaft"]
["Tarifbezeichnung"]
["Vertragsnummer"]
["Beginn"]
["Ablauf"]
["Beitrag/Zahlweise"]
["Beitrag p. a."]
["Versicherte Personen"]
["Leistungen ambulant"]
["Leistungen stationär"]
["Leistungen Zahn"]
["Altersrückstellungen"]
["Wartezeit"]
["Summenbegrenzung"]
["Besonderheiten"]
["Aktion","Kündigen","Neu abschließen","Alternativ abschließen"]
[]
["Begründung"]

{"sheet":"RPbGM2","index":111,"n_rows":32,"n_cols":3,"rows_kept":32,"cut":false,"hidden":true,"merged":[[12,0,12,2],[33,0,38,2]]}
[]
[]
[]
[]
[]
[]
[]
[]
[]
[]
["Betriebliches Gesundheitsmanagement (bGM)"]
[]
["Ein betriebliches Gesundheitsmanagement ist ein Mittel, um neue Fachkräfte zu gewinnen und qualifizierte Mitarbeiter langfristig zu binden. Durch die Schaffung erlebbarer Mehrwerte positioniert sich ein Unternehmen als attraktiver Arbeitgeber, der soziale Verantwortung für seine Belegschaft übernimmt. \n\nVor allem aus betriebswirtschaftlicher Sicht lohnt sich jede Investition in die Gesundheit der Mitarbeiter: Ein aktives betriebliches Gesundheitsmanagement trägt dazu bei, Kosten zu senken und die Leistungsfähigkeit der Belegschaft und somit des Unternehmens zu steigern. Wer sich im Job wohl und wertgeschätzt fühlt, der leistet mehr. \n"]
[null,"Ist-Situation","afm Empfehlung I"]
["Versicherungsgesellschaft"]
["Tarifbezeichnung"]
["Vertragsnummer"]
["Beginn"]
["Ablauf"]
["Beitrag/Zahlweise"]
["Beitrag p. a."]
["Versicherte Personen"]
["Leistungen ambulant"]
["Leistungen stationär"]
["Leistungen Zahn"]
["Altersrückstellungen"]
["Wartezeit"]
["Summenbegrenzung"]
["Besonderheiten"]
["Aktion","Kündigen","Neu abschließen"]
[]
["Begründung"]

{"sheet":"Finanz-und_Versicherungsstatus","index":112,"n_rows":48,"n_cols":11,"rows_kept":48,"cut":false,"hidden":true,"merged":[[5,7,5,9],[0,1,0,9],[2,2,2,5],[2,8,2,9],[4,2,4,5],[4,7,4,9]]}
[null,"Finanz- und Versicherungsstatus "]
[]
[null,"Kunde:",null,null,null,null,"afm Ansprechpartner:"]
[]
[null,"Anschrift:",null,null,null,null,"Telefon:"]
[null,null,null,null,null,null,"E-Mail:"]
[]
["Reihenfolge","Vertragsart","Gesellschaft","Vertragsnummer","Beginn","Ablauf","Zahlbeitrag","ZW","E/F","Risiko/Vertragsumfang"]
[null,null,null,null,null,null,null,null,null,null,{"$f":"PRODUCT(G9,H9)","v":0}]
[null,null,null,null,null,null,null,null,null,null,{"$f":"PRODUCT(G10,H10)","v":0}]
[null,null,null,null,null,null,null,null,null,null,0]
[null,null,null,null,null,null,null,null,null,null,0]
[null,null,null,null,null,null,null,null,null,null,0]
[null,null,null,null,null,null,null,null,null,null,0]
[null,null,null,null,null,null,null,null,null,null,0]
[null,null,null,null,null,null,null,null,null,null,0]
[null,null,null,null,null,null,null,null,null,null,0]
[null,null,null,null,null,null,null,null,null,null,0]
[null,null,null,null,null,null,null,null,null,null,0]
[null,null,null,null,null,null,null,null,null,null,0]
[null,null,null,null,null,null,null,null,null,null,0]
[null,null,null,null,null,null,null,null,null,null,0]
[null,null,null,null,null,null,null,null,null,null,0]
[null,null,null,null,null,null,null,null,null,null,0]
[null,null,null,null,null,null,null,null,null,null,0]
[null,null,null,null,null,null,null,null,null,null,0]
[null,null,null,null,null,null,null,null,null,null,0]
[null,null,null,null,null,null,null,null,null,null,0]
[null,null,null,null,null,null,null,null,null,null,0]
[null,null,null,null,null,null,null,null,null,null,0]
[null,null,null,null,null,null,null,null,null,null,0]
[null,null,null,null,null,null,null,null,null,null,0]
[null,null,null,null,null,null,null,null,null,null,0]
[null,null,null,null,null,null,null,null,null,null,0]
[null,null,null,null,null,null,null,null,null,null,0]
[null,null,null,null,null,null,null,null,null,null,0]
[null,null,null,null,null,null,null,null,null,null,0]
[null,null,null,null,null,null,null,null,null,null,0]
[null,null,null,null,null,null,null,null,null,null,0]
[null,null,null,null,null,null,null,null,null,null,0]
[null,null,null,null,null,null,null,null,null,null,0]
[null,null,null,null,null,null,null,null,null,null,0]
[null,null,null,null,null,null,null,null,null,null,0]
[null,null,null,null,null,null,null,null,null,null,0]
[null,null,null,null,null,null,null,null,null,null,0]
[null,null,null,null,null,null,null,null,null,null,0]
[null,null,null,null,null,null,null,null,null,null,0]
[null,null,null,"Gesamtjahresbeitrag:",null,null,{"$f":"SUM(K9:K47)","v":0}]

{"sheet":"Vertragsübersicht","index":113,"n_rows":29,"n_cols":10,"rows_kept":29,"cut":false,"hidden":true,"merged":[[18,1,18,2],[19,1,19,2],[13,1,13,2],[14,1,14,2],[15,1,15,2],[16,1,16,2],[17,1,17,2],[8,1,8,2],[9,1,9,2],[10,1,10,2],[11,1,11,2],[12,1,12,2],[20,1,20,2],[27,0,27,1],[28,0,28,1],[27,7,27,9],[28,7,28,9],[27,3,27,5],[28,3,28,5],[24,5,26,9],[22,0,22,2],[21,0,21,2],[0,1,0,9],[2,0,3,0],[7,1,7,2],[2,8,2,9],[3,8,3,9],[4,6,4,9],[6,5,6,9],[2,1,2,3],[3,1,3,3],[4,1,4,3],[6,0,6,3]]}
[{"$f":"IF(Allg.Daten!B8=\"\",\"\",Allg.Daten!B8)","v":""},"Vertragsübersicht mit Optimierungsvorschlägen und Strategie"]
[]
["Firma","afm GmbH, Kaiser-Wilhelm-Straße 9, 20355 Hamburg",null,null,null,"Datum",null,"Dauer des Gespräches"]
[null,"Tel. 040 532886-0, Telefax: +49 (0) 40 532 886 111",null,null,null,"Ort des Gespräches",null,"afm Berater"]
["Kunde",null,null,null,null,"Weitere Teilnehmer"]
[]
["Ist-Situation",null,null,null,null,"Empfehlung"]
["Versicherungssparte","Vertragdaten",null,"Prämie",null,"Vertragsdaten","Prämie","Differenz","Aktion","Durchführung"]
[{"$f":"IF('Finanz-und_Versicherungsstatus'!B9=\"\",\"\",('Finanz-und_Versicherungsstatus'!B9))","v":""},{"$f":"IF('Finanz-und_Versicherungsstatus'!J9=\"\",\"\",('Finanz-und_Versicherungsstatus'!J9))","v":""},null,{"$f":"IF('Finanz-und_Versicherungsstatus'!G9<=0,\"\",('Finanz-und_Versicherungsstatus'!K9))","v":""},null,null,null,{"$f":"IF(D9=\"\",\"\",(D9-G9))","v":""},null,"  ja    o        nein  o   "]
[{"$f":"IF('Finanz-und_Versicherungsstatus'!B10=\"\",\"\",('Finanz-und_Versicherungsstatus'!B10))","v":""},{"$f":"IF('Finanz-und_Versicherungsstatus'!J10=\"\",\"\",('Finanz-und_Versicherungsstatus'!J10))","v":""},null,{"$f":"IF('Finanz-und_Versicherungsstatus'!G10<=0,\"\",('Finanz-und_Versicherungsstatus'!K10))","v":""},null,null,null,{"$f":"IF(D10=\"\",\"\",(D10-G10))","v":""},null,"  ja    o        nein  o   "]
[{"$f":"IF('Finanz-und_Versicherungsstatus'!B11=\"\",\"\",('Finanz-und_Versicherungsstatus'!B11))","v":""},{"$f":"IF('Finanz-und_Versicherungsstatus'!J11=\"\",\"\",('Finanz-und_Versicherungsstatus'!J11))","v":""},null,{"$f":"IF('Finanz-und_Versicherungsstatus'!G11<=0,\"\",('Finanz-und_Versicherungsstatus'!K11))","v":""},null,null,null,"",null,"  ja    o        nein  o   "]
[{"$f":"IF('Finanz-und_Versicherungsstatus'!B12=\"\",\"\",('Finanz-und_Versicherungsstatus'!B12))","v":""},{"$f":"IF('Finanz-und_Versicherungsstatus'!J12=\"\",\"\",('Finanz-und_Versicherungsstatus'!J12))","v":""},null,{"$f":"IF('Finanz-und_Versicherungsstatus'!G12<=0,\"\",('Finanz-und_Versicherungsstatus'!K12))","v":""},null,null,null,"",null,"  ja    o        nein  o   "]
[{"$f":"IF('Finanz-und_Versicherungsstatus'!B13=\"\",\"\",('Finanz-und_Versicherungsstatus'!B13))","v":""},{"$f":"IF('Finanz-und_Versicherungsstatus'!J13=\"\",\"\",('Finanz-und_Versicherungsstatus'!J13))","v":""},null,{"$f":"IF('Finanz-und_Versicherungsstatus'!G13<=0,\"\",('Finanz-und_Versicherungsstatus'!K13))","v":""},null,null,null,"",null,"  ja    o        nein  o   "]
[{"$f":"IF('Finanz-und_Versicherungsstatus'!B14=\"\",\"\",('Finanz-und_Versicherungsstatus'!B14))","v":""},{"$f":"IF('Finanz-und_Versicherungsstatus'!J14=\"\",\"\",('Finanz-und_Versicherungsstatus'!J14))","v":""},null,{"$f":"IF('Finanz-und_Versicherungsstatus'!G14<=0,\"\",('Finanz-und_Versicherungsstatus'!K14))","v":""},null,null,null,"",null,"  ja    o        nein  o   "]
[{"$f":"IF('Finanz-und_Versicherungsstatus'!B15=\"\",\"\",('Finanz-und_Versicherungsstatus'!B15))","v":""},{"$f":"IF('Finanz-und_Versicherungsstatus'!J15=\"\",\"\",('Finanz-und_Versicherungsstatus'!J15))","v":""},null,{"$f":"IF('Finanz-und_Versicherungsstatus'!G15<=0,\"\",('Finanz-und_Versicherungsstatus'!K15))","v":""},null,null,null,"",null,"  ja    o        nein  o   "]
[{"$f":"IF('Finanz-und_Versicherungsstatus'!B16=\"\",\"\",('Finanz-und_Versicherungsstatus'!B16))","v":""},{"$f":"IF('Finanz-und_Versicherungsstatus'!J16=\"\",\"\",('Finanz-und_Versicherungsstatus'!J16))","v":""},null,{"$f":"IF('Finanz-und_Versicherungsstatus'!G16<=0,\"\",('Finanz-und_Versicherungsstatus'!K16))","v":""},null,null,null,"",null,"  ja    o        nein  o   "]
[{"$f":"IF('Finanz-und_Versicherungsstatus'!B17=\"\",\"\",('Finanz-und_Versicherungsstatus'!B17))","v":""},{"$f":"IF('Finanz-und_Versicherungsstatus'!J17=\"\",\"\",('Finanz-und_Versicherungsstatus'!J17))","v":""},null,{"$f":"IF('Finanz-und_Versicherungsstatus'!G17<=0,\"\",('Finanz-und_Versicherungsstatus'!K17))","v":""},null,null,null,"",null,"  ja    o        nein  o   "]
[{"$f":"IF('Finanz-und_Versicherungsstatus'!B18=\"\",\"\",('Finanz-und_Versicherungsstatus'!B18))","v":""},{"$f":"IF('Finanz-und_Versicherungsstatus'!J18=\"\",\"\",('Finanz-und_Versicherungsstatus'!J18))","v":""},null,{"$f":"IF('Finanz-und_Versicherungsstatus'!G18<=0,\"\",('Finanz-und_Versicherungsstatus'!K18))","v":""},null,null,null,"",null,"  ja    o        nein  o   "]
[{"$f":"IF('Finanz-und_Versicherungsstatus'!B19=\"\",\"\",('Finanz-und_Versicherungsstatus'!B19))","v":""},{"$f":"IF('Finanz-und_Versicherungsstatus'!J19=\"\",\"\",('Finanz-und_Versicherungsstatus'!J19))","v":""},null,{"$f":"IF('Finanz-und_Versicherungsstatus'!G19<=0,\"\",('Finanz-und_Versicherungsstatus'!K19))","v":""},null,null,null,"",null,"  ja    o        nein  o   "]
[{"$f":"IF('Finanz-und_Versicherungsstatus'!B20=\"\",\"\",('Finanz-und_Versicherungsstatus'!B20))","v":""},{"$f":"IF('Finanz-und_Versicherungsstatus'!J20=\"\",\"\",('Finanz-und_Versicherungsstatus'!J20))","v":""},null,{"$f":"IF('Finanz-und_Versicherungsstatus'!G20<=0,\"\",('Finanz-und_Versicherungsstatus'!K20))","v":""},null,null,null,"",null,"  ja    o        nein  o   "]
[{"$f":"IF('Finanz-und_Versicherungsstatus'!B21=\"\",\"\",('Finanz-und_Versicherungsstatus'!B21))","v":""},{"$f":"IF('Finanz-und_Versicherungsstatus'!J21=\"\",\"\",('Finanz-und_Versicherungsstatus'!J21))","v":""},null,{"$f":"IF('Finanz-und_Versicherungsstatus'!G21<=0,\"\",('Finanz-und_Versicherungsstatus'!K21))","v":""},null,null,null,"",null,"  ja    o        nein  o   "]
["Bisherige Gesamtprämie",null,null,{"$f":"SUM(D9:D21)","v":0},null,"Künftige Gesamtprämie",{"$f":"SUM(G9:G21)","v":0}]
["Durchschnittlicher Monatsbeitrag:",null,null,{"$f":"D22/12","v":0},null,"Durchschnittlicher Monatsbeitrag",{"$f":"G22/12","v":0}]
[]
["Wir können eine Prämieneinsparung i. H. v.  ",null,{"$f":"D22-G22","v":0},{"$f":"IF(D22=0,\"0 %\",(D22-G22)/D22)","v":"0 %"},null,"Bemerkungen:"]
["bei gleichzeitiger Optimierung des Versicherungsumfangs realisieren."]
[]
["____________________________________",null,null,"____________________________________",null,null,null,"____________________________________"]
["Ort, Datum",null,null,"Unterschrift Kunde/in",null,null,null,"Unterschrift Berater/in"]